Body Name,Service Area,Expense Type,Invoice Payment Date,Transaction Number,Net Amount,Supplier Name
TfGM,Transport,Community Engagement Services,04/04/2017,5100107228,"1,203.00",AECOM LTD
TfGM,Transport,Community Engagement Services,04/04/2017,5100107229,"13,940.80",AECOM LTD
TfGM,Transport,Community Engagement Services,04/04/2017,5100107230,"2,743.75",AECOM LTD
TfGM,Transport,Capital Costs - Planning Support Services,04/04/2017,5100107357,"5,230.00",AECOM LTD
TfGM,Transport,Capital Costs - Commercial Managment Services,04/04/2017,5100108193,"11,907.00",AECOM LTD
TfGM,Transport,Concessionary Reimbursement,04/04/2017,1900052936,737.00,ARSHAD HAFEEZ T/A NO 1 CAB CO.
TfGM,Transport,Property & Equipment Maintenance,04/04/2017,5100107512,"1,245.94",ASSA ABLOY ENTRANCE SYSTEMS LTD
TfGM,Transport,Capital Costs - Project Management Services,04/04/2017,5100106385,"16,020.00",ATKINS CONSULTANTS LTD
TfGM,Transport,Capital Costs - Programme and Project Management Services,04/04/2017,5100106495,"7,735.00",ATKINS CONSULTANTS LTD
TfGM,Transport,Programme and Project Management Services,04/04/2017,1900052942,"29,871.00",BLACC LTD
TfGM,Transport,Concessionary Reimbursement,04/04/2017,1900052927,"1,098.00",BLUELINE PRIVATE HIRE
TfGM,Transport,IS Support Services,04/04/2017,5100108203,"1,243.75",BT PLC
TfGM,Transport,IS Support Services,04/04/2017,5100108204,"1,243.75",BT PLC
TfGM,Corporate Services,IS Support Services,04/04/2017,5100107279,"267,656.12",BYTES SOFTWARE SERVICES LTD
TfGM,Transport,Print & Media,04/04/2017,5100100719,"1,441.44",CARAT MEDIA UK LIMITED
TfGM,Transport,Print & Media,04/04/2017,5100105045,"2,191.48",CARAT MEDIA UK LIMITED
TfGM,Transport,Print & Media,04/04/2017,5100107981,"(1,441.44)",CARAT MEDIA UK LIMITED
TfGM,Transport,Property & Equipment Maintenance,04/04/2017,5100107372,830.00,CHARGE YOUR CAR LTD
TfGM,Corporate Services,Employee Reimbursed Costs,04/04/2017,5100108211,455.43,CHILDCARE VOUCHERS LTD
TfGM,Transport,Cycle Training Scheme,04/04/2017,5100107710,"3,791.67",CITY OF SALFORD
TfGM,Transport,Traffic and Transportation Surveys,04/04/2017,5100107793,750.00,CTS TRAFFIC & TRANSPORTATION
TfGM,Transport,Supported Bus Services,04/04/2017,5100107873,"23,386.74",DERBYSHIRE COUNTY COUNCIL
TfGM,Transport,Professional Services,04/04/2017,5100107956,"4,800.00",EDGERTON MANAGEMENT SERVICES LTD
TfGM,Transport,Traffic Signal Works,04/04/2017,5100107017,788.41,ELECTRICITY NORTH WEST EHV
TfGM,Transport,Legal Services,04/04/2017,5100107425,(475.50),EVERSHEDS SUTHERLAND (INTERNATIONAL
TfGM,Transport,Legal Services,04/04/2017,5100107666,"123,581.81",EVERSHEDS SUTHERLAND (INTERNATIONAL
TfGM,Transport,Business Case Development,04/04/2017,5100107957,"7,425.00",EXPERIS LTD
TfGM,Transport,Cycling Support Services,04/04/2017,5100107966,660.00,FI SMITH ARTS
TfGM,Transport,Capital Costs - Utility & Service Diversion Costs,04/04/2017,5100107909,"102,375.38",GAMMA TELECOM LIMITED
TfGM,Transport,Property & Equipment Maintenance,04/04/2017,5100107149,617.20,GEZE UK LTD
TfGM,Transport,Property & Equipment Maintenance,04/04/2017,5100107497,820.00,GEZE UK LTD
TfGM,Transport,Property & Equipment Maintenance,04/04/2017,5100107498,695.00,GEZE UK LTD
TfGM,Transport,Property & Equipment Maintenance,04/04/2017,5100107499,870.00,GEZE UK LTD
TfGM,Transport,Sustainable Transport Support Services,04/04/2017,5100107868,750.00,GREATER MANCHESTER SPORTS PARTNERSH
TfGM,Transport,Occupational Health,04/04/2017,5100107967,"3,900.00",HEALTHWORK
TfGM,Transport,Cycling Support Services,04/04/2017,5100107562,594.50,ICYCLE LTD
TfGM,Corporate Services,Computer and Communications Equipment,04/04/2017,5100107540,"6,261.84",INTEROUTE MANAGED SERVICES UK LTD
TfGM,Corporate Services,Computer and Communications Equipment,04/04/2017,5100107541,"2,064.11",INTEROUTE MANAGED SERVICES UK LTD
TfGM,Transport,"Rent, Rates & Service Charges",04/04/2017,1900052315,"2,760.00",JONES LANG LASALLE LTD
TfGM,Transport,Capital Costs - Property Support Services,04/04/2017,5100107614,"12,000.00",JONES LANG LASALLE LTD
TfGM,Transport,Traffic Signal Works,04/04/2017,5100107009,539.83,JONES LIGHTING
TfGM,Transport,Traffic Signal Works,04/04/2017,5100107545,539.83,JONES LIGHTING
TfGM,Transport,Traffic Signal Works,04/04/2017,5100107546,539.83,JONES LIGHTING
TfGM,Transport,Traffic Signal Works,04/04/2017,5100107571,539.83,JONES LIGHTING
TfGM,Transport,Driver Intervention Course Delivery Costs,04/04/2017,5100108174,"1,025.56",K EKERT
TfGM,Transport,Capital Costs - Print & Media,04/04/2017,5100108126,"8,250.00",KILOGRAMME LIMITED
TfGM,Transport,Capital Costs - Programme and Project Management Services,04/04/2017,5100107998,"7,672.50",MACE LTD
TfGM,Transport,Capital Costs - Programme and Project Management Services,04/04/2017,5100107342,"2,062.50",MATCHTECH GROUP PLC
TfGM,Transport,Capital Costs - Metrolink Operating Costs,04/04/2017,5100107916,"224,906.00",METROLINK RATP DEV LTD
TfGM,Transport,Property & Equipment Maintenance,04/04/2017,5100107983,"2,128.70",METROLINK RATP DEV LTD
TfGM,Transport,Property & Equipment Maintenance,04/04/2017,5100107984,"5,711.00",METROLINK RATP DEV LTD
TfGM,Corporate Services,Temporary Vacancy Cover,04/04/2017,5100106543,984.00,MICHAEL PAGE INTERNATIONAL RECRUITM
TfGM,Corporate Services,Temporary Vacancy Cover,04/04/2017,5100107711,"3,996.20",MICHAEL PAGE INTERNATIONAL RECRUITM
TfGM,Corporate Services,Temporary Vacancy Cover,04/04/2017,5100107712,"4,672.48",MICHAEL PAGE INTERNATIONAL RECRUITM
TfGM,Corporate Services,Temporary Vacancy Cover,04/04/2017,5100108044,983.68,MICHAEL PAGE INTERNATIONAL RECRUITM
TfGM,Transport,Mechanical & Engeneering Feasibility Support,04/04/2017,5100105154,"2,200.00",MOTT MACDONALD LTD
TfGM,Transport,Capital Costs - Rail Support Services,04/04/2017,5100107179,"4,218.14",MOTT MACDONALD LTD
TfGM,Transport,Capital Costs - Engineering Support Services,04/04/2017,5100107997,"18,247.13",MOTT MACDONALD LTD
TfGM,Transport,Capital Costs - Engineering Support Services,04/04/2017,5100108195,"1,704.37",MOTT MACDONALD LTD
TfGM,Transport,Capital Costs - Metrolink Operating Costs,04/04/2017,5100107802,"3,674.03",MPACT THALES
TfGM,Transport,Concessionary Reimbursement,04/04/2017,1900052923,"1,200.00",NEXUS MOVE LTD
TfGM,Transport,Cycle Training Scheme,04/04/2017,5100107171,"1,020.00",OLDHAM SIXTH FORM COLLEGE
TfGM,Transport,Programme and Project Management Services,04/04/2017,5100105813,"7,840.00",PA CONSULTING SERVICES LIMITED
TfGM,Transport,Programme and Project Management Services,04/04/2017,5100106146,"3,920.00",PA CONSULTING SERVICES LIMITED
TfGM,Transport,Capital Costs - Legal Services,04/04/2017,5100107899,"1,271.50",PANNONE CORPORATE LLP (EMP)
TfGM,Corporate Services,Financial and Commercial Support Services,04/04/2017,5100108208,"12,350.00",PEAK PERFORMANCE PROFESSIONAL CONTR
TfGM,Transport,Concessionary Reimbursement,04/04/2017,1900052938,"1,103.00",PEMBERTON TAXIS
TfGM,Transport,Capital Costs - Programme and Project Management Services,04/04/2017,5100107600,"2,058.55",PERTEMPS PROFESSIONAL STAFFING LTD
TfGM,Transport,Capital Costs - Engineering Support Services,04/04/2017,5100107968,"8,925.00",PEWFALL COMMUNICATIONS LIMITED
TfGM,Corporate Services,Procurement Services,04/04/2017,5100107944,"4,037.50",PLAN PROCURE MANAGE LTD
TfGM,Transport,Training,04/04/2017,5100108200,"1,000.00",QA LTD
TfGM,Transport,Print & Media,04/04/2017,5100107892,675.00,RCD
TfGM,Corporate Services,Temporary Vacancy Cover,04/04/2017,1900052777,"2,171.11",REED SPECIALIST RECRUITMENT LTD
TfGM,Transport,Temporary Vacancy Cover,04/04/2017,5100107174,768.86,ROBERT WALTERS PLC
TfGM,Corporate Services,IS Support Services,04/04/2017,5100107175,"2,500.00",ROBERT WALTERS PLC
TfGM,Corporate Services,Temporary Vacancy Cover,04/04/2017,5100107181,701.63,ROBERT WALTERS PLC
TfGM,Transport,Business Case Development,04/04/2017,5100107195,"2,650.00",ROBERT WALTERS PLC
TfGM,Transport,Capital Costs - Smart Ticketing,04/04/2017,5100107196,"2,106.00",ROBERT WALTERS PLC
TfGM,Transport,Capital Costs - Smart Ticketing,04/04/2017,5100107197,"2,340.00",ROBERT WALTERS PLC
TfGM,Transport,Capital Costs - Smart Ticketing,04/04/2017,5100107198,"1,350.00",ROBERT WALTERS PLC
TfGM,Transport,Capital Costs - Engineering Support Services,04/04/2017,5100108136,"1,094.17",ROBERY FORENSIC ENGINEERING LTD
TfGM,Transport,Capital Costs - Print & Media,04/04/2017,5100107880,"2,293.26",SERVICEPOINT UK
TfGM,Transport,Capital Costs - Print & Media,04/04/2017,5100107886,929.25,SERVICEPOINT UK
TfGM,Transport,Capital Costs - Print & Media,04/04/2017,5100107887,840.00,SERVICEPOINT UK
TfGM,Corporate Services,Procurement Services,04/04/2017,5100108191,"12,650.00",SIMPLY UMBRELLA SERVICES LIMITED
TfGM,Corporate Services,Procurement Services,04/04/2017,5100108207,"13,570.00",SIMPLY UMBRELLA SERVICES LIMITED
TfGM,Transport,Capital Costs - Smart Ticketing,04/04/2017,5100107932,"4,803.70",SOPRA STERIA RECRUITMENT LTD
TfGM,Transport,Heavy Rail Support Services,04/04/2017,5100107867,"18,200.00",STATIONGURU LIMITED
TfGM,Transport,Design Support Services,04/04/2017,5100107221,"7,863.00",STEER DAVIES GLEEVE LTD
TfGM,Transport,Concessionary Reimbursement,04/04/2017,1900052928,812.00,SWINTON PRIVATE HIRE
TfGM,Transport,Business Case Development,04/04/2017,5100099888,"17,880.00",SYSTRA LTD
TfGM,Transport,Business Case Development,04/04/2017,5100101260,"8,775.00",SYSTRA LTD
TfGM,Transport,Business Case Development,04/04/2017,5100101261,"17,880.00",SYSTRA LTD
TfGM,Transport,Cycle Training Scheme,04/04/2017,5100108214,"1,250.00",THE NATIONWIDE CYCLING ACADEMY
TfGM,Transport,Highway Safety Support Services,04/04/2017,5100107633,"18,936.61",TRAFFORD MBC
TfGM,Transport,Supported Bus Services,04/04/2017,5100107457,"58,596.43",TRANSPORT SERVICE SOLUTIONS LTD
TfGM,Transport,Street Furniture Equipment,04/04/2017,5100108007,"7,925.00",TRUEFORM ENGINEERING LTD
TfGM,Transport,Cleaning,04/04/2017,5100106746,"7,751.50",TUDOR CONTRACT CLEANERS LTD
TfGM,Transport,Cleaning,04/04/2017,5100106770,"11,507.06",TUDOR CONTRACT CLEANERS LTD
TfGM,Transport,Cleaning,04/04/2017,5100108036,985.00,TUDOR CONTRACT CLEANERS LTD
TfGM,Transport,Cleaning,04/04/2017,5100108045,860.00,TUDOR CONTRACT CLEANERS LTD
TfGM,Transport,Cleaning,04/04/2017,5100108047,540.00,TUDOR CONTRACT CLEANERS LTD
TfGM,Transport,Cleaning,04/04/2017,5100108048,445.00,TUDOR CONTRACT CLEANERS LTD
TfGM,Transport,Cleaning,04/04/2017,5100108050,440.00,TUDOR CONTRACT CLEANERS LTD
TfGM,Transport,Capital Costs - Environmental & Ecological Support Services,04/04/2017,5100108053,660.00,TUDOR CONTRACT CLEANERS LTD
TfGM,Transport,Cleaning,04/04/2017,5100108082,"2,100.00",TUDOR CONTRACT CLEANERS LTD
TfGM,Corporate Services,Computer and Communications Equipment,04/04/2017,5100107074,460.00,VODAFONE LTD
TfGM,Transport,Property & Equipment Maintenance,04/04/2017,5100107875,420.00,XL OFFICE SOLUTIONS
TfGM,Transport,Vehicle Costs,05/04/2017,1200043636,899.44,ALLSTAR
TfGM,Transport,Programme and Project Management Services,05/04/2017,1900053032,"11,250.00",BLACC LTD
TfGM,Transport,Programme and Project Management Services,05/04/2017,5100108235,"6,000.00",BLACC LTD
TfGM,Transport,Business Case Development,05/04/2017,1900053033,"15,937.00",KLF CONSULTANCY LTD
TfGM,Transport,Capital Costs - Project Management Services,05/04/2017,5100108234,"7,840.00",SB PROJECT MANAGEMENT LTD
TfGM,Transport,Capital Costs - Project Management Services,05/04/2017,5100108237,"12,320.00",SB PROJECT MANAGEMENT LTD
TfGM,Transport,Utilities & Energy,05/04/2017,1900052977,"3,340.58",SWALEC
TfGM,Transport,Utilities & Energy,05/04/2017,1900052980,"2,462.78",SWALEC
TfGM,Transport,Utilities & Energy,05/04/2017,1900052981,676.11,SWALEC
TfGM,Transport,Utilities & Energy,05/04/2017,1900052983,510.42,SWALEC
TfGM,Transport,Utilities & Energy,05/04/2017,1900052984,"1,240.14",SWALEC
TfGM,Transport,Utilities & Energy,05/04/2017,1900052988,863.80,SWALEC
TfGM,Transport,Utilities & Energy,05/04/2017,1900052991,"1,367.19",SWALEC
TfGM,Transport,Utilities & Energy,05/04/2017,1900052994,472.49,SWALEC
TfGM,Transport,Utilities & Energy,05/04/2017,1900052996,"2,208.48",SWALEC
TfGM,Transport,Utilities & Energy,05/04/2017,1900052999,499.19,SWALEC
TfGM,Transport,Utilities & Energy,05/04/2017,1900053016,"1,907.01",SWALEC
TfGM,Transport,Utilities & Energy,05/04/2017,1900053018,688.02,SWALEC
TfGM,Transport,Utilities & Energy,05/04/2017,1900053021,796.68,SWALEC
TfGM,Transport,Utilities & Energy,05/04/2017,1900053023,"2,472.94",SWALEC
TfGM,Transport,Utilities & Energy,05/04/2017,1900053024,"1,680.17",SWALEC
TfGM,Transport,Utilities & Energy,05/04/2017,1900053026,"1,012.96",SWALEC
TfGM,Transport,Utilities & Energy,05/04/2017,1900053027,902.68,SWALEC
TfGM,Transport,Utilities & Energy,05/04/2017,1900053029,733.68,SWALEC
TfGM,Transport,Professional Services,06/04/2017,5100108266,"2,356.99",COMMERCIAL STRATEGIES LTD
TfGM,Transport,Capital Costs - Insurance,06/04/2017,5100108238,"42,350.00",LOCKTON COMPANIES LLP
TfGM,Transport,Capital Costs - Insurance,06/04/2017,5100108239,"74,305.00",LOCKTON COMPANIES LLP
TfGM,Transport,Capital Costs - Insurance,06/04/2017,5100108240,"105,875.00",LOCKTON COMPANIES LLP
TfGM,Transport,Capital Costs - Insurance,06/04/2017,5100108241,"426,406.75",LOCKTON COMPANIES LLP
TfGM,Transport,Capital Costs - Engineering Support Services,07/04/2017,5100107234,864.00,AECOM LTD
TfGM,Transport,Design Support Services,07/04/2017,5100107550,"4,000.00",AECOM LTD
TfGM,Transport,Design Support Services,07/04/2017,5100107551,"5,000.00",AECOM LTD
TfGM,Transport,Community Engagement Services,07/04/2017,5100107553,"5,849.50",AECOM LTD
TfGM,Transport,Paper and Printing Consumables,07/04/2017,5100107554,"1,586.54",ANTALIS LTD
TfGM,Transport,Paper and Printing Consumables,07/04/2017,5100107613,834.56,ANTALIS LTD
TfGM,Transport,Capital Costs - Programme and Project Management Services,07/04/2017,5100107595,"9,280.00",ARCADIS CONSULTING (UK) LTD
TfGM,Transport,Design Support Services,07/04/2017,5100107596,"12,760.06",ARCADIS LLP
TfGM,Transport,Design Support Services,07/04/2017,5100107597,"42,870.00",ARCADIS LLP
TfGM,Transport,Staff Rail Passes,07/04/2017,5100107973,"5,662.60",ARRIVA RAIL NORTH LTD
TfGM,Transport,Staff Rail Passes,07/04/2017,5100107977,"(5,271.30)",ARRIVA RAIL NORTH LTD
TfGM,Transport,Capital Costs - Engineering Support Services,07/04/2017,5100107599,"3,600.00",ATKINS CONSULTANTS LTD
TfGM,Corporate Services,Procurement Services,07/04/2017,5100107826,"11,000.00",ATKINS CONSULTANTS LTD
TfGM,Transport,Capital Costs - Property Support Services,07/04/2017,5100108246,"5,400.00",AXIS PROPERTY CONSULTANCY LLP
TfGM,Transport,Sustainable Travel Grant,07/04/2017,1900052882,"8,714.23",BOLTON AT HOME
TfGM,Transport,Traffic Signal Works,07/04/2017,5100107135,"11,450.77",BT PLC
TfGM,Transport,Capital Costs - Computer and Communications Equipment,07/04/2017,5100108298,"(1,058.95)",BT PLC
TfGM,Transport,Driver Intervention Course Delivery Costs,07/04/2017,5100108231,984.60,BTD TRAINING & CONSULTANCY LTD
TfGM,Corporate Services,IS Support Services,07/04/2017,5100107186,"3,277.24",BYTES SOFTWARE SERVICES LTD
TfGM,Transport,Print & Media,07/04/2017,5100107561,"23,015.70",CARAT MEDIA UK LIMITED
TfGM,Transport,Capital Costs - Environmental & Ecological Support Services,07/04/2017,5100108268,"4,840.00",CEEQUAL LTD
TfGM,Corporate Services,Employee Reimbursed Costs,07/04/2017,5100108303,"13,012.17",CHILDCARE VOUCHERS LTD
TfGM,Corporate Services,Procurement Services,07/04/2017,5100108310,"13,600.00",CNC PERFORMANCE CONSULTANTS LTD
TfGM,Corporate Services,IS Support and Licences,07/04/2017,5100107700,"6,618.78",CTMS LTD
TfGM,Transport,Property & Equipment Maintenance,07/04/2017,5100107426,"12,920.00",CUBIC TRANSPORTATION SYSTEMS (ITMS)
TfGM,Transport,Property & Equipment Maintenance,07/04/2017,5100107427,"10,381.00",CUBIC TRANSPORTATION SYSTEMS (ITMS)
TfGM,Transport,Property & Equipment Maintenance,07/04/2017,5100107428,"4,662.84",CUBIC TRANSPORTATION SYSTEMS (ITMS)
TfGM,Transport,Capital Costs - Legal Services,07/04/2017,5100108259,"1,198.50",DLA PIPER UK LLP
TfGM,Transport,Capital Costs - Legal Services,07/04/2017,5100108261,423.00,DLA PIPER UK LLP
TfGM,Transport,Capital Costs - Legal Services,07/04/2017,5100108262,587.50,DLA PIPER UK LLP
TfGM,Transport,IS Support and Licences,07/04/2017,5100107701,950.00,ESP SYSTEX LTD
TfGM,Transport,Print & Media,07/04/2017,5100108226,"20,000.00",HITCH MARKETING LTD
TfGM,Transport,Telecommunications,07/04/2017,5100107652,"3,005.50",INTEROUTE MANAGED SERVICES UK LTD
TfGM,Transport,Business Case Development,07/04/2017,5100108009,"4,411.12",JACOBS UK LTD
TfGM,Transport,Property Support Services,07/04/2017,5100107202,"2,600.00",JONES LANG LASALLE LTD
TfGM,Corporate Services,IS Support Services,07/04/2017,5100107665,"14,127.98",KONICA MINOLTA (UK)
TfGM,Corporate Services,IS Support Services,07/04/2017,5100107936,"1,981.67",KONICA MINOLTA (UK)
TfGM,Transport,Business Case Development,07/04/2017,5100107686,"36,355.00",KPMG
TfGM,Transport,Smart Ticketing,07/04/2017,5100107685,"9,975.00",MARBLE CONSULTING LTD
TfGM,Transport,Capital Costs - Programme and Project Management Services,07/04/2017,5100107847,"2,062.50",MATCHTECH GROUP PLC
TfGM,Transport,Capital Costs - Print & Media,07/04/2017,5100108236,"1,395.00",MAYNINETEEN LTD
TfGM,Transport,Room Hire,07/04/2017,5100107769,562.50,MECHANICS CENTRE LTD
TfGM,Transport,Capital Costs - Metrolink Operating Costs,07/04/2017,5100108181,"41,302.00",METROLINK RATP DEV LTD
TfGM,Corporate Services,IS Support Services,07/04/2017,5100106789,"2,284.40",MORSON INTERNATIONAL
TfGM,Corporate Services,IS Support Services,07/04/2017,5100107167,"2,741.28",MORSON INTERNATIONAL
TfGM,Transport,Capital Costs - Programme and Project Management Services,07/04/2017,5100107575,"1,935.00",MORSON INTERNATIONAL
TfGM,Transport,Capital Costs - Programme and Project Management Services,07/04/2017,5100107576,"1,600.00",MORSON INTERNATIONAL
TfGM,Corporate Services,IS Support Services,07/04/2017,5100107577,"2,284.40",MORSON INTERNATIONAL
TfGM,Transport,Capital Costs - Programme and Project Management Services,07/04/2017,5100107578,"1,988.75",MORSON INTERNATIONAL
TfGM,Transport,Capital Costs - Programme and Project Management Services,07/04/2017,5100107580,"1,935.00",MORSON INTERNATIONAL
TfGM,Corporate Services,IS Support Services,07/04/2017,5100108004,(456.88),MORSON INTERNATIONAL
TfGM,Transport,Metrolink Operating Costs,07/04/2017,5100107762,"81,452.52",MPACT THALES
TfGM,Transport,Human Resource Services,07/04/2017,5100107982,"8,000.00",ODGERS BERNDTSON
TfGM,Transport,Programme and Project Management Services,07/04/2017,5100107703,"3,920.00",OPTIMISE MANAGEMENT SOLUTIONS LTD
TfGM,Transport,Programme and Project Management Services,07/04/2017,5100107680,"2,097.65",OVE ARUP & PARTNERS INTERNATIONAL L
TfGM,Transport,Capital Costs - Programme and Project Management Services,07/04/2017,5100107848,"2,058.55",PERTEMPS PROFESSIONAL STAFFING LTD
TfGM,Transport,Concessionary Reimbursement,07/04/2017,1900053139,506.00,PHONE A CAB LTD
TfGM,Transport,Traffic and Transportation Surveys,07/04/2017,5100107745,"4,421.72",PLUSWORK LTD
TfGM,Transport,Traffic and Transportation Surveys,07/04/2017,5100107748,"2,700.00",PLUSWORK LTD
TfGM,Transport,Traffic and Transportation Surveys,07/04/2017,5100107783,454.38,PLUSWORK LTD
TfGM,Transport,Traffic and Transportation Surveys,07/04/2017,5100107794,622.99,PLUSWORK LTD
TfGM,Transport,Traffic and Transportation Surveys,07/04/2017,5100107839,604.80,PLUSWORK LTD
TfGM,Transport,Capital Costs - Smart Ticketing,07/04/2017,5100107602,"2,000.00",PRACTICUS LIMITED
TfGM,Transport,Smart Ticketing,07/04/2017,5100107603,"2,500.00",PRACTICUS LIMITED
TfGM,Transport,Subscription,07/04/2017,5100108258,"8,471.63",RAIL NORTH LTD
TfGM,Transport,Training,07/04/2017,5100107910,902.50,RED ROSE TRAINING (BOLTON) LTD
TfGM,Transport,Training,07/04/2017,5100107911,902.50,RED ROSE TRAINING (BOLTON) LTD
TfGM,Transport,Training,07/04/2017,5100107912,977.50,RED ROSE TRAINING (BOLTON) LTD
TfGM,Corporate Services,Temporary Vacancy Cover,07/04/2017,1900052821,"2,342.98",REED SPECIALIST RECRUITMENT LTD
TfGM,Transport,Temporary Vacancy Cover,07/04/2017,5100107727,768.86,ROBERT WALTERS PLC
TfGM,Corporate Services,Temporary Vacancy Cover,07/04/2017,5100107733,701.63,ROBERT WALTERS PLC
TfGM,Transport,Business Case Development,07/04/2017,5100107734,"2,650.00",ROBERT WALTERS PLC
TfGM,Transport,Capital Costs - Smart Ticketing,07/04/2017,5100107735,"1,980.99",ROBERT WALTERS PLC
TfGM,Transport,Capital Costs - Smart Ticketing,07/04/2017,5100107736,"2,201.10",ROBERT WALTERS PLC
TfGM,Transport,Capital Costs - Smart Ticketing,07/04/2017,5100107737,"2,340.00",ROBERT WALTERS PLC
TfGM,Transport,Capital Costs - Smart Ticketing,07/04/2017,5100107920,"2,250.00",ROBERT WALTERS PLC
TfGM,Transport,Postage Costs,07/04/2017,5100108297,615.03,ROYAL MAIL GROUP PLC
TfGM,Transport,Business Case Development,07/04/2017,5100107604,"4,480.00",RULLION ENGINEERING LTD
TfGM,Corporate Services,IS Support Services,07/04/2017,5100107605,"2,475.00",RULLION ENGINEERING LTD
TfGM,Transport,Print & Media,07/04/2017,5100106664,500.00,SALFORD CITY COUNCIL
TfGM,Transport,Traffic Signal Works,07/04/2017,5100107653,"11,195.41",SIEMENS PLC
TfGM,Transport,Traffic Signal Works,07/04/2017,5100107654,"8,286.64",SIEMENS PLC
TfGM,Transport,Traffic Signal Works,07/04/2017,5100107871,"26,695.40",SIEMENS PLC
TfGM,Transport,Traffic Signal Works,07/04/2017,5100107872,"26,090.40",SIEMENS PLC
TfGM,Transport,Traffic Signal Works,07/04/2017,5100107874,"19,600.34",SIEMENS PLC
TfGM,Transport,Traffic Signal Works,07/04/2017,5100107876,"31,429.93",SIEMENS PLC
TfGM,Transport,Traffic Signal Works,07/04/2017,5100107941,(784.65),SIEMENS PLC
TfGM,Transport,Traffic Signal Works,07/04/2017,5100107950,"8,820.49",SIEMENS PLC
TfGM,Transport,Capital Costs - Environmental & Ecological Support Services,07/04/2017,5100107431,"1,310.00",SPECIMEN TREES LTD
TfGM,Transport,Design Support Services,07/04/2017,5100107626,"9,242.00",STEER DAVIES GLEEVE LTD
TfGM,Transport,Planning Support Services,07/04/2017,5100107677,"4,473.00",STEER DAVIES GLEEVE LTD
TfGM,Transport,Design Support Services,07/04/2017,5100107678,"3,935.50",STEER DAVIES GLEEVE LTD
TfGM,Transport,Supported Bus Services,07/04/2017,1900053170,"24,002.80",STOTTS TOURS
TfGM,Transport,Capital Costs - Traffic and Transportation Surveys,07/04/2017,5100108141,"19,410.50",SUSTRANS LTD
TfGM,Transport,Research Services,07/04/2017,5100107628,668.75,SYSTRA LTD
TfGM,Transport,Traffic Signal Works,07/04/2017,5100107691,"6,502.50",TDC SYSTEMS LTD
TfGM,Transport,Traffic Signal Works,07/04/2017,5100107692,735.00,TDC SYSTEMS LTD
TfGM,Transport,Traffic Signal Works,07/04/2017,5100107693,420.00,TDC SYSTEMS LTD
TfGM,Transport,Cycling Support Services,07/04/2017,5100108267,"1,115.00",THE URBAN CYCLE CENTRE CIC
TfGM,Transport,Cleaning,07/04/2017,5100108054,465.00,TUDOR CONTRACT CLEANERS LTD
TfGM,Transport,Cleaning,07/04/2017,5100108055,520.00,TUDOR CONTRACT CLEANERS LTD
TfGM,Transport,Cleaning,07/04/2017,5100108056,750.00,TUDOR CONTRACT CLEANERS LTD
TfGM,Transport,Cleaning,07/04/2017,5100108063,750.00,TUDOR CONTRACT CLEANERS LTD
TfGM,Transport,Cleaning,07/04/2017,5100108064,900.00,TUDOR CONTRACT CLEANERS LTD
TfGM,Transport,Cleaning,07/04/2017,5100108086,725.17,TUDOR CONTRACT CLEANERS LTD
TfGM,Transport,Cleaning,07/04/2017,5100108243,560.00,TUDOR CONTRACT CLEANERS LTD
TfGM,Transport,Training,07/04/2017,5100107627,600.00,WHITE HART TRAINING LIMITED
TfGM,Transport,Engineering Support Services,07/04/2017,5100107574,"35,000.00",WSP UK LTD
TfGM,Transport,Community Engagement Services,07/04/2017,5100107743,"12,822.00",WSP UK LTD
TfGM,Transport,Cycling Support Services,07/04/2017,5100107939,"3,408.00",WSP UK LTD
TfGM,Transport,Supported Bus Services,10/04/2017,1900053171,"80,280.00",FIRST MANCHESTER
TfGM,Transport,Utilities & Energy,10/04/2017,1900052961,747.83,SWALEC
TfGM,Transport,Utilities & Energy,10/04/2017,1900052962,"3,156.78",SWALEC
TfGM,Transport,Utilities & Energy,10/04/2017,1900053214,"12,435.60",SWALEC
TfGM,Transport,Utilities & Energy,10/04/2017,1900053215,"2,534.27",SWALEC
TfGM,Transport,Utilities & Energy,10/04/2017,1900053220,"1,933.86",SWALEC
TfGM,Transport,Utilities & Energy,10/04/2017,1900053221,537.65,SWALEC
TfGM,Transport,Utilities & Energy,10/04/2017,1900053224,656.69,SWALEC
TfGM,Transport,Driver Intervention Course Delivery Costs,11/04/2017,1900053056,"1,531.60",2020 FLEET TRAINING LTD
TfGM,Transport,Driver Intervention Course Delivery Costs,11/04/2017,1900053069,"1,422.20",A HOLT
TfGM,Transport,Research Services,11/04/2017,5100107934,"2,000.00",AECOM LTD
TfGM,Transport,Capital Costs - Project Management Services,11/04/2017,5100107930,"3,600.00",ATKINS CONSULTANTS LTD
TfGM,Transport,Driver Intervention Course Delivery Costs,11/04/2017,1900053044,"1,203.40",B ASKHAM
TfGM,Transport,Print & Media,11/04/2017,5100107948,700.00,BOSS DIRECT
TfGM,Transport,Capital Costs - Community Transport Support Services,11/04/2017,5100108366,"3,226.98",BREAKTHROUGH UK LTD
TfGM,Transport,Capital Costs - Community Transport Support Services,11/04/2017,5100108367,"2,843.09",BREAKTHROUGH UK LTD
TfGM,Transport,Driver Intervention Course Delivery Costs,11/04/2017,1900053068,"1,641.00",C HIRST
TfGM,Transport,Print & Media,11/04/2017,5100108274,"5,209.00",CARAT MEDIA UK LIMITED
TfGM,Transport,Print & Media,11/04/2017,5100108275,"5,707.20",CARAT MEDIA UK LIMITED
TfGM,Transport,Security Services,11/04/2017,5100108399,769.86,CARLISLE SECURITY SERVICES LTD
TfGM,Transport,Driver Intervention Course Delivery Costs,11/04/2017,5100107770,"9,015.00",CARRINGTON BUSINESS PARK (CBPK)
TfGM,Corporate Services,IS Software & Maintenance,11/04/2017,5100107810,"3,553.02",Casewise
TfGM,Transport,"Rent, Rates & Service Charges",11/04/2017,1900052944,575.00,CBRE COMMON RECEIPTS
TfGM,Transport,Capital Costs - Public Art,11/04/2017,5100108374,"3,575.00",CHRYSALIS ARTS LTD
TfGM,Corporate Services,IS Software & Maintenance,11/04/2017,5100107805,"30,915.00",CUBIC TRANSPORTATION SYSTEMS (ITMS)
TfGM,Corporate Services,Cyclescheme,11/04/2017,5100108394,520.83,CYCLESCHEME LTD
TfGM,Transport,Cycle Training Scheme,11/04/2017,5100107348,700.00,CYCLING PROJECTS
TfGM,Transport,Driver Intervention Course Delivery Costs,11/04/2017,1900053059,"1,641.00",D ELLIS
TfGM,Transport,Driver Intervention Course Delivery Costs,11/04/2017,1900053064,"1,634.91",D HEATHCOTE
TfGM,Transport,Driver Intervention Course Delivery Costs,11/04/2017,1900053088,"1,094.00",D ROBINSON
TfGM,Transport,Driver Intervention Course Delivery Costs,11/04/2017,1900053097,"1,252.01",D WALSH
TfGM,Transport,Business Case Development,11/04/2017,5100108337,"11,410.00",DAVE KAYE ASSOCIATES LTD
TfGM,Transport,Driver Intervention Course Delivery Costs,11/04/2017,1900053087,"1,416.11",DRIVER ACADEMY
TfGM,Transport,Driver Intervention Course Delivery Costs,11/04/2017,1900053092,"1,531.60",DTS LTD
TfGM,Transport,Business Case Development,11/04/2017,5100108377,"1,360.00",DURDAR CONSULTING LTD
TfGM,Transport,Paper and Printing Consumables,11/04/2017,5100107806,"69,000.00",ESP SYSTEX LTD
TfGM,Transport,Concessionary Support Services,11/04/2017,5100107894,"28,855.17",ESP SYSTEX LTD
TfGM,Transport,Capital Costs - IS Support Services,11/04/2017,5100107931,"4,235.22",EXPERIS LTD
TfGM,Transport,Capital Costs - Programme and Project Management Services,11/04/2017,5100108403,"12,350.00",EXPERIS LTD
TfGM,Transport,Driver Intervention Course Delivery Costs,11/04/2017,1900053052,"2,510.11",G CLIFFE
TfGM,Transport,Driver Intervention Course Delivery Costs,11/04/2017,1900053089,656.40,G ROBINSON
TfGM,Transport,Driver Intervention Course Delivery Costs,11/04/2017,5100108361,"1,312.80",G VANN
TfGM,Transport,Print & Media,11/04/2017,5100107833,"5,503.57",GLOBAL RADIO SERVICES LTD
TfGM,Transport,Sustainable Travel Grant,11/04/2017,1900052880,"5,523.00",GREAT PLACES HOUSING GROUP
TfGM,Transport,Subscriptions,11/04/2017,1900053301,"1,195.00",GTR MANCHESTER CHAMBER OF COMMERCE
TfGM,Transport,Driver Intervention Course Delivery Costs,11/04/2017,1900053055,"1,422.20",H DICKINSON
TfGM,Transport,Driver Intervention Course Delivery Costs,11/04/2017,1900053067,"1,641.00",HOGHTON DRIVING SCHOOL
TfGM,Transport,Capital Costs - Project Management Services,11/04/2017,1900052953,533.25,HOVIS LTD
TfGM,Transport,Capital Costs - Project Management Services,11/04/2017,1900052955,"1,166.50",HOVIS LTD
TfGM,Transport,Capital Costs - Project Management Services,11/04/2017,1900052957,550.00,HOVIS LTD
TfGM,Transport,Capital Costs - Project Management Services,11/04/2017,1900052958,550.00,HOVIS LTD
TfGM,Transport,Capital Costs - Project Management Services,11/04/2017,1900052959,"1,950.00",HOVIS LTD
TfGM,Transport,Driver Intervention Course Delivery Costs,11/04/2017,1900053057,"1,422.20",I DUFF
TfGM,Transport,Property & Equipment Maintenance,11/04/2017,5100107767,"1,351.50",INTERCONNECT NETWORK SYSTEMS LTD
TfGM,Transport,Property & Equipment Maintenance,11/04/2017,5100107768,"1,171.50",INTERCONNECT NETWORK SYSTEMS LTD
TfGM,Transport,Driver Intervention Course Delivery Costs,11/04/2017,1900053079,765.80,J MCGREAL
TfGM,Transport,Driver Intervention Course Delivery Costs,11/04/2017,1900053082,"1,422.20",J MURPHY
TfGM,Transport,Driver Intervention Course Delivery Costs,11/04/2017,1900053073,"1,312.80",K JONES
TfGM,Transport,Driver Intervention Course Delivery Costs,11/04/2017,1900053050,"1,312.80",L CHAPMAN
TfGM,Transport,Vehicle Costs,11/04/2017,5100107937,"9,163.17",Lloyd Morgan Group
TfGM,Transport,"Rent, Rates & Service Charges",11/04/2017,1900053037,"5,808.25",M J MAPP
TfGM,Transport,Driver Intervention Course Delivery Costs,11/04/2017,1900053046,"1,531.60",MICHAEL BOLTON DRIVER TRAINING
TfGM,Transport,Capital Costs - Print & Media,11/04/2017,5100107698,"2,375.00",MICHAEL CONDRON LTD
TfGM,Transport,Capital Costs - Print & Media,11/04/2017,5100108128,956.10,MIRAGE DISPLAY LTD
TfGM,Transport,Sustainable Travel Grant,11/04/2017,1900053041,"10,000.00",MISSGUIDED LIMITED
TfGM,Transport,Capital Costs - Programme and Project Management Services,11/04/2017,5100108409,"4,000.00",MORSON INTERNATIONAL
TfGM,Transport,Sustainable Transport Support Services,11/04/2017,5100107754,"11,639.00",MOTT MACDONALD LTD
TfGM,Transport,Sustainable Transport Support Services,11/04/2017,5100107756,"11,206.00",MOTT MACDONALD LTD
TfGM,Transport,Engineering Support Services,11/04/2017,5100108340,"14,896.00",MOTT MACDONALD LTD
TfGM,Transport,Metrolink Operating Costs,11/04/2017,5100107759,"19,662.46",MPACT THALES
TfGM,Transport,Metrolink Operating Costs,11/04/2017,5100107761,"52,183.55",MPACT THALES
TfGM,Transport,Capital Costs - Ancillary Construction Costs,11/04/2017,5100107750,"2,237.15",NOVUS PROPERTY SOLUTIONS LTD
TfGM,Transport,Property & Equipment Maintenance,11/04/2017,5100107752,"1,645.70",NOVUS PROPERTY SOLUTIONS LTD
TfGM,Transport,Property & Equipment Maintenance,11/04/2017,5100107755,"9,265.81",NOVUS PROPERTY SOLUTIONS LTD
TfGM,Transport,Property & Equipment Maintenance,11/04/2017,5100107758,"21,056.37",NOVUS PROPERTY SOLUTIONS LTD
TfGM,Transport,Property & Equipment Maintenance,11/04/2017,5100107760,"1,658.61",NOVUS PROPERTY SOLUTIONS LTD
TfGM,Transport,Property & Equipment Maintenance,11/04/2017,5100107763,"1,896.18",NOVUS PROPERTY SOLUTIONS LTD
TfGM,Transport,Property & Equipment Maintenance,11/04/2017,5100107764,"21,475.68",NOVUS PROPERTY SOLUTIONS LTD
TfGM,Transport,Driver Intervention Course Delivery Costs,11/04/2017,1900053078,"2,026.80",O MAYSON
TfGM,Corporate Services,IS Support and Licences,11/04/2017,5100107952,491.40,OMNIBUS
TfGM,Transport,Driver Intervention Course Delivery Costs,11/04/2017,1900053043,905.58,P AINSWORTH
TfGM,Transport,Driver Intervention Course Delivery Costs,11/04/2017,1900053051,"10,560.14",P CLARKE
TfGM,Transport,Driver Intervention Course Delivery Costs,11/04/2017,1900053062,"1,422.20",P GLEADALL
TfGM,Transport,Driver Intervention Course Delivery Costs,11/04/2017,1900053091,"2,218.38",PAS DRIVING
TfGM,Corporate Services,Insurance,11/04/2017,1900052951,"1,342.95",PEEL LAND AND PROPERTY PORTS LTD
TfGM,Corporate Services,Procurement Services,11/04/2017,5100108381,"5,700.00",PLAN PROCURE MANAGE LTD
TfGM,Transport,Capital Costs - Smart Ticketing,11/04/2017,5100107749,"2,000.00",PRACTICUS LIMITED
TfGM,Transport,Smart Ticketing,11/04/2017,5100107751,"2,500.00",PRACTICUS LIMITED
TfGM,Transport,Temporary Vacancy Cover,11/04/2017,5100108411,"16,170.00",PWS TECHNICAL SERVICES (UK) LIMITED
TfGM,Transport,Driver Intervention Course Delivery Costs,11/04/2017,1900053063,"2,516.20",R GREENOUGH
TfGM,Transport,Driver Intervention Course Delivery Costs,11/04/2017,1900053066,"1,531.60",R HILL
TfGM,Transport,Relocation Costs,11/04/2017,1900053124,"2,444.46",REDACTED
TfGM,Corporate Services,Legal Services,11/04/2017,1900053233,"1,750.00",ROBERTS JACKSON SOLICITORS
TfGM,Transport,Driver Intervention Course Delivery Costs,11/04/2017,1900053081,"2,728.91",S MUIRHEAD
TfGM,Transport,Driver Intervention Course Delivery Costs,11/04/2017,1900053090,"1,969.20",S SHAH
TfGM,Transport,Driver Intervention Course Delivery Costs,11/04/2017,1900053084,"1,422.20",SHELLIS SCHOOL OF MOTORING
TfGM,Transport,Traffic Signal Works,11/04/2017,5100107889,"53,483.92",SIEMENS PLC
TfGM,Transport,Traffic Signal Works,11/04/2017,5100107890,"22,719.41",SIEMENS PLC
TfGM,Transport,Driver Intervention Course Delivery Costs,11/04/2017,1900053060,"2,078.60",SMJ SCHOOL OF MOTORING
TfGM,Transport,Driver Intervention Course Delivery Costs,11/04/2017,1900053075,"2,078.60",STEVEN LLOYD APPROVED SCHOOL OF MOT
TfGM,Transport,Sustainable Travel Grant,11/04/2017,1900053040,"2,766.00",THALES TRANSPORT & SECURITY LTD
TfGM,Transport,Print & Media,11/04/2017,5100107782,"1,999.00",THE IMAGE GROUP
TfGM,Transport,Maintenance,11/04/2017,5100108346,551.25,THE MAILING ROOM
TfGM,Transport,Business Case Development,11/04/2017,1900053212,"12,915.00",TOLEDO TRANSPORT CONSULTING LIMITED
TfGM,Transport,Business Case Development,11/04/2017,5100108282,"10,000.00",TOLEDO TRANSPORT CONSULTING LIMITED
TfGM,Transport,Business Case Development,11/04/2017,5100108283,"7,315.00",TOLEDO TRANSPORT CONSULTING LIMITED
TfGM,Transport,Business Case Development,11/04/2017,5100108284,"1,250.00",TOLEDO TRANSPORT CONSULTING LIMITED
TfGM,Transport,Business Case Development,11/04/2017,5100108285,"7,980.00",TOLEDO TRANSPORT CONSULTING LIMITED
TfGM,Corporate Services,Computer and Communications Equipment,11/04/2017,5100107809,"2,378.00",TRANSACT TECHNOLOGY SOLUTIONS LTD
TfGM,Transport,Cleaning,11/04/2017,5100108062,"1,709.79",TUDOR CONTRACT CLEANERS LTD
TfGM,Transport,Cleaning,11/04/2017,5100108076,494.00,TUDOR CONTRACT CLEANERS LTD
TfGM,Transport,Cleaning,11/04/2017,5100108083,"1,350.00",TUDOR CONTRACT CLEANERS LTD
TfGM,Transport,Property & Equipment Maintenance,11/04/2017,5100108357,"1,261.10",URBAN VISION PARTNERSHIP LTD
TfGM,Transport,Driver Intervention Course Delivery Costs,11/04/2017,1900053058,765.80,V EDWARDS
TfGM,Transport,Driver Intervention Course Delivery Costs,11/04/2017,1900053061,"2,181.91",VINCENT'S DRIVING SCHOOL
TfGM,Transport,Driver Intervention Course Delivery Costs,11/04/2017,1900053054,547.00,W CREWE
TfGM,Transport,Driver Intervention Course Delivery Costs,11/04/2017,1900053072,"1,203.40",WIRRAL DRIVING LTD
TfGM,Transport,Environmental & Ecological Support Services,11/04/2017,5100106529,"(1,325.00)",WYG ENV PLANNING TRANSPORT LTD
TfGM,Transport,Environmental & Ecological Support Services,11/04/2017,5100107707,"1,855.00",WYG ENV PLANNING TRANSPORT LTD
TfGM,Transport,Driver Intervention Course Delivery Costs,11/04/2017,1900053049,594.34,Z CHABDU
TfGM,Transport,Vehicle Costs,12/04/2017,1200043706,788.71,ALLSTAR
TfGM,Transport,Business Case Development,12/04/2017,5100108511,"8,260.00",DSW LIMITED
TfGM,Transport,Postage Costs,12/04/2017,1900053382,"2,000.00",FRAMA UK LIMITED
TfGM,Transport,Capital Costs - Engineering Support Services,13/04/2017,5100107747,"8,179.35",AECOM LTD
TfGM,Transport,Research Services,13/04/2017,5100108256,"12,089.65",AECOM LTD
TfGM,Transport,Property & Equipment Maintenance,13/04/2017,5100107893,"3,801.50",AMARI PLASTICS PLC
TfGM,Transport,Project Management Services,13/04/2017,5100108473,"9,243.70",AMEY OW LIMITED
TfGM,Transport,Print & Media,13/04/2017,5100108521,"4,125.00",ANGELA SCHORAH COMMUNICATIONS
TfGM,Transport,Paper and Printing Consumables,13/04/2017,5100108595,"1,627.83",ANTALIS LTD
TfGM,Transport,Paper and Printing Consumables,13/04/2017,5100108596,"1,586.54",ANTALIS LTD
TfGM,Transport,Paper and Printing Consumables,13/04/2017,5100108598,"1,586.54",ANTALIS LTD
TfGM,Corporate Services,IS Support and Licences,13/04/2017,5100108079,"7,947.00",APPSPACE SOLUTIONS LIMITED
TfGM,Transport,Concessionary Reimbursement,13/04/2017,1900053346,"235,000.00",ARRIVA MANCHESTER
TfGM,Transport,Supported Bus Services,13/04/2017,1900053420,"26,297.38",ARRIVA MANCHESTER
TfGM,Transport,Supported Bus Services,13/04/2017,1900053421,"56,149.14",ARRIVA MANCHESTER
TfGM,Transport,Supported Bus Services,13/04/2017,1900053422,"1,704.49",ARRIVA MANCHESTER
TfGM,Transport,Concessionary Reimbursement,13/04/2017,1900053253,"65,000.00",ARRIVA RAIL NORTH LTD
TfGM,Transport,Capital Costs - Project Management Services,13/04/2017,5100108319,515.62,ATKINS CONSULTANTS LTD
TfGM,Transport,Supported Bus Services,13/04/2017,1900053398,"29,953.46",ATLANTIC TRAVEL GB
TfGM,Transport,Supported Bus Services,13/04/2017,1900053403,"101,912.09",BELLE VUE (MANCHESTER) LTD
TfGM,Transport,Supported Bus Services,13/04/2017,1900053404,580.00,BELLE VUE (MANCHESTER) LTD
TfGM,Transport,"Rent, Rates & Service Charges",13/04/2017,1900053014,"30,257.38",BOLTON METROPOLITAN BOROUGH COUNCIL
TfGM,Transport,"Rent, Rates & Service Charges",13/04/2017,1900053038,500.00,BOLTON METROPOLITAN BOROUGH COUNCIL
TfGM,Transport,"Rent, Rates & Service Charges",13/04/2017,1900053283,"50,295.00",BOLTON METROPOLITAN BOROUGH COUNCIL
TfGM,Corporate Services,Print & Stationery ,13/04/2017,5100108592,"3,941.10",BOX IT
TfGM,Corporate Services,IS Consumables,13/04/2017,5100107318,"1,335.46",BT PLC
TfGM,Transport,Concessionary Reimbursement,13/04/2017,1900053347,"2,300.00",BULLOCKS
TfGM,Transport,Supported Bus Services,13/04/2017,1900053418,"12,159.73",BULLOCKS
TfGM,Transport,Concessionary Reimbursement,13/04/2017,1900053348,"13,000.00",BURNLEY AND PENDLE
TfGM,Transport,"Rent, Rates & Service Charges",13/04/2017,1900053008,"9,226.80",BURY MBC
TfGM,Transport,"Rent, Rates & Service Charges",13/04/2017,1900053275,"52,820.37",BURY MBC
TfGM,Transport,Print & Media,13/04/2017,5100107895,"9,202.35",CARAT MEDIA UK LIMITED
TfGM,Transport,Print & Media,13/04/2017,5100108590,"4,814.54",CARAT MEDIA UK LIMITED
TfGM,Transport,Security Services,13/04/2017,5100108482,"2,389.12",CARLISLE SECURITY SERVICES LTD
TfGM,Transport,Concessionary Reimbursement,13/04/2017,1900053350,"24,700.00",CENTREBUS LTD
TfGM,Transport,Supported Bus Services,13/04/2017,1900053433,"14,051.99",CENTREBUS LTD
TfGM,Transport,Print & Media,13/04/2017,5100107838,"1,222.00",CHAPEL PRESS LTD
TfGM,Transport,Print & Media,13/04/2017,5100107840,588.00,CHAPEL PRESS LTD
TfGM,Transport,Professional Services,13/04/2017,5100108602,"12,817.15",CHARLES W. MONHEIM
TfGM,Transport,Supported Bus Services,13/04/2017,1900053431,"7,858.18",CHESTERS COACHES
TfGM,Transport,Capital Costs - Capital Project Main Contract Works,13/04/2017,1900052858,"84,944.63",CITY OF SALFORD
TfGM,Transport,"Rent, Rates & Service Charges",13/04/2017,1900052943,"8,708.49",CITY OF SALFORD
TfGM,Transport,"Rent, Rates & Service Charges",13/04/2017,1900053006,"49,907.15",CITY OF SALFORD
TfGM,Transport,"Rent, Rates & Service Charges",13/04/2017,1900053007,"9,119.62",CITY OF SALFORD
TfGM,Transport,"Rent, Rates & Service Charges",13/04/2017,1900053287,"2,027.10",CITY OF SALFORD
TfGM,Transport,"Rent, Rates & Service Charges",13/04/2017,1900053289,"3,233.25",CITY OF SALFORD
TfGM,Transport,Concessionary Reimbursement,13/04/2017,1900053351,"25,000.00",CUMFY BUS LTD
TfGM,Transport,Supported Bus Services,13/04/2017,1900053395,"10,376.75",CUMFY BUS LTD
TfGM,Transport,Supported Bus Services,13/04/2017,1900053396,"68,261.41",CUMFY BUS LTD
TfGM,Transport,Supported Bus Services,13/04/2017,1900053397,"4,229.33",CUMFY BUS LTD
TfGM,Transport,Cycle Training Scheme,13/04/2017,5100107964,800.00,CYCLING PROJECTS
TfGM,Transport,Concessionary Reimbursement,13/04/2017,1900053355,"86,285.00",DIAMOND BUS (NORTH WEST) LTD
TfGM,Transport,Supported Bus Services,13/04/2017,1900053427,"14,495.64",DIAMOND BUS (NORTH WEST) LTD
TfGM,Transport,Supported Bus Services,13/04/2017,1900053428,"124,815.34",DIAMOND BUS (NORTH WEST) LTD
TfGM,Transport,Supported Bus Services,13/04/2017,1900053429,"4,087.93",DIAMOND BUS (NORTH WEST) LTD
TfGM,Transport,Concessionary Reimbursement,13/04/2017,1900053254,"1,179.60",ECO TRAVEL
TfGM,Transport,Supported Bus Services,13/04/2017,1900053394,"13,916.67",ECO TRAVEL
TfGM,Transport,Capital Costs - Legal Services,13/04/2017,1900053442,"50,000.00",EVERSHEDS LLP
TfGM,Transport,Concessionary Reimbursement,13/04/2017,1900053353,"3,000.00",FE FINCH
TfGM,Transport,Property & Equipment Maintenance,13/04/2017,5100107853,"5,151.65",FES FM LTD
TfGM,Transport,Property & Equipment Maintenance,13/04/2017,5100107854,900.10,FES FM LTD
TfGM,Transport,Property & Equipment Maintenance,13/04/2017,5100107856,"1,771.55",FES FM LTD
TfGM,Transport,Concessionary Reimbursement,13/04/2017,1900053352,"8,500.00",FIRST CALDERLINE
TfGM,Transport,Supported Bus Services,13/04/2017,1700035529,(624.67),FIRST MANCHESTER
TfGM,Transport,Concessionary Reimbursement,13/04/2017,1900053354,"1,497,000.00",FIRST MANCHESTER
TfGM,Transport,Supported Bus Services,13/04/2017,1900053415,"291,157.96",FIRST MANCHESTER
TfGM,Transport,Supported Bus Services,13/04/2017,1900053416,"107,325.80",FIRST MANCHESTER
TfGM,Transport,Supported Bus Services,13/04/2017,1900053417,"3,488.81",FIRST MANCHESTER
TfGM,Transport,Safety Support Services,13/04/2017,5100107943,"1,473.33",FIRST MANCHESTER
TfGM,Transport,Print & Media,13/04/2017,5100107958,899.00,FRIENDS OF FALLOWFIELD LOOP
TfGM,Transport,Supported Bus Services,13/04/2017,1900053434,"27,248.75",GB COACHES
TfGM,Transport,Supported Bus Services,13/04/2017,1900053435,738.09,GB COACHES
TfGM,Transport,Accessible Transport,13/04/2017,1200043706,"373,083.00",GMATL
TfGM,Transport,Supported Bus Services,13/04/2017,1900053389,"47,015.08",GO GOODWINS COACHES LTD
TfGM,Transport,Supported Bus Services,13/04/2017,1900053390,"62,050.96",GO GOODWINS COACHES LTD
TfGM,Transport,Supported Bus Services,13/04/2017,1900053391,"1,483.14",GO GOODWINS COACHES LTD
TfGM,Transport,Concessionary Reimbursement,13/04/2017,1900053356,"42,462.00",HATTONS TRANSPORT LTD
TfGM,Transport,Supported Bus Services,13/04/2017,1900053399,"18,333.33",HATTONS TRANSPORT LTD
TfGM,Transport,Occupational Health,13/04/2017,5100108600,"1,255.50",HEALTH MANAGEMENT LTD
TfGM,Transport,Driver Intervention Course Delivery Costs,13/04/2017,5100108539,"3,087.50",HOLIDAY INN MANCHESTER EAST
TfGM,Transport,Driver Intervention Course Delivery Costs,13/04/2017,5100108540,"3,250.00",HOLIDAY INN MANCHESTER EAST
TfGM,Transport,Concessionary Reimbursement,13/04/2017,1900053357,"3,600.00",HUDDERSFIELD BUS COMPANY
TfGM,Transport,Print & Media,13/04/2017,5100107771,650.00,INFORMAT PHOTOGRAPHY
TfGM,Transport,Concessionary Reimbursement,13/04/2017,1900053358,"24,441.00",JIM STONES COACHES
TfGM,Transport,Supported Bus Services,13/04/2017,1900053424,"9,259.64",JIM STONES COACHES
TfGM,Transport,Supported Bus Services,13/04/2017,1900053425,"19,462.98",JIM STONES COACHES
TfGM,Transport,Traffic Signal Works,13/04/2017,5100107971,539.83,JONES LIGHTING
TfGM,Transport,Concessionary Reimbursement,13/04/2017,1900053359,"21,000.00",LANCASHIRE UTD
TfGM,Transport,Concessionary Reimbursement,13/04/2017,1900053360,"5,000.00",M TRAVEL
TfGM,Transport,Supported Bus Services,13/04/2017,1900053405,"59,898.49",M TRAVEL
TfGM,Transport,Supported Bus Services,13/04/2017,1900053406,"15,377.79",M TRAVEL
TfGM,Transport,Supported Bus Services,13/04/2017,1900053407,956.73,M TRAVEL
TfGM,Transport,Planning Support Services,13/04/2017,5100108519,"5,250.00",MALAWI TRADE BROKERS LTD
TfGM,Transport,"Rent, Rates & Service Charges",13/04/2017,1900053270,"2,107.60",MANCHESTER CITY COUNCIL
TfGM,Transport,"Rent, Rates & Service Charges",13/04/2017,1900053291,"10,052.56",MANCHESTER CITY COUNCIL
TfGM,Transport,"Rent, Rates & Service Charges",13/04/2017,1900053293,687.35,MANCHESTER CITY COUNCIL
TfGM,Transport,"Rent, Rates & Service Charges",13/04/2017,1900053295,687.35,MANCHESTER CITY COUNCIL
TfGM,Transport,"Rent, Rates & Service Charges",13/04/2017,1900053297,"1,814.28",MANCHESTER CITY COUNCIL
TfGM,Transport,"Rent, Rates & Service Charges",13/04/2017,1900053299,629.10,MANCHESTER CITY COUNCIL
TfGM,Transport,Driver Intervention Course Delivery Costs,13/04/2017,5100108257,713.00,MANCHESTER CITY COUNCIL
TfGM,Transport,Concessionary Reimbursement,13/04/2017,1900053361,"51,000.00",MANCHESTER COMMUNITY TRANSPORT
TfGM,Transport,Supported Bus Services,13/04/2017,1900053384,"20,832.92",MANCHESTER COMMUNITY TRANSPORT
TfGM,Transport,Supported Bus Services,13/04/2017,1900053385,"176,619.70",MANCHESTER COMMUNITY TRANSPORT
TfGM,Transport,Supported Bus Services,13/04/2017,1900053386,"9,017.50",MANCHESTER COMMUNITY TRANSPORT
TfGM,Transport,Capital Costs - Computer and Communications Equipment,13/04/2017,5100108348,"1,369.64",METROLINK RATP DEV LTD
TfGM,Transport,Property & Equipment Maintenance,13/04/2017,5100108350,"(9,154.46)",METROLINK RATP DEV LTD
TfGM,Transport,Metrolink Operating Costs,13/04/2017,5100108509,"7,250.00",METROLINK RATP DEV LTD
TfGM,Transport,Capital Costs - Signage Costs,13/04/2017,5100108510,"6,313.79",METROLINK RATP DEV LTD
TfGM,Transport,Capital Costs - Print & Media,13/04/2017,5100107864,"2,440.00",MICHAEL CONDRON LTD
TfGM,Transport,Driver Intervention Course Delivery Costs,13/04/2017,5100108536,"1,744.31",MILES AHEADDRIVER TRAINING LTD
TfGM,Corporate Services,IS Support Services,13/04/2017,5100107778,"2,284.40",MORSON INTERNATIONAL
TfGM,Transport,Capital Costs - Programme and Project Management Services,13/04/2017,5100107779,"1,935.00",MORSON INTERNATIONAL
TfGM,Transport,Capital Costs - Project Management Services,13/04/2017,5100107786,"4,998.80",MORSON INTERNATIONAL
TfGM,Transport,Capital Costs - Programme and Project Management Services,13/04/2017,5100107788,"1,548.00",MORSON INTERNATIONAL
TfGM,Transport,Capital Costs - Programme and Project Management Services,13/04/2017,5100107789,"6,000.00",MORSON INTERNATIONAL
TfGM,Transport,Capital Costs - Programme and Project Management Services,13/04/2017,5100107791,"1,591.00",MORSON INTERNATIONAL
TfGM,Transport,Programme and Project Management Services,13/04/2017,5100107866,"2,210.00",MORSON INTERNATIONAL
TfGM,Transport,Research Services,13/04/2017,5100107857,"5,000.00",MOTT MACDONALD LTD
TfGM,Transport,Capital Costs - Engineering Support Services,13/04/2017,5100108437,"1,010.00",MOTT MACDONALD LTD
TfGM,Transport,Capital Costs - Capital Project Main Contract Works,13/04/2017,5100108438,"19,654.00",MOTT MACDONALD LTD
TfGM,Transport,Capital Costs - Engineering Support Services,13/04/2017,5100108439,"1,242.00",MOTT MACDONALD LTD
TfGM,Transport,Mechanical & Engeneering Feasibility Support,13/04/2017,5100108564,"21,665.08",MOTT MACDONALD LTD
TfGM,Transport,Concessionary Reimbursement,13/04/2017,1900053255,"1,941.15",NEXUS MOVE LTD
TfGM,Transport,Supported Bus Services,13/04/2017,1900053387,"99,827.17",NEXUS MOVE LTD
TfGM,Transport,Supported Bus Services,13/04/2017,1900053388,"39,590.50",NEXUS MOVE LTD
TfGM,Transport,Property & Equipment Maintenance,13/04/2017,5100107879,"5,451.60",NOVUS PROPERTY SOLUTIONS LTD
TfGM,Transport,Property & Equipment Maintenance,13/04/2017,5100107897,"1,014.64",NOVUS PROPERTY SOLUTIONS LTD
TfGM,Transport,"Rent, Rates & Service Charges",13/04/2017,1900053013,"26,517.73",OLDHAM MBC
TfGM,Transport,"Rent, Rates & Service Charges",13/04/2017,1900053281,"32,934.86",OLDHAM MBC
TfGM,Transport,Supported Bus Services,13/04/2017,1900053392,"41,338.65",OLYMPIA TRAVEL
TfGM,Transport,Print & Media,13/04/2017,5100108393,"2,408.10",ONE SMART COOKIE COMMUNICATIONS LTD
TfGM,Transport,Capital Costs - Project Management Services,13/04/2017,5100108549,"14,145.00",OUT OF THE BOX DEVELOPMENT LTD
TfGM,Transport,Driver Intervention Course Delivery Costs,13/04/2017,5100108535,"1,750.40",PETERS DRIVING SCHOOL
TfGM,Transport,Capital Costs - Engineering Support Services,13/04/2017,5100108518,"9,460.00",PEWFALL COMMUNICATIONS LIMITED
TfGM,Transport,Traffic and Transportation Surveys,13/04/2017,5100108135,590.25,PLUSWORK LTD
TfGM,Transport,Traffic and Transportation Surveys,13/04/2017,5100108138,604.80,PLUSWORK LTD
TfGM,Transport,Traffic and Transportation Surveys,13/04/2017,5100108139,"2,340.00",PLUSWORK LTD
TfGM,Transport,Traffic and Transportation Surveys,13/04/2017,5100108140,"4,368.67",PLUSWORK LTD
TfGM,Corporate Services,IS Support Services,13/04/2017,5100108563,"10,080.00",PMA GLOBAL MOBILITY RESOURCES LTD
TfGM,Transport,Capital Costs - Smart Ticketing,13/04/2017,5100108471,"2,000.00",PRACTICUS LIMITED
TfGM,Transport,Smart Ticketing,13/04/2017,5100108472,"2,500.00",PRACTICUS LIMITED
TfGM,Transport,Cycling Equipment,13/04/2017,5100108492,535.40,PRESTWICH CYCLE FACTORS LIMITED
TfGM,Transport,Supported Bus Services,13/04/2017,1900053440,"77,106.61",R S TYRER LTD
TfGM,Transport,Supported Bus Services,13/04/2017,1900053441,687.37,R S TYRER LTD
TfGM,Transport,Temporary Vacancy Cover,13/04/2017,1900053120,"3,104.79",REED SPECIALIST RECRUITMENT LTD
TfGM,Transport,Supported Bus Services,13/04/2017,1900053414,"6,104.19",REGALWAY LTD
TfGM,Transport,Temporary Vacancy Cover,13/04/2017,5100107819,768.86,ROBERT WALTERS PLC
TfGM,Transport,Business Case Development,13/04/2017,5100107823,"2,650.00",ROBERT WALTERS PLC
TfGM,Transport,Capital Costs - Smart Ticketing,13/04/2017,5100107824,"2,340.00",ROBERT WALTERS PLC
TfGM,Transport,Capital Costs - Smart Ticketing,13/04/2017,5100107825,"2,250.00",ROBERT WALTERS PLC
TfGM,Transport,Business Case Development,13/04/2017,5100107830,"3,000.00",ROBERT WALTERS PLC
TfGM,Transport,Business Case Development,13/04/2017,5100107831,"3,000.00",ROBERT WALTERS PLC
TfGM,Transport,Business Case Development,13/04/2017,5100107832,"3,000.00",ROBERT WALTERS PLC
TfGM,Corporate Services,Temporary Vacancy Cover,13/04/2017,5100108196,561.30,ROBERT WALTERS PLC
TfGM,Transport,Property & Equipment Maintenance,13/04/2017,5100108012,530.00,ROSGAL LTD
TfGM,Transport,Property & Equipment Maintenance,13/04/2017,5100108014,530.00,ROSGAL LTD
TfGM,Transport,Property & Equipment Maintenance,13/04/2017,5100108016,530.00,ROSGAL LTD
TfGM,Transport,Property & Equipment Maintenance,13/04/2017,5100108018,530.00,ROSGAL LTD
TfGM,Transport,Property & Equipment Maintenance,13/04/2017,5100108020,530.00,ROSGAL LTD
TfGM,Transport,Property & Equipment Maintenance,13/04/2017,5100108022,530.00,ROSGAL LTD
TfGM,Transport,Property & Equipment Maintenance,13/04/2017,5100108024,530.00,ROSGAL LTD
TfGM,Transport,Property & Equipment Maintenance,13/04/2017,5100108026,530.00,ROSGAL LTD
TfGM,Transport,Supported Bus Services,13/04/2017,1700035479,(887.00),ROSSENDALE TRANSPORT
TfGM,Transport,Supported Bus Services,13/04/2017,1900053251,"1,629.58",ROSSENDALE TRANSPORT
TfGM,Transport,Concessionary Reimbursement,13/04/2017,1900053363,"94,900.00",ROSSENDALE TRANSPORT
TfGM,Transport,Supported Bus Services,13/04/2017,1900053400,"148,842.76",ROSSENDALE TRANSPORT
TfGM,Transport,Supported Bus Services,13/04/2017,1900053401,"64,937.15",ROSSENDALE TRANSPORT
TfGM,Transport,Supported Bus Services,13/04/2017,1900053402,"11,534.83",ROSSENDALE TRANSPORT
TfGM,Transport,Business Case Development,13/04/2017,5100107877,"4,480.00",RULLION ENGINEERING LTD
TfGM,Corporate Services,IS Support Services,13/04/2017,5100107878,"2,200.00",RULLION ENGINEERING LTD
TfGM,Transport,Driver Intervention Course Delivery Costs,13/04/2017,5100108490,984.60,S M CHARLSON
TfGM,Transport,Supported Bus Services,13/04/2017,1900053436,"76,594.53",SELWYNS TRAVEL LTD
TfGM,Transport,Supported Bus Services,13/04/2017,1900053437,940.73,SELWYNS TRAVEL LTD
TfGM,Corporate Services,Financial and Commercial Support Services,13/04/2017,5100108480,"4,500.00",SHERRINGTON PROGRAMME CONSULTANTS L
TfGM,Corporate Services,Financial and Commercial Support Services,13/04/2017,5100108517,"5,700.00",SHERRINGTON PROGRAMME CONSULTANTS L
TfGM,Transport,Other Operational Costs,13/04/2017,5100108525,"1,220.00",SIEMENS FINANCIAL SERVICES
TfGM,Transport,Traffic Signal Works,13/04/2017,5100107533,"50,397.54",SIEMENS PLC
TfGM,Transport,Traffic Signal Works,13/04/2017,5100107925,"5,897.33",SIEMENS PLC
TfGM,Transport,Traffic Signal Works,13/04/2017,5100107926,"32,406.72",SIEMENS PLC
TfGM,Transport,Equipment Maintenance,13/04/2017,5100108129,"2,730.00",SIEMENS PLC
TfGM,Transport,Equipment Maintenance,13/04/2017,5100108131,"1,390.00",SIEMENS PLC
TfGM,Transport,Pass Withdrawal Scheme,13/04/2017,1900053261,"1,050.00",STAGECOACH SERVICES LTD
TfGM,Transport,Concessionary Reimbursement,13/04/2017,1900053365,"1,575,000.00",STAGECOACH SERVICES LTD
TfGM,Transport,Concessionary Reimbursement,13/04/2017,1900053366,"76,555.00",STAGECOACH SERVICES LTD
TfGM,Transport,Supported Bus Services,13/04/2017,1900053411,"250,291.42",STAGECOACH SERVICES LTD
TfGM,Transport,Supported Bus Services,13/04/2017,1900053412,"326,396.36",STAGECOACH SERVICES LTD
TfGM,Transport,Supported Bus Services,13/04/2017,1900053413,"25,844.08",STAGECOACH SERVICES LTD
TfGM,Transport,Design Support Services,13/04/2017,5100107467,"3,141.25",STEER DAVIES GLEEVE LTD
TfGM,Transport,Research Services,13/04/2017,5100107891,"10,470.00",STEER DAVIES GLEEVE LTD
TfGM,Transport,Business Case Development,13/04/2017,5100107992,"23,246.00",STEER DAVIES GLEEVE LTD
TfGM,Transport,"Rent, Rates & Service Charges",13/04/2017,1900053011,"27,302.94",STOCKPORT MBC
TfGM,Transport,"Rent, Rates & Service Charges",13/04/2017,1900053279,"47,330.32",STOCKPORT MBC
TfGM,Transport,Supported Bus Services,13/04/2017,1900053344,"26,400.00",STOTTS TOURS
TfGM,Transport,Research Services,13/04/2017,5100108426,"21,573.08",SYSTRA LTD
TfGM,Transport,"Rent, Rates & Service Charges",13/04/2017,1900053010,"19,916.84",TAMESIDE MBC
TfGM,Transport,"Rent, Rates & Service Charges",13/04/2017,1900053285,"26,248.21",TAMESIDE MBC
TfGM,Transport,Traffic Signal Works,13/04/2017,5100107862,"1,241.18",TDC SYSTEMS LTD
TfGM,Transport,Supported Bus Services,13/04/2017,1900053423,"27,012.50",TELECARS
TfGM,Transport,Cycle Training Scheme,13/04/2017,5100108528,"1,800.00",THE NATIONWIDE CYCLING ACADEMY
TfGM,Transport,Cycle Training Scheme,13/04/2017,5100108529,"2,850.00",THE NATIONWIDE CYCLING ACADEMY
TfGM,Transport,"Rent, Rates & Service Charges",13/04/2017,1900053009,"13,014.74",TRAFFORD MBC
TfGM,Transport,"Rent, Rates & Service Charges",13/04/2017,1900053271,"34,727.50",TRAFFORD MBC
TfGM,Transport,Computer and Communications Equipment,13/04/2017,5100108032,"1,150.00",TRANSACT TECHNOLOGY SOLUTIONS LTD
TfGM,Transport,Concessionary Reimbursement,13/04/2017,1900053252,"8,750.00",TRANSPENNINE EXPRESS
TfGM,Transport,Concessionary Reimbursement,13/04/2017,1900053368,"1,963.00",TRAVEL ASSIST SERVICES LTD
TfGM,Transport,Capital Costs - Quantity Surveying Services,13/04/2017,5100106708,826.00,TURNER & TOWNSEND PROJECT MANAGEMEN
TfGM,Transport,Capital Costs - Quantity Surveying Services,13/04/2017,5100106845,"1,954.00",TURNER & TOWNSEND PROJECT MANAGEMEN
TfGM,Transport,Capital Costs - Quantity Surveying Services,13/04/2017,5100108197,"6,330.00",TURNER & TOWNSEND PROJECT MANAGEMEN
TfGM,Transport,Concessionary Reimbursement,13/04/2017,1900053369,"10,000.00",UK COACHWAYS LTD
TfGM,Transport,Supported Bus Services,13/04/2017,1900053408,"43,223.81",UK COACHWAYS LTD
TfGM,Transport,Supported Bus Services,13/04/2017,1900053409,"8,914.02",UK COACHWAYS LTD
TfGM,Transport,Utilities & Energy,13/04/2017,1900053172,"3,959.17",UNITED UTILITIES WATER PLC
TfGM,Transport,Utilities & Energy,13/04/2017,1900053178,851.36,UNITED UTILITIES WATER PLC
TfGM,Transport,Utilities & Energy,13/04/2017,1900053180,"3,959.17",UNITED UTILITIES WATER PLC
TfGM,Transport,Utilities & Energy,13/04/2017,1900053182,"1,780.90",UNITED UTILITIES WATER PLC
TfGM,Transport,Utilities & Energy,13/04/2017,1900053184,851.36,UNITED UTILITIES WATER PLC
TfGM,Transport,Utilities & Energy,13/04/2017,1900053186,851.36,UNITED UTILITIES WATER PLC
TfGM,Transport,Utilities & Energy,13/04/2017,1900053188,"7,521.96",UNITED UTILITIES WATER PLC
TfGM,Transport,Utilities & Energy,13/04/2017,1900053190,"7,521.96",UNITED UTILITIES WATER PLC
TfGM,Transport,Utilities & Energy,13/04/2017,1900053196,"1,780.75",UNITED UTILITIES WATER PLC
TfGM,Transport,Utilities & Energy,13/04/2017,1900053198,"1,780.75",UNITED UTILITIES WATER PLC
TfGM,Transport,Utilities & Energy,13/04/2017,1900053200,851.36,UNITED UTILITIES WATER PLC
TfGM,Transport,Utilities & Energy,13/04/2017,1900053208,851.36,UNITED UTILITIES WATER PLC
TfGM,Transport,Utilities & Energy,13/04/2017,1900053229,"1,824.74",UNITED UTILITIES WATER PLC
TfGM,Transport,Utilities & Energy,13/04/2017,1900053230,"3,293.08",UNITED UTILITIES WATER PLC
TfGM,Transport,Utilities & Energy,13/04/2017,1900053267,"3,959.17",UNITED UTILITIES WATER PLC
TfGM,Transport,Concessionary Reimbursement,13/04/2017,1900053370,"6,000.00",WARRINGTON BOROUGH TRANSPORT LTD
TfGM,Transport,Concessionary Reimbursement,13/04/2017,1900053256,963.00,WIGAN COMMUNITY TRANSPORT
TfGM,Transport,Supported Bus Services,13/04/2017,1900053383,"6,661.50",WIGAN COMMUNITY TRANSPORT
TfGM,Transport,"Rent, Rates & Service Charges",13/04/2017,1900053015,"38,468.30",WIGAN COUNCIL
TfGM,Transport,Property & Equipment Maintenance,13/04/2017,5100107951,"23,693.00",WIGAN COUNCIL
TfGM,Transport,Programme and Project Management Services,13/04/2017,5100108443,"4,845.00",WSP UK LTD
TfGM,Transport,Programme and Project Management Services,13/04/2017,5100108452,"61,940.52",WSP UK LTD
TfGM,Transport,Capital Costs - Project Management Services,13/04/2017,5100108455,"6,731.48",WSP UK LTD
TfGM,Transport,Capital Costs - Programme and Project Management Services,13/04/2017,5100108456,"5,850.00",WSP UK LTD
TfGM,Transport,Project Management Services,13/04/2017,5100108457,"12,083.60",WSP UK LTD
TfGM,Transport,Capital Costs - Project Management Services,13/04/2017,5100108458,"16,351.35",WSP UK LTD
TfGM,Transport,Capital Costs - Project Management Services,13/04/2017,5100108460,"258,524.67",WSP UK LTD
TfGM,Transport,Capital Costs - Project Management Services,13/04/2017,5100108462,"69,052.15",WSP UK LTD
TfGM,Transport,Concessionary Reimbursement,19/04/2017,1900053503,"1,289.00",1919 TAXIS
TfGM,Transport,Training,19/04/2017,5100108675,"3,860.00",ACAS
TfGM,Transport,Community Engagement Services,19/04/2017,5100107996,"4,395.42",AECOM LTD
TfGM,Transport,Capital Costs - Mechanical & Engineering Support Services,19/04/2017,5100108185,"8,500.00",AECOM LTD
TfGM,Transport,Capital Costs - Mechanical & Engineering Support Services,19/04/2017,5100108186,"12,000.00",AECOM LTD
TfGM,Transport,Vehicle Costs,19/04/2017,1200043734,981.96,ALLSTAR
TfGM,Transport,Paper and Printing Consumables,19/04/2017,5100108635,"1,669.11",ANTALIS LTD
TfGM,Transport,Paper and Printing Consumables,19/04/2017,5100108637,"1,586.54",ANTALIS LTD
TfGM,Transport,Capital Costs - Utility & Service Connection Costs,19/04/2017,5100108772,654.05,APOLLO ENERGY LTD
TfGM,Transport,Print & Media,19/04/2017,5100108698,495.00,ASTRA SIGNS
TfGM,Transport,Cycle Training Scheme,19/04/2017,5100108010,"4,800.00",BIKERIGHT FUTURES CIC
TfGM,Transport,Cycle Training Scheme,19/04/2017,5100108013,"1,200.00",BIKERIGHT FUTURES CIC
TfGM,Transport,Cycle Training Scheme,19/04/2017,5100108015,"7,350.00",BIKERIGHT FUTURES CIC
TfGM,Transport,Cycle Training Scheme,19/04/2017,5100108017,"5,000.00",BIKERIGHT FUTURES CIC
TfGM,Transport,Print & Media,19/04/2017,5100108149,593.00,BLUETREE DESIGN AND PRINT LTD
TfGM,Transport,"Rent, Rates & Service Charges",19/04/2017,1900053306,"7,922.00",BOLTON METROPOLITAN BOROUGH COUNCIL
TfGM,Transport,"Rent, Rates & Service Charges",19/04/2017,1900053310,"2,514.07",BOLTON METROPOLITAN BOROUGH COUNCIL
TfGM,Transport,"Rent, Rates & Service Charges",19/04/2017,1900053371,"2,170.93",BOLTON METROPOLITAN BOROUGH COUNCIL
TfGM,Transport,"Rent, Rates & Service Charges",19/04/2017,1900053373,745.60,BOLTON METROPOLITAN BOROUGH COUNCIL
TfGM,Transport,"Rent, Rates & Service Charges",19/04/2017,1900053378,"2,059.70",BOLTON METROPOLITAN BOROUGH COUNCIL
TfGM,Transport,Traffic Signal Works,19/04/2017,5100108654,"4,000.00",BT PLC
TfGM,Transport,"Rent, Rates & Service Charges",19/04/2017,1900053005,"3,529.58",BURY MBC
TfGM,Transport,"Rent, Rates & Service Charges",19/04/2017,1900053308,"7,723.88",BURY MBC
TfGM,Transport,"Rent, Rates & Service Charges",19/04/2017,1900053312,"2,008.93",BURY MBC
TfGM,Transport,"Rent, Rates & Service Charges",19/04/2017,1900053314,"8,469.70",BURY MBC
TfGM,Transport,"Rent, Rates & Service Charges",19/04/2017,1900053327,699.00,BURY MBC
TfGM,Transport,Maintenance,19/04/2017,5100108625,"2,849.38",CANON UK LTD
TfGM,Transport,Security Services,19/04/2017,5100108513,"2,405.05",CARLISLE SECURITY SERVICES LTD
TfGM,Transport,Security Services,19/04/2017,5100108514,"2,663.17",CARLISLE SECURITY SERVICES LTD
TfGM,Transport,Print & Media,19/04/2017,5100108006,561.00,CESTRIAN
TfGM,Corporate Services,Payroll Support Services,19/04/2017,5100108486,"1,008.25",CGI IT UK LTD
TfGM,Transport,"Rent, Rates & Service Charges",19/04/2017,1900053316,"7,664.38",CITY OF SALFORD
TfGM,Transport,Concessionary Reimbursement,19/04/2017,1900053504,776.00,CRESTA CAR HIRE
TfGM,Transport,Capital Costs - IS Software & Maintenance,19/04/2017,5100108658,"359,383.63",CUBIC TRANSPORTATION SYSTEMS (ITMS)
TfGM,Transport,Concessionary Support Services,19/04/2017,5100108021,"11,400.85",ESP SYSTEX LTD
TfGM,Transport,Business Case Development,19/04/2017,5100108587,"2,250.00",EXPERIS LTD
TfGM,Transport,Business Case Development,19/04/2017,5100108690,"5,850.00",EXPERIS LTD
TfGM,Corporate Services,IS Software & Maintenance,19/04/2017,5100108144,"2,153.00",FULL CONTROL NETWORKS DIST LTD
TfGM,Transport,Highway Safety Support Services,19/04/2017,5100108633,"2,590.25",GTR MAN FIRE AND RESCUE SERVICE
TfGM,Transport,Sustainable Travel Grant,19/04/2017,1900053374,"9,747.00",HOMES FOR CHANGE LTD
TfGM,Transport,Capital Costs - Cycling Support Services,19/04/2017,5100108169,"2,953.00",JMP CONSULTANTS LTD
TfGM,Transport,Concessionary Reimbursement,19/04/2017,1900053498,"1,467.00",K & M CARS
TfGM,Corporate Services,IS Support and Licences,19/04/2017,5100108023,"11,881.80",KEYSOFT SOLUTIONS
TfGM,Corporate Services,IS Software & Maintenance,19/04/2017,5100108269,"3,360.00",KEYSOFT SOLUTIONS
TfGM,Corporate Services,Financial and Commercial Support Services,19/04/2017,5100108388,"189,491.00",KPMG
TfGM,Transport,Concessionary Reimbursement,19/04/2017,1900053518,728.00,LINDLEY TRAVEL
TfGM,Transport,Concessionary Reimbursement,19/04/2017,1900053510,"2,788.00",MAGNUM WHITELINE PRIVATE HIRE
TfGM,Transport,Training,19/04/2017,5100108681,600.00,MAKINSON PROGRESS LIMITED
TfGM,Transport,"Rent, Rates & Service Charges",19/04/2017,1900053302,629.10,MANCHESTER CITY COUNCIL
TfGM,Transport,"Rent, Rates & Service Charges",19/04/2017,1900053304,"8,388.00",MANCHESTER CITY COUNCIL
TfGM,Transport,"Rent, Rates & Service Charges",19/04/2017,1900053343,"2,814.13",MANCHESTER CITY COUNCIL
TfGM,Transport,Capital Costs - Engineering Support Services,19/04/2017,5100108308,"3,750.00",MARSTON & GRUNDY LLP
TfGM,Transport,Sustainable Travel Grant,19/04/2017,1900053377,"10,000.00",MATCHSTICK MEN LTD
TfGM,Transport,Concessionary Reimbursement,19/04/2017,1900053482,506.00,METRO TAXIS LTD
TfGM,Transport,Concessionary Reimbursement,19/04/2017,1900053500,"2,400.00",METRO TAXIS LTD
TfGM,Transport,Concessionary Reimbursement,19/04/2017,1900053501,"1,408.00",METRO TAXIS LTD
TfGM,Transport,Capital Costs - Capital Project Main Contract Works,19/04/2017,5100108674,"24,541.75",METROLINK RATP DEV LTD
TfGM,Transport,Highway Safety Support Services,19/04/2017,5100108774,720.36,MIKE ABRAM
TfGM,Transport,Business Case Development,19/04/2017,5100108682,"5,737.50",MIKE BARTRAM LTD
TfGM,Transport,Business Case Development,19/04/2017,5100108683,"7,425.00",MIKE BARTRAM LTD
TfGM,Transport,Concessionary Reimbursement,19/04/2017,1900053515,988.00,MOTOWN LTD
TfGM,Transport,Concessionary Reimbursement,19/04/2017,1900053491,"1,065.00",NEXUS MOVE LTD
TfGM,Transport,Training,19/04/2017,5100108631,"2,075.00",NORTH WEST EMPLOYERS
TfGM,Transport,Training,19/04/2017,5100108655,"4,000.00",NORTH WEST EMPLOYERS
TfGM,Transport,Training,19/04/2017,5100108656,(800.00),NORTH WEST EMPLOYERS
TfGM,Transport,Training,19/04/2017,5100108717,475.00,NORTH WEST EMPLOYERS
TfGM,Transport,Programme and Project Management Services,19/04/2017,5100107623,"14,000.00",PENNA PLC
TfGM,Transport,Smart Ticketing,19/04/2017,5100108188,"2,500.00",PRACTICUS LIMITED
TfGM,Transport,Capital Costs - Smart Ticketing,19/04/2017,5100108206,"2,000.00",PRACTICUS LIMITED
TfGM,Transport,Temporary Vacancy Cover,19/04/2017,5100108773,"11,598.50",RACHEL J CONSULTANCY SERVICES LTD
TfGM,Transport,Concessionary Reimbursement,19/04/2017,1900053494,745.00,RAMMY PRIVATE HIRE
TfGM,Transport,"Rent, Rates & Service Charges",19/04/2017,1900053012,"8,504.50",ROCHDALE MBC
TfGM,Transport,"Rent, Rates & Service Charges",19/04/2017,1900053273,"42,050.99",ROCHDALE MBC
TfGM,Transport,"Rent, Rates & Service Charges",19/04/2017,1900053277,"37,601.53",ROCHDALE MBC
TfGM,Transport,Research Services,19/04/2017,5100108031,"15,835.00",RS CONSULTING LTD T/A BREAKING BLUE
TfGM,Transport,Traffic Signal Works,19/04/2017,5100108245,"8,906.59",SIEMENS PLC
TfGM,Transport,Traffic Signal Works,19/04/2017,5100108247,"6,305.19",SIEMENS PLC
TfGM,Transport,Traffic Signal Works,19/04/2017,5100108248,"6,937.99",SIEMENS PLC
TfGM,Transport,Traffic Signal Works,19/04/2017,5100108249,"6,619.36",SIEMENS PLC
TfGM,Transport,Security Services,19/04/2017,5100108704,"5,983.50",SOLUTIONS SK
TfGM,Transport,Design Support Services,19/04/2017,5100107808,"2,999.00",STEER DAVIES GLEEVE LTD
TfGM,Transport,Traffic and Transportation Surveys,19/04/2017,5100108420,"3,575.00",SUSTRANS LTD
TfGM,Transport,Capital Costs - Traffic and Transportation Surveys,19/04/2017,5100108421,"19,410.50",SUSTRANS LTD
TfGM,Transport,Research Services,19/04/2017,5100108172,"45,276.07",SYSTRA LTD
TfGM,Transport,"Rent, Rates & Service Charges",19/04/2017,1900053324,"2,143.60",TAMESIDE MBC
TfGM,Transport,Sustainable Travel Grant,19/04/2017,1900053039,"10,000.00",THE GUINNESS PARTNERSHIP
TfGM,Transport,Sustainable Travel Grant,19/04/2017,1900053376,"13,888.00",TOGETHER HOUSING GROUP
TfGM,Transport,Concessionary Reimbursement,19/04/2017,1900053499,576.00,TOWN TAXIS
TfGM,Transport,"Rent, Rates & Service Charges",19/04/2017,1900053335,"2,912.50",TRAFFORD MBC
TfGM,Transport,"Rent, Rates & Service Charges",19/04/2017,1900053339,"1,887.30",TRAFFORD MBC
TfGM,Transport,"Rent, Rates & Service Charges",19/04/2017,1900053341,"2,563.00",TRAFFORD MBC
TfGM,Transport,Cleaning,19/04/2017,5100108065,886.49,TUDOR CONTRACT CLEANERS LTD
TfGM,Transport,Cleaning,19/04/2017,5100108066,"8,815.10",TUDOR CONTRACT CLEANERS LTD
TfGM,Transport,Cleaning,19/04/2017,5100108067,550.33,TUDOR CONTRACT CLEANERS LTD
TfGM,Transport,Cleaning,19/04/2017,5100108068,"11,507.06",TUDOR CONTRACT CLEANERS LTD
TfGM,Transport,Capital Costs - Environmental & Ecological Support Services,19/04/2017,5100108071,660.00,TUDOR CONTRACT CLEANERS LTD
TfGM,Transport,Cleaning,19/04/2017,5100108072,"2,250.00",TUDOR CONTRACT CLEANERS LTD
TfGM,Transport,Cleaning,19/04/2017,5100108073,"1,500.00",TUDOR CONTRACT CLEANERS LTD
TfGM,Transport,Cleaning,19/04/2017,5100108075,"2,774.50",TUDOR CONTRACT CLEANERS LTD
TfGM,Transport,Cleaning,19/04/2017,5100108078,480.00,TUDOR CONTRACT CLEANERS LTD
TfGM,Transport,Cleaning,19/04/2017,5100108084,"1,486.71",TUDOR CONTRACT CLEANERS LTD
TfGM,Transport,Cleaning,19/04/2017,5100108087,685.20,TUDOR CONTRACT CLEANERS LTD
TfGM,Transport,Cleaning,19/04/2017,5100108092,"7,751.50",TUDOR CONTRACT CLEANERS LTD
TfGM,Transport,Cleaning,19/04/2017,5100108111,458.64,TUDOR CONTRACT CLEANERS LTD
TfGM,Transport,Cleaning,19/04/2017,5100108113,723.45,TUDOR CONTRACT CLEANERS LTD
TfGM,Transport,Cleaning,19/04/2017,5100108114,458.64,TUDOR CONTRACT CLEANERS LTD
TfGM,Transport,Cleaning,19/04/2017,5100108120,458.64,TUDOR CONTRACT CLEANERS LTD
TfGM,Transport,Cleaning,19/04/2017,5100108121,611.52,TUDOR CONTRACT CLEANERS LTD
TfGM,Transport,Cleaning,19/04/2017,5100108122,611.52,TUDOR CONTRACT CLEANERS LTD
TfGM,Transport,Print & Media,19/04/2017,5100108175,"4,900.00",UNIQUE CREATIVE COMMUNICATIONS
TfGM,Transport,Utilities & Energy,19/04/2017,1900052945,851.36,UNITED UTILITIES WATER PLC
TfGM,Transport,Utilities & Energy,19/04/2017,1900053003,"3,959.17",UNITED UTILITIES WATER PLC
TfGM,Transport,Utilities & Energy,19/04/2017,1900053210,"1,781.05",UNITED UTILITIES WATER PLC
TfGM,Transport,Capital Costs - Design Support Services,19/04/2017,5100108314,"6,461.00",URBAN VISION PARTNERSHIP LTD
TfGM,Transport,"Rent, Rates & Service Charges",19/04/2017,1900053269,"42,391.50",WIGAN COUNCIL
TfGM,Transport,"Rent, Rates & Service Charges",19/04/2017,1900053318,"23,590.75",WIGAN COUNCIL
TfGM,Transport,"Rent, Rates & Service Charges",19/04/2017,1900053320,745.60,WIGAN COUNCIL
TfGM,Transport,"Rent, Rates & Service Charges",19/04/2017,1900053322,"1,211.60",WIGAN COUNCIL
TfGM,Transport,"Rent, Rates & Service Charges",19/04/2017,1900053331,"1,491.20",WIGAN COUNCIL
TfGM,Transport,Project Management Services,19/04/2017,5100108453,"14,540.43",WSP UK LTD
TfGM,Transport,Capital Costs - Project Management Services,19/04/2017,5100108463,"8,654.76",WSP UK LTD
TfGM,Transport,Capital Costs - Project Management Services,19/04/2017,5100108464,"54,101.41",WSP UK LTD
TfGM,Transport,Capital Costs - Programme and Project Management Services,19/04/2017,5100108465,"4,050.00",WSP UK LTD
TfGM,Transport,Capital Costs - Programme and Project Management Services,21/04/2017,5100108556,"8,815.00",ACUITY PROGRAMME MANAGEMENT LTD
TfGM,Transport,Planning Support Services,21/04/2017,5100108152,"3,404.94",AECOM LTD
TfGM,Transport,Business Case Development,21/04/2017,5100108187,486.00,AECOM LTD
TfGM,Transport,Community Engagement Services,21/04/2017,5100108324,"25,811.67",AECOM LTD
TfGM,Transport,Community Engagement Services,21/04/2017,5100108356,"47,679.00",AECOM LTD
TfGM,Transport,Business Case Development,21/04/2017,5100108358,"9,335.06",AECOM LTD
TfGM,Transport,Design Support Services,21/04/2017,5100108359,"7,451.21",AECOM LTD
TfGM,Transport,Heavy Rail Support Services,21/04/2017,5100108615,"4,436.40",AMEY (CONSULTING & RAIL)
TfGM,Transport,Capital Costs - Environmental & Ecological Support Services,21/04/2017,5100108459,"1,131.07",ARCADIS CONSULTING (UK) LTD
TfGM,Transport,Capital Costs - Environmental & Ecological Support Services,21/04/2017,5100108461,770.00,ARCADIS CONSULTING (UK) LTD
TfGM,Transport,Capital Costs - Project Management Services,21/04/2017,5100108301,"12,075.00",ATKINS CONSULTANTS LTD
TfGM,Corporate Services,Procurement Services,21/04/2017,5100108370,"13,750.00",ATKINS CONSULTANTS LTD
TfGM,Transport,Capital Costs - Engineering Support Services,21/04/2017,5100108653,"1,545.60",ATKINS CONSULTANTS LTD
TfGM,Transport,Print & Media,21/04/2017,5100108865,550.00,AURA GRAPHICS LIMITED
TfGM,Transport,Capital Costs - Legal Services,21/04/2017,5100108881,"4,200.00",AXIS PROPERTY CONSULTANCY LLP
TfGM,Transport,Print & Media,21/04/2017,5100108383,"1,250.00",BEELINE PROMOTIONAL PRODUCTS
TfGM,Transport,Print & Media,21/04/2017,5100108384,"1,181.00",BEELINE PROMOTIONAL PRODUCTS
TfGM,Transport,Print & Media,21/04/2017,5100108747,537.00,BOSS DIRECT
TfGM,Corporate Services,Computer and Communications Equipment,21/04/2017,5100108832,"9,353.12",BT PLC
TfGM,Transport,Traffic Signal Works,21/04/2017,5100108672,"6,083.00",BT REDCARE
TfGM,Transport,Environmental & Ecological Support Services,21/04/2017,5100108688,"4,135.00",BUREAU VERITAS UK LTD
TfGM,Transport,Highway Safety Support Services,21/04/2017,5100108531,"2,638.25",BURY MBC
TfGM,Transport,Highway Safety Support Services,21/04/2017,5100108532,"20,000.00",BURY MBC
TfGM,Transport,Driver Intervention Course Delivery Costs,21/04/2017,5100108759,"5,600.00",BURY MBC
TfGM,Transport,IS Support and Licences,21/04/2017,5100108148,796.36,BYTES SOFTWARE SERVICES LTD
TfGM,Corporate Services,IS Software & Maintenance,21/04/2017,5100108355,"4,250.00",BYTES SOFTWARE SERVICES LTD
TfGM,Transport,Print & Media,21/04/2017,5100108826,"5,902.14",CARAT MEDIA UK LIMITED
TfGM,Transport,Print & Media,21/04/2017,5100108551,"2,147.00",CHAPEL PRESS LTD
TfGM,Transport,Print & Media,21/04/2017,5100108552,594.00,CHAPEL PRESS LTD
TfGM,Transport,Print & Media,21/04/2017,5100108553,514.00,CHAPEL PRESS LTD
TfGM,Transport,Print & Media,21/04/2017,5100108554,950.00,CHAPEL PRESS LTD
TfGM,Transport,Print & Media,21/04/2017,5100108555,"1,770.00",CHAPEL PRESS LTD
TfGM,Transport,Print & Media,21/04/2017,5100108557,"8,717.00",CHAPEL PRESS LTD
TfGM,Transport,Print & Media,21/04/2017,5100108581,"7,072.00",CHAPEL PRESS LTD
TfGM,Transport,Property & Equipment Maintenance,21/04/2017,5100108548,"9,070.00",CHARGE YOUR CAR LTD
TfGM,Corporate Services,IS Support Services,21/04/2017,5100108628,"9,500.00",CHASSAM RECRUITMENT
TfGM,Corporate Services,IS Software & Maintenance,21/04/2017,5100108657,"30,915.00",CUBIC TRANSPORTATION SYSTEMS (ITMS)
TfGM,Transport,Business Case Development,21/04/2017,5100108378,"2,550.00",DURDAR CONSULTING LTD
TfGM,Transport,Print & Media,21/04/2017,5100108798,"1,830.55",ESP SYSTEX LTD
TfGM,Transport,Capital Costs - IS Support Services,21/04/2017,5100108588,900.00,EXPERIS LTD
TfGM,Transport,Property & Equipment Maintenance,21/04/2017,5100107855,"2,258.15",FES FM LTD
TfGM,Transport,Property & Equipment Maintenance,21/04/2017,5100108328,461.89,FES FM LTD
TfGM,Transport,Capital Costs - Programme and Project Management Services,21/04/2017,5100108764,"8,470.00",FIRCROFT ENGINEERING SERVICES LTD
TfGM,Transport,Driver Intervention Course Delivery Costs,21/04/2017,5100108538,"1,312.80",G WEBSTER
TfGM,Transport,Driver Intervention Course Delivery Costs,21/04/2017,5100108547,"1,094.00",G WEBSTER
TfGM,Transport,Driver Intervention Course Delivery Costs,21/04/2017,5100108338,"1,094.00",G WHITWORTH
TfGM,Transport,Driver Intervention Course Delivery Costs,21/04/2017,5100108478,"1,531.60",GARY CAMPBELL LTD
TfGM,Transport,Cycling Support Services,21/04/2017,5100108603,"1,080.00",GET ON C.I.C
TfGM,Transport,Capital Costs - Traffic Signal Works,21/04/2017,5100108444,"12,995.77",GREATER MANCHESTER COMBINED AUTHORI
TfGM,Transport,Capital Costs - Traffic Signal Works,21/04/2017,5100108445,966.92,GREATER MANCHESTER COMBINED AUTHORI
TfGM,Transport,Capital Costs - Traffic Signal Works,21/04/2017,5100108447,750.00,GREATER MANCHESTER COMBINED AUTHORI
TfGM,Transport,Capital Costs - Traffic Signal Works,21/04/2017,5100108448,"1,510.00",GREATER MANCHESTER COMBINED AUTHORI
TfGM,Transport,Capital Costs - Traffic Signal Works,21/04/2017,5100108449,750.00,GREATER MANCHESTER COMBINED AUTHORI
TfGM,Transport,Capital Costs - Traffic Signal Works,21/04/2017,5100108450,"1,500.00",GREATER MANCHESTER COMBINED AUTHORI
TfGM,Transport,Capital Costs - Engineering Support Services,21/04/2017,5100108479,"12,167.64",GUTTERIDGE HASKINS AND DAVEY LTD
TfGM,Transport,Smart Ticketing,21/04/2017,5100107884,"2,127.50",HAYS SPECIALIST RECRUITMENT LTD
TfGM,Corporate Services,Financial and Commercial Support Services,21/04/2017,5100107885,"1,380.30",HAYS SPECIALIST RECRUITMENT LTD
TfGM,Corporate Services,Financial and Commercial Support Services,21/04/2017,5100107975,"1,242.27",HAYS SPECIALIST RECRUITMENT LTD
TfGM,Transport,Smart Ticketing,21/04/2017,5100107976,"1,702.00",HAYS SPECIALIST RECRUITMENT LTD
TfGM,Transport,Smart Ticketing,21/04/2017,5100108578,"2,127.50",HAYS SPECIALIST RECRUITMENT LTD
TfGM,Transport,Smart Ticketing,21/04/2017,5100108579,"1,437.50",HAYS SPECIALIST RECRUITMENT LTD
TfGM,Corporate Services,Temporary Vacancy Cover,21/04/2017,5100108580,"1,380.30",HAYS SPECIALIST RECRUITMENT LTD
TfGM,Transport,Driver Intervention Course Delivery Costs,21/04/2017,5100108537,"2,085.42",HOLIDAY INN MANCHESTER CENTRAL PARK
TfGM,Transport,Driver Intervention Course Delivery Costs,21/04/2017,5100108721,"4,583.33",IAM ROADSMART
TfGM,Transport,IS Support Services,21/04/2017,5100108722,600.00,IAM ROADSMART
TfGM,Transport,IS Support & Maintenance,21/04/2017,5100108843,680.00,ICOMERA UK LTD
TfGM,Transport,Cycle Training Scheme,21/04/2017,5100108334,"1,550.00",ICYCLE LTD
TfGM,Transport,Cycling Support Services,21/04/2017,5100108392,"5,280.00",ICYCLE LTD
TfGM,Transport,Cycling Support Services,21/04/2017,5100108454,"1,276.00",ICYCLE LTD
TfGM,Corporate Services,IS Support Services,21/04/2017,5100108372,"2,473.00",INTERCONNECT NETWORK SYSTEMS LTD
TfGM,Corporate Services,IS Support Services,21/04/2017,5100108373,"5,000.00",INTERCONNECT NETWORK SYSTEMS LTD
TfGM,Corporate Services,IS Software & Maintenance,21/04/2017,5100108395,"7,112.07",INTRO NOVO LTD
TfGM,Transport,Driver Intervention Course Delivery Costs,21/04/2017,5100108574,"1,422.20",J AIREY
TfGM,Transport,Business Case Development,21/04/2017,5100108330,"44,347.50",JACOBS UK LTD
TfGM,Transport,Environmental & Ecological Support Services,21/04/2017,5100108331,"47,549.64",JACOBS UK LTD
TfGM,Transport,Environmental & Ecological Support Services,21/04/2017,5100108362,"15,247.40",JACOBS UK LTD
TfGM,Transport,Revenue Protection Services,21/04/2017,5100108621,"34,095.79",JAMIESON CONTRACTING (NORTH WEST) L
TfGM,Transport,Urban Feasibility Support,21/04/2017,5100108171,"16,800.60",JMP CONSULTANTS LTD
TfGM,Transport,Concessionary Reimbursement,21/04/2017,1900053534,"1,395.00",JR'S PRIVATE HIRE
TfGM,Transport,Print & Media,21/04/2017,5100108406,"1,070.00",KILOGRAMME LIMITED
TfGM,Transport,Capital Costs - Land Acquisition and Related Costs,21/04/2017,5100108382,455.00,LESLIE ROBERTS AND CO LTD
TfGM,Transport,Capital Costs - Property Support Services,21/04/2017,5100108488,840.00,LESLIE ROBERTS AND CO LTD
TfGM,Transport,Telecommunications,21/04/2017,5100108755,"29,568.27",MANCHESTER CITY COUNCIL
TfGM,Transport,Print & Media,21/04/2017,5100108028,"3,250.00",MARGIE AND ME LIMITED
TfGM,Transport,Driver Intervention Course Delivery Costs,21/04/2017,1900053047,"1,641.00",MARK BRENNAN DRIVER TRAINING LIMITE
TfGM,Transport,Print & Media,21/04/2017,5100108515,"27,000.00",MARKETING MANCHESTER
TfGM,Transport,Capital Costs - Engineering Support Services,21/04/2017,5100108642,"13,450.00",MASON CONSULTANTS LTD
TfGM,Corporate Services,IS Support Services,21/04/2017,5100065194,"15,121.20",MESSAGELABS LTD
TfGM,Corporate Services,IS Support Services,21/04/2017,5100065195,"(17,239.86)",MESSAGELABS LTD
TfGM,Transport,Concessionary Reimbursement,21/04/2017,1900053531,"1,196.00",METRO CARS BOLTON
TfGM,Transport,Business Case Development,21/04/2017,5100108871,"5,400.00",MIKE BARTRAM LTD
TfGM,Transport,Capital Costs - Smart Ticketing,21/04/2017,5100108636,"15,583.20",MISKIMMIN GROUP LTD
TfGM,Transport,Research Services,21/04/2017,5100108173,"79,108.76",MORI LTD
TfGM,Transport,Capital Costs - Programme and Project Management Services,21/04/2017,5100108220,"1,591.00",MORSON INTERNATIONAL
TfGM,Transport,Capital Costs - Programme and Project Management Services,21/04/2017,5100108221,"1,548.00",MORSON INTERNATIONAL
TfGM,Transport,Capital Costs - Programme and Project Management Services,21/04/2017,5100108222,"6,450.00",MORSON INTERNATIONAL
TfGM,Transport,Programme and Project Management Services,21/04/2017,5100108225,"2,210.00",MORSON INTERNATIONAL
TfGM,Corporate Services,IS Support Services,21/04/2017,5100108612,"1,827.52",MORSON INTERNATIONAL
TfGM,Transport,Capital Costs - Mechanical & Engineering Support Services,21/04/2017,5100108799,695.00,MOTT MACDONALD LTD
TfGM,Transport,Capital Costs - Capital Project Main Contract Works,21/04/2017,5100108882,"4,345,426.87",MPACT THALES
TfGM,Corporate Services,IS Software & Maintenance,21/04/2017,5100108667,"20,530.00",NETCALL TELECOM LIMITED
TfGM,Transport,Capital Costs - Project Support Services,21/04/2017,5100108645,"2,519.35",NETWORK RAIL
TfGM,Transport,Business Case Development,21/04/2017,5100108132,"3,375.00",NJJ TECHNICAL SERVICES LTD
TfGM,Transport,Property & Equipment Maintenance,21/04/2017,5100108414,"26,418.53",NOVUS PROPERTY SOLUTIONS LTD
TfGM,Transport,Property & Equipment Maintenance,21/04/2017,5100108415,"17,576.59",NOVUS PROPERTY SOLUTIONS LTD
TfGM,Transport,Property & Equipment Maintenance,21/04/2017,5100108416,"30,073.00",NOVUS PROPERTY SOLUTIONS LTD
TfGM,Transport,Property & Equipment Maintenance,21/04/2017,5100108417,"1,703.21",NOVUS PROPERTY SOLUTIONS LTD
TfGM,Transport,Property & Equipment Maintenance,21/04/2017,5100108418,"1,131.00",NOVUS PROPERTY SOLUTIONS LTD
TfGM,Transport,Print & Media,21/04/2017,5100108779,"11,380.85",OMEGA PRINT AND DESIGN LTD
TfGM,Transport,Driver Intervention Course Delivery Costs,21/04/2017,5100108806,"1,422.20",P MARTIN
TfGM,Transport,Print & Media,21/04/2017,5100108861,"13,275.66",PARAGON GROUP UK LTD (A/CS REC)
TfGM,Corporate Services,IS Support Services,21/04/2017,5100108351,"1,800.00",PARAGON TELECOMS LTD
TfGM,Transport,Capital Costs - Programme and Project Management Services,21/04/2017,5100108568,"2,058.55",PERTEMPS PROFESSIONAL STAFFING LTD
TfGM,Transport,Traffic and Transportation Surveys,21/04/2017,5100108629,"1,468.80",PLUSWORK LTD
TfGM,Transport,Traffic and Transportation Surveys,21/04/2017,5100108639,"3,514.19",PLUSWORK LTD
TfGM,Transport,Traffic and Transportation Surveys,21/04/2017,5100108640,"1,861.20",PLUSWORK LTD
TfGM,Transport,Traffic and Transportation Surveys,21/04/2017,5100108677,622.99,PLUSWORK LTD
TfGM,Transport,Driver Intervention Course Delivery Costs,21/04/2017,5100108543,984.60,R LORD
TfGM,Transport,Driver Intervention Course Delivery Costs,21/04/2017,5100108401,437.60,R MOTT
TfGM,Transport,Heavy Rail Support Services,21/04/2017,5100108838,"176,772.75",RAIL NORTH LTD
TfGM,Transport,Temporary Vacancy Cover,21/04/2017,1900053118,"2,845.30",REED SPECIALIST RECRUITMENT LTD
TfGM,Transport,Print & Media,21/04/2017,5100108272,"4,500.00",REPUTATION NORTH LTD
TfGM,Transport,Training,21/04/2017,5100108389,907.00,RICARDO-AEA LTD
TfGM,Transport,Temporary Vacancy Cover,21/04/2017,5100108155,768.86,ROBERT WALTERS PLC
TfGM,Transport,Temporary Vacancy Cover,21/04/2017,5100108156,561.30,ROBERT WALTERS PLC
TfGM,Transport,Business Case Development,21/04/2017,5100108157,"2,385.00",ROBERT WALTERS PLC
TfGM,Transport,Capital Costs - Smart Ticketing,21/04/2017,5100108158,"1,980.99",ROBERT WALTERS PLC
TfGM,Transport,Capital Costs - Smart Ticketing,21/04/2017,5100108159,"2,201.10",ROBERT WALTERS PLC
TfGM,Transport,Capital Costs - Smart Ticketing,21/04/2017,5100108160,"2,340.00",ROBERT WALTERS PLC
TfGM,Transport,Capital Costs - Smart Ticketing,21/04/2017,5100108161,"2,250.00",ROBERT WALTERS PLC
TfGM,Transport,Capital Costs - Smart Ticketing,21/04/2017,5100108165,"2,175.00",ROBERT WALTERS PLC
TfGM,Transport,Business Case Development,21/04/2017,5100108167,"3,000.00",ROBERT WALTERS PLC
TfGM,Transport,Business Case Development,21/04/2017,5100108168,"3,000.00",ROBERT WALTERS PLC
TfGM,Corporate Services,IS Support Services,21/04/2017,5100108412,"1,650.00",RULLION ENGINEERING LTD
TfGM,Corporate Services,IS Software & Maintenance,21/04/2017,5100108229,"3,715.00",SATISNET LIMITED
TfGM,Transport,Print & Media,21/04/2017,5100108743,544.96,SERVICEPOINT UK
TfGM,Transport,Capital Costs - Signage Costs,21/04/2017,5100108562,"6,516.15",SIGNUM 4 LTD T/A GR LABELS LTD
TfGM,Transport,Business Case Development,21/04/2017,5100108570,"8,255.00",SJC BUSINESS CONSULTANCY LTD
TfGM,Transport,Business Case Development,21/04/2017,5100108571,"1,270.00",SJC BUSINESS CONSULTANCY LTD
TfGM,Transport,Capital Costs - Utility & Service Diversion Costs,21/04/2017,5100108286,"141,646.18",SSE TELECOM ALTERATIONS
TfGM,Transport,Supported Bus Services,21/04/2017,1900053541,"26,400.00",STOTTS TOURS
TfGM,Corporate Services,Computer and Communications Equipment,21/04/2017,5100108516,685.16,TANGIBLE BENEFIT LTD
TfGM,Transport,Traffic Signal Works,21/04/2017,5100108476,420.00,TDC SYSTEMS LTD
TfGM,Transport,Cycle Training Scheme,21/04/2017,5100108364,595.00,THE BRITISH CYCLING FEDERATION LTD
TfGM,Transport,Print & Media,21/04/2017,5100108352,722.00,THE PUBLICITY CENTRE
TfGM,Corporate Services,Computer and Communications Equipment,21/04/2017,5100108227,"9,367.00",TOTAL COMPUTERS LTD
TfGM,Corporate Services,Printer Consumables,21/04/2017,5100108271,"3,686.88",TOTAL COMPUTERS LTD
TfGM,Corporate Services,Computer and Communications Equipment,21/04/2017,5100108404,"8,119.00",TOTAL COMPUTERS LTD
TfGM,Transport,Cleaning,21/04/2017,5100108379,"10,113.19",TUDOR CONTRACT CLEANERS LTD
TfGM,Transport,Driver Intervention Course Delivery Costs,21/04/2017,5100108723,"265,940.00",UKROED LTD
TfGM,Transport,Capital Costs - Project Management Services,21/04/2017,5100107137,"12,209.16",URBAN VISION PARTNERSHIP LTD
TfGM,Transport,Capital Costs - Project Management Services,21/04/2017,5100108315,"2,848.67",URBAN VISION PARTNERSHIP LTD
TfGM,Transport,Business Case Development,21/04/2017,5100108270,"11,500.00",VEXTRIX MANAGEMENT LIMITED
TfGM,Transport,IS Support Services,21/04/2017,5100108273,"65,745.00",VIX TECHNOLOGY LTD
TfGM,Transport,IS Support & Maintenance,21/04/2017,5100108791,"(1,312.67)",VIX TECHNOLOGY LTD
TfGM,Transport,IS Support & Maintenance,21/04/2017,5100108792,"26,253.42",VIX TECHNOLOGY LTD
TfGM,Transport,Project Management Services,21/04/2017,5100108466,"7,957.10",WSP UK LTD
TfGM,Transport,Planning Support Services,21/04/2017,5100108467,765.00,WSP UK LTD
TfGM,Transport,Programme and Project Management Services,21/04/2017,5100108468,"60,209.55",WSP UK LTD
TfGM,Transport,Project Management Services,21/04/2017,5100108469,"11,479.42",WSP UK LTD
TfGM,Transport,Capital Costs - Project Management Services,21/04/2017,5100108470,"240,268.25",WSP UK LTD
TfGM,Transport,Design Support Services,24/04/2017,5100108558,"2,500.00",AECOM LTD
TfGM,Transport,Paper and Printing Consumables,24/04/2017,5100108360,"1,669.11",ANTALIS LTD
TfGM,Transport,Paper and Printing Consumables,24/04/2017,5100108559,"2,503.67",ANTALIS LTD
TfGM,Transport,Paper and Printing Consumables,24/04/2017,5100108638,834.56,ANTALIS LTD
TfGM,Transport,Environmental & Ecological Support Services,24/04/2017,5100108546,"2,850.00",ATKINS CONSULTANTS LTD
TfGM,Transport,Training,24/04/2017,5100108646,650.00,BOSS TRAINING LTD
TfGM,Transport,Capital Costs - Capital Project Main Contract Works,24/04/2017,5100108837,"21,014.26",CAIRN CROSS CIVIL ENGINEERING LTD
TfGM,Transport,Equipment and Electrical Consumables,24/04/2017,5100108616,"2,000.00",CARAT MEDIA UK LIMITED
TfGM,Transport,Driver Intervention Course Delivery Costs,24/04/2017,5100108534,984.60,CPC TRAINING PROVIDER LTD
TfGM,Transport,Cycle Training Scheme,24/04/2017,5100108550,"1,435.00",DAVID TRAINOR T/A REVOLVEMCR
TfGM,Transport,Property & Equipment Maintenance,24/04/2017,5100108147,781.44,FIELDWAY GROUP
TfGM,Transport,Property & Equipment Maintenance,24/04/2017,5100108853,"3,165.00",FIELDWAY GROUP
TfGM,Transport,Property & Equipment Maintenance,24/04/2017,5100108854,"8,216.30",FIELDWAY GROUP
TfGM,Transport,Property & Equipment Maintenance,24/04/2017,5100108855,"4,580.63",FIELDWAY GROUP
TfGM,Transport,Property & Equipment Maintenance,24/04/2017,5100108856,"3,865.33",FIELDWAY GROUP
TfGM,Transport,Driver Intervention Course Delivery Costs,24/04/2017,5100108541,"3,737.50",HOLIDAY INN MANCHESTER EAST
TfGM,Transport,Project Support Services,24/04/2017,5100108410,"15,506.46",LOCAL PARTNERSHIPS LLP
TfGM,Transport,Training,24/04/2017,5100108684,"1,375.00",MAKINSON PROGRESS LIMITED
TfGM,Transport,"Rent, Rates & Service Charges",24/04/2017,1900053464,"1,168.30",MANCHESTER CITY COUNCIL
TfGM,Transport,"Rent, Rates & Service Charges",24/04/2017,1900053468,570.20,MANCHESTER CITY COUNCIL
TfGM,Transport,IS Support Services,24/04/2017,5100108708,"5,500.00",MAPSAR LTD
TfGM,Transport,IS Support Services,24/04/2017,5100108767,"6,050.00",MAPSAR LTD
TfGM,Corporate Services,Audit and Financial Services,24/04/2017,5100108889,"29,250.00",MAZARS LLP
TfGM,Transport,Metrolink Operating Costs,24/04/2017,5100108841,"824,709.00",METROLINK RATP DEV LTD
TfGM,Transport,Print & Media,24/04/2017,5100108789,"2,907.99",MIRAGE DISPLAY LTD
TfGM,Transport,Capital Costs - Capital Project Main Contract Works,24/04/2017,5100108784,"196,046.00",NETWORK RAIL
TfGM,Transport,Smart Ticketing,24/04/2017,5100108584,"2,500.00",PRACTICUS LIMITED
TfGM,Transport,Capital Costs - Smart Ticketing,24/04/2017,5100108585,"2,000.00",PRACTICUS LIMITED
TfGM,Transport,Smart Ticketing,24/04/2017,5100108820,"1,842.50",PRACTICUS LIMITED
TfGM,Transport,Smart Ticketing,24/04/2017,5100108899,"2,500.00",PRACTICUS LIMITED
TfGM,Transport,Capital Costs - Travel and Accommodation,24/04/2017,1900053557,575.15,REDACTED
TfGM,Transport,Capital Costs - Smart Ticketing,24/04/2017,5100108890,"2,175.00",ROBERT WALTERS PLC
TfGM,Transport,"Rent, Rates & Service Charges",24/04/2017,1900053457,"2,437.50",STOCKPORT MBC
TfGM,Transport,"Rent, Rates & Service Charges",24/04/2017,1900053465,"1,744.01",STOCKPORT MBC
TfGM,Transport,"Rent, Rates & Service Charges",24/04/2017,1900053466,"41,673.00",TAMESIDE MBC
TfGM,Transport,"Rent, Rates & Service Charges",24/04/2017,1900053537,"1,491.20",TAMESIDE MBC
TfGM,Transport,"Rent, Rates & Service Charges",24/04/2017,1900053467,"6,490.70",TRAFFORD MBC
TfGM,Transport,Cleaning,24/04/2017,5100108903,"10,113.19",TUDOR CONTRACT CLEANERS LTD
TfGM,Transport,Utilities & Energy,24/04/2017,1900053539,"3,959.17",UNITED UTILITIES WATER PLC
TfGM,Transport,Utilities & Energy,24/04/2017,1900053549,631.90,UNITED UTILITIES WATER PLC
TfGM,Transport,"Rent, Rates & Service Charges",24/04/2017,1900053458,"1,474.70",WIGAN COUNCIL
TfGM,Transport,"Rent, Rates & Service Charges",24/04/2017,1900053459,"1,474.70",WIGAN COUNCIL
TfGM,Transport,"Rent, Rates & Service Charges",24/04/2017,1900053460,"1,474.70",WIGAN COUNCIL
TfGM,Transport,"Rent, Rates & Service Charges",24/04/2017,1900053461,"1,474.70",WIGAN COUNCIL
TfGM,Transport,"Rent, Rates & Service Charges",24/04/2017,1900053462,"3,189.81",WIGAN COUNCIL
TfGM,Corporate Services,Computer and Printing Hardware,24/04/2017,5100108718,"9,580.19",XMA LIMITED
TfGM,Transport,Capital Costs - Legal Services,25/04/2017,5100108610,"1,250.00",ACOUSTIC & ENGINEERING CONSULTANTS
TfGM,Transport,Paper and Printing Consumables,25/04/2017,5100108599,834.56,ANTALIS LTD
TfGM,Transport,Capital Costs - Print & Media,25/04/2017,5100108699,"1,149.00",ASTRA SIGNS
TfGM,Transport,Capital Costs - Project Management Services,25/04/2017,5100108300,"16,162.50",ATKINS CONSULTANTS LTD
TfGM,Transport,Cycle Training Scheme,25/04/2017,5100108019,"4,130.00",BIKERIGHT FUTURES CIC
TfGM,Corporate Services,Computer and Communications Equipment,25/04/2017,5100108849,"21,251.00",BT PLC
TfGM,Transport,Security Services,25/04/2017,5100108975,"12,115.51",CARLISLE SECURITY SERVICES LTD
TfGM,Transport,Traffic and Transportation Surveys,25/04/2017,5100108910,"1,075.00",CTS TRAFFIC & TRANSPORTATION
TfGM,Transport,Cycle Training Scheme,25/04/2017,5100108917,512.91,EASTLANDS TRUST
TfGM,Transport,Legal Services,25/04/2017,5100108944,"13,012.72",EVERSHEDS SUTHERLAND (INTERNATIONAL
TfGM,Transport,Vehicle Repairs & Maintenance,25/04/2017,5100107483,614.25,HJS EMISSION TECHNOLOGY GMBH CO.KH
TfGM,Transport,Capital Costs - Capital Project Main Contract Works,25/04/2017,5100108968,"488,306.78",KIER CONSTRUCTION - NORTHERN
TfGM,Transport,Business Case Development,25/04/2017,5100108993,"32,200.00",KPMG
TfGM,Transport,Print & Media,25/04/2017,5100108750,"1,039.27",MANCHESTER CITY COUNCIL
TfGM,Transport,Replacement Bus Services,25/04/2017,5100108180,"19,745.00",METROLINK RATP DEV LTD
TfGM,Transport,Metrolink Operating Costs,25/04/2017,5100108894,"420,401.00",METROLINK RATP DEV LTD
TfGM,Transport,Metrolink Operating Costs,25/04/2017,5100108973,"1,554,137.00",METROLINK RATP DEV LTD
TfGM,Transport,Metrolink Operating Costs,25/04/2017,5100108974,"349,032.00",METROLINK RATP DEV LTD
TfGM,Transport,Capital Costs - Programme and Project Management Services,25/04/2017,5100108714,"1,612.50",MORSON INTERNATIONAL
TfGM,Transport,Capital Costs - Programme and Project Management Services,25/04/2017,5100108715,"1,935.00",MORSON INTERNATIONAL
TfGM,Corporate Services,IS Support Services,25/04/2017,5100108728,"2,284.40",MORSON INTERNATIONAL
TfGM,Transport,Programme and Project Management Services,25/04/2017,5100108731,"2,210.00",MORSON INTERNATIONAL
TfGM,Transport,Property & Equipment Maintenance,25/04/2017,5100108644,"8,840.46",MOTT MACDONALD LTD
TfGM,Transport,Planning Support Services,25/04/2017,5100108787,"6,897.00",MOTT MACDONALD LTD
TfGM,Transport,Metrolink Operating Costs,25/04/2017,5100108988,"303,937.99",MPACT THALES
TfGM,Transport,Metrolink Operating Costs,25/04/2017,5100108989,"83,011.31",MPACT THALES
TfGM,Transport,Metrolink Operating Costs,25/04/2017,5100108990,"209,486.50",MPACT THALES
TfGM,Transport,Programme and Project Management Services,25/04/2017,5100108737,"15,750.00",PENNA PLC
TfGM,Transport,Traffic and Transportation Surveys,25/04/2017,5100108765,601.39,PLUSWORK LTD
TfGM,Transport,Traffic and Transportation Surveys,25/04/2017,5100108778,604.80,PLUSWORK LTD
TfGM,Transport,Traffic and Transportation Surveys,25/04/2017,5100108780,999.13,PLUSWORK LTD
TfGM,Transport,Business Case Development,25/04/2017,5100108740,"2,240.00",RULLION ENGINEERING LTD
TfGM,Corporate Services,IS Support Services,25/04/2017,5100108741,"2,200.00",RULLION ENGINEERING LTD
TfGM,Transport,Capital Costs - Print & Media,25/04/2017,5100108914,943.00,SERVICEPOINT UK
TfGM,Transport,Capital Costs - Print & Media,25/04/2017,5100108915,"1,106.23",SERVICEPOINT UK
TfGM,Transport,Print & Media,25/04/2017,5100108025,"3,600.00",SOURCE THAT LIMITED
TfGM,Transport,Utilities & Energy,25/04/2017,1900053590,594.59,SWALEC
TfGM,Transport,Utilities & Energy,25/04/2017,1900053592,"49,821.63",SWALEC
TfGM,Transport,Utilities & Energy,25/04/2017,1900053597,"2,787.12",SWALEC
TfGM,Transport,Capital Costs - Capital Project Main Contract Works,25/04/2017,5100108958,"11,268.00",THALES TRANSPORT & SECURITY LTD
TfGM,Transport,Capital Costs - Capital Project Main Contract Works,25/04/2017,5100108959,"130,000.00",THALES TRANSPORT & SECURITY LTD
TfGM,Transport,Capital Costs - IS Support Services,25/04/2017,5100108960,573.00,THALES TRANSPORT & SECURITY LTD
TfGM,Transport,Capital Costs - Capital Project Main Contract Works,25/04/2017,5100108961,"3,241.00",THALES TRANSPORT & SECURITY LTD
TfGM,Transport,Capital Costs - Capital Project Main Contract Works,25/04/2017,5100108962,"9,594.00",THALES TRANSPORT & SECURITY LTD
TfGM,Transport,Property & Equipment Maintenance,25/04/2017,5100108964,"5,000.00",THALES TRANSPORT & SECURITY LTD
TfGM,Transport,Capital Costs - Capital Project Main Contract Works,25/04/2017,5100108965,"22,964.00",THALES TRANSPORT & SECURITY LTD
TfGM,Transport,Capital Costs - Capital Project Main Contract Works,25/04/2017,5100108966,"9,670.00",THALES TRANSPORT & SECURITY LTD
TfGM,Transport,Capital Costs - Capital Project Main Contract Works,25/04/2017,5100108967,"28,273.00",THALES TRANSPORT & SECURITY LTD
TfGM,Transport,Equipment Maintenance,25/04/2017,5100108943,"5,206.25",TRANSPORT SIMULATION SYSTEMS LTD
TfGM,Transport,IS Support & Maintenance,25/04/2017,5100108942,"7,894.38",VIX TECHNOLOGY LTD
TfGM,Transport,Property & Equipment Maintenance,25/04/2017,5100108662,"9,633.00",WATER DIRECT LTD
TfGM,Transport,Environmental & Ecological Support Services,25/04/2017,5100107961,"1,722.50",WYG ENV PLANNING TRANSPORT LTD
TfGM,Transport,Vehicle Costs,26/04/2017,1200043774,870.58,ALLSTAR
TfGM,Transport,Capital Costs - IS Support Services,26/04/2017,5100108494,"19,125.00",SCHEIDT & BACHMANN GMBH
TfGM,Transport,Capital Costs - IS Support Services,26/04/2017,5100108495,"36,120.00",SCHEIDT & BACHMANN GMBH
TfGM,Transport,Metrolink Operating Costs,26/04/2017,5100108497,"10,000.00",SCHEIDT & BACHMANN GMBH
TfGM,Transport,Metrolink Operating Costs,26/04/2017,5100108500,"12,656.82",SCHEIDT & BACHMANN GMBH
TfGM,Transport,Metrolink Operating Costs,26/04/2017,5100109029,"103,872.00",SCHEIDT & BACHMANN GMBH
TfGM,Transport,Paper and Printing Consumables,27/04/2017,5100108788,834.56,ANTALIS LTD
TfGM,Transport,Capital Costs - Programme and Project Management Services,27/04/2017,5100108864,"8,365.40",ARCADIS CONSULTING (UK) LTD
TfGM,Transport,Cycle Training Scheme,27/04/2017,5100108011,"2,025.00",BIKERIGHT FUTURES CIC
TfGM,Transport,Print & Media,27/04/2017,5100108802,688.00,BLUETREE DESIGN AND PRINT LTD
TfGM,Transport,Concessionary Reimbursement,27/04/2017,1900053694,"1,119.00",CAR 2000 (HEYWOOD) LTD
TfGM,Transport,Print & Media,27/04/2017,5100108575,"60,000.00",CARAT MEDIA UK LIMITED
TfGM,Transport,Print & Media,27/04/2017,5100108707,"30,000.00",CARAT MEDIA UK LIMITED
TfGM,Transport,Print & Media,27/04/2017,5100108793,"8,156.00",CREATIVE CONCERN
TfGM,Transport,Print & Media,27/04/2017,5100108794,"4,501.00",CREATIVE CONCERN
TfGM,Transport,Capital Costs - Ancillary Construction Costs,27/04/2017,5100109050,"31,745.08",CRUDEN PROPERTY SERVICES
TfGM,Transport,Cycling Support Services,27/04/2017,5100109071,"4,209.09",CYCLING UK
TfGM,Transport,Legal Services,27/04/2017,5100109007,"18,032.00",DLA PIPER UK LLP
TfGM,Transport,Smart Ticketing,27/04/2017,5100108805,"2,127.50",HAYS SPECIALIST RECRUITMENT LTD
TfGM,Transport,Smart Ticketing,27/04/2017,5100108807,"1,437.50",HAYS SPECIALIST RECRUITMENT LTD
TfGM,Transport,Capital Costs - Smart Ticketing,27/04/2017,5100108808,787.00,HAYS SPECIALIST RECRUITMENT LTD
TfGM,Transport,Capital Costs - Smart Ticketing,27/04/2017,5100108809,"1,967.50",HAYS SPECIALIST RECRUITMENT LTD
TfGM,Transport,Capital Costs - Smart Ticketing,27/04/2017,5100108810,"1,770.75",HAYS SPECIALIST RECRUITMENT LTD
TfGM,Transport,Capital Costs - Smart Ticketing,27/04/2017,5100108811,"1,967.50",HAYS SPECIALIST RECRUITMENT LTD
TfGM,Transport,Capital Costs - Smart Ticketing,27/04/2017,5100108812,"1,967.50",HAYS SPECIALIST RECRUITMENT LTD
TfGM,Transport,Capital Costs - Smart Ticketing,27/04/2017,5100108813,"1,967.50",HAYS SPECIALIST RECRUITMENT LTD
TfGM,Corporate Services,Temporary Vacancy Cover,27/04/2017,5100108814,"1,380.30",HAYS SPECIALIST RECRUITMENT LTD
TfGM,Transport,IS Support Services,27/04/2017,5100109044,600.00,IAM ROADSMART
TfGM,Transport,Traffic and Transportation Surveys,27/04/2017,5100108005,"4,100.00",INTELLIGENT DATA COLLECTION LTD
TfGM,Transport,Sustainable Transport Support Services,27/04/2017,5100108868,"1,920.00",JACOBS UK LTD
TfGM,Corporate Services,Procurement Services,27/04/2017,5100109061,"12,075.00",JULIAN BENSON ASSOCIATES LTD
TfGM,Corporate Services,Financial and Commercial Support Services,27/04/2017,5100109031,"6,610.00",KPMG
TfGM,Corporate Services,Financial and Commercial Support Services,27/04/2017,5100109032,"3,420.00",KPMG
TfGM,Transport,Business Case Development,27/04/2017,5100109033,"8,400.00",KPMG
TfGM,Transport,Driver Intervention Course Delivery Costs,27/04/2017,5100109065,"1,531.60",LISA ATKINSON DTS
TfGM,Transport,Capital Costs - Programme and Project Management Services,27/04/2017,5100108886,"1,856.25",MATCHTECH GROUP PLC
TfGM,Transport,Capital Costs - Programme and Project Management Services,27/04/2017,5100108887,"2,062.50",MATCHTECH GROUP PLC
TfGM,Transport,Metrolink Operating Costs,27/04/2017,5100107990,"8,600.00",METROLINK RATP DEV LTD
TfGM,Transport,Metrolink Operating Costs,27/04/2017,5100108177,"4,300.00",METROLINK RATP DEV LTD
TfGM,Transport,Property & Equipment Maintenance,27/04/2017,5100108349,"5,777.02",METROLINK RATP DEV LTD
TfGM,Transport,Replacement Bus Services,27/04/2017,5100108995,"7,242.00",METROLINK RATP DEV LTD
TfGM,Transport,Replacement Bus Services,27/04/2017,5100109010,"(6,035.00)",METROLINK RATP DEV LTD
TfGM,Transport,Metrolink Operating Costs,27/04/2017,5100109011,"(2,745.00)",METROLINK RATP DEV LTD
TfGM,Transport,Print & Media,27/04/2017,5100109012,"(1,224.00)",METROLINK RATP DEV LTD
TfGM,Transport,Planning Support Services,27/04/2017,5100108948,"12,033.20",MOTT MACDONALD LTD
TfGM,Transport,Research Services,27/04/2017,5100108951,"3,798.60",MOTT MACDONALD LTD
TfGM,Corporate Services,IS Consumables,27/04/2017,5100108801,811.82,ONLINE ERGONOMICS LTD
TfGM,Transport,Utilities & Energy,27/04/2017,1900053604,677.06,OPUS ENERGY
TfGM,Transport,Utilities & Energy,27/04/2017,1900053605,839.43,OPUS ENERGY
TfGM,Transport,Utilities & Energy,27/04/2017,1900053663,633.31,OPUS ENERGY
TfGM,Transport,Print & Media,27/04/2017,5100109019,"11,651.50",PARAGON GROUP UK LTD (A/CS REC)
TfGM,Corporate Services,IS Support Services,27/04/2017,5100108996,"2,800.00",PMA GLOBAL MOBILITY RESOURCES LTD
TfGM,Transport,Capital Costs - Substations,27/04/2017,5100108950,"83,298.81",POWER SUPPLY PROJECTS
TfGM,Transport,IS Support Services,27/04/2017,5100108739,"9,950.00",PUBLIC SOFTWARE CIC
TfGM,Transport,Concessionary Reimbursement,27/04/2017,1900053695,"1,147.00",RAINBOW TAXIS
TfGM,Transport,Business Case Development,27/04/2017,5100109051,"3,000.00",ROBERT WALTERS PLC
TfGM,Transport,Property & Equipment Maintenance,27/04/2017,5100108712,530.00,ROSGAL LTD
TfGM,Transport,Property & Equipment Maintenance,27/04/2017,5100108713,530.00,ROSGAL LTD
TfGM,Transport,Capital Costs - Print & Media,27/04/2017,5100108725,906.78,SERVICEPOINT UK
TfGM,Transport,Print & Media,27/04/2017,5100107299,"5,000.00",SIGNS EXPRESS (MANCHESTER SOUTH)
TfGM,Transport,Print & Media,27/04/2017,5100108956,"(2,500.00)",SIGNS EXPRESS (MANCHESTER SOUTH)
TfGM,Transport,Capital Costs - Engineering Support Services,27/04/2017,5100108710,900.00,STEPHEN J FIRTH
TfGM,Transport,IS Support Services,27/04/2017,5100108614,"2,500.00",TELLAN LIMITED
TfGM,Transport,Capital Costs - Capital Project Main Contract Works,27/04/2017,5100108963,"3,000.00",THALES TRANSPORT & SECURITY LTD
TfGM,Transport,Capital Costs - Capital Project Main Contract Works,27/04/2017,5100109037,"41,705.00",THALES TRANSPORT & SECURITY LTD
TfGM,Corporate Services,Telecommunications,27/04/2017,5100108895,801.58,THE PHONE CO OP LTD
TfGM,Corporate Services,Computer and Communications Equipment,27/04/2017,5100108734,"3,684.00",TOTAL COMPUTERS LTD
TfGM,Transport,"Rent, Rates & Service Charges",27/04/2017,1900053598,"5,805.67",TRAFFORD MBC
TfGM,Transport,Capital Costs - Quantity Surveying Services,27/04/2017,5100109091,"1,128.00",TURNER & TOWNSEND PROJECT MANAGEMEN
TfGM,Transport,Energy Management Services,27/04/2017,5100108317,"2,140.00",TXM RECRUIT LIMITED
TfGM,Transport,Energy Management Services,27/04/2017,5100108318,"2,675.00",TXM RECRUIT LIMITED
TfGM,Transport,Energy Management Services,27/04/2017,5100109055,"1,070.00",TXM RECRUIT LIMITED
TfGM,Transport,Energy Management Services,27/04/2017,5100109056,"1,337.50",TXM RECRUIT LIMITED
TfGM,Transport,Energy Management Services,27/04/2017,5100109057,"2,675.00",TXM RECRUIT LIMITED
TfGM,Transport,Energy Management Services,27/04/2017,5100109059,"2,675.00",TXM RECRUIT LIMITED
TfGM,Transport,Energy Management Services,27/04/2017,5100109060,"2,675.00",TXM RECRUIT LIMITED
TfGM,Transport,Energy Management Services,27/04/2017,5100109062,"2,675.00",TXM RECRUIT LIMITED
TfGM,Transport,Concessionary Reimbursement,27/04/2017,1900053693,"2,596.00",VIP TAXIS  LTD
TfGM,Transport,Capital Costs - Programme and Project Management Services,27/04/2017,5100109090,"58,378.05",WSP UK LTD
TfGM,Transport,Property & Equipment Maintenance,27/04/2017,5100109066,642.00,XL OFFICE SOLUTIONS
TfGM,Transport,Supported Bus Services,28/04/2017,1900053686,"26,457.48",STOTTS TOURS
TfGM,Transport,Property & Equipment Maintenance,03/05/2017,5100109188,"51,752.32",A E YATES LTD
TfGM,Transport,Community Engagement Services,03/05/2017,5100108857,"4,304.26",AECOM LTD
TfGM,Transport,Capital Costs - Commercial Managment Services,03/05/2017,5100108858,"11,907.00",AECOM LTD
TfGM,Transport,Community Engagement Services,03/05/2017,5100108979,"16,739.60",AECOM LTD
TfGM,Transport,Planning Support Services,03/05/2017,5100108985,"7,715.66",AECOM LTD
TfGM,Transport,Community Engagement Services,03/05/2017,5100108999,"4,187.25",AECOM LTD
TfGM,Transport,Vehicle Costs,03/05/2017,1200044068,628.88,ALLSTAR
TfGM,Transport,Utilities & Energy,03/05/2017,1900053737,432.00,AMEY METERING LTD
TfGM,Transport,Utilities & Energy,03/05/2017,5100109165,"2,845.00",AMEY METERING LTD
TfGM,Transport,Smart Ticketing,03/05/2017,5100109142,"27,034.00",APPLIED CARD TECHNOLOGIES
TfGM,Corporate Services,IS Software & Maintenance,03/05/2017,5100109143,"19,444.40",APPLIED CARD TECHNOLOGIES
TfGM,Transport,Design Support Services,03/05/2017,5100108927,"59,720.00",ARCADIS LLP
TfGM,Transport,Print & Media,03/05/2017,5100108872,"1,458.84",ASTRA SIGNS
TfGM,Transport,Print & Media,03/05/2017,5100108873,508.16,ASTRA SIGNS
TfGM,Transport,Print & Media,03/05/2017,5100109140,"2,563.00",AURA GRAPHICS LIMITED
TfGM,Transport,Training,03/05/2017,5100108913,450.00,BARRY LEWIS LIMITED
TfGM,Transport,Programme and Project Management Services,03/05/2017,5100109218,"9,800.00",BLACC LTD
TfGM,Transport,Programme and Project Management Services,03/05/2017,5100109219,"11,900.00",BLACC LTD
TfGM,Transport,Programme and Project Management Services,03/05/2017,5100109220,"16,100.00",BLACC LTD
TfGM,Transport,Telecommunications,03/05/2017,5100109170,"3,892.00",BT GLOBAL SERVICES
TfGM,Corporate Services,Telecommunications,03/05/2017,5100109138,"7,284.96",BT PLC
TfGM,Transport,Print & Media,03/05/2017,5100108825,"5,165.16",CARAT MEDIA UK LIMITED
TfGM,Transport,Print & Media,03/05/2017,5100108983,"2,748.74",CARAT MEDIA UK LIMITED
TfGM,Transport,Print & Media,03/05/2017,5100108786,561.00,CESTRIAN
TfGM,Corporate Services,Employee Reimbursed Costs,03/05/2017,5100109214,450.91,CHILDCARE VOUCHERS LTD
TfGM,Corporate Services,Employee Reimbursed Costs,03/05/2017,5100109215,"12,883.16",CHILDCARE VOUCHERS LTD
TfGM,Corporate Services,Procurement Services,03/05/2017,5100109217,"12,750.00",CNC PERFORMANCE CONSULTANTS LTD
TfGM,Transport,Print & Media,03/05/2017,5100109094,"7,135.00",CORONATION PROMOTIONS
TfGM,Corporate Services,Payroll Support Services,03/05/2017,1900053735,751.14,CROWN COMMERCIAL SERVICE
TfGM,Transport,Traffic and Transportation Surveys,03/05/2017,5100109115,920.00,CTS TRAFFIC & TRANSPORTATION
TfGM,Transport,Capital Costs - IS Support Services,03/05/2017,5100109038,"6,182.50",CUBIC TRANSPORTATION SYSTEMS (ITMS)
TfGM,Transport,Property & Equipment Maintenance,03/05/2017,5100108941,"13,815.00",D.H.Welton & Co. Ltd
TfGM,Corporate Services,IS Support and Licences,03/05/2017,5100109070,"2,150.00",DOTTED EYES LTD
TfGM,Corporate Services,IS Support Services,03/05/2017,5100108930,"6,300.00",EXPERIS LTD
TfGM,Transport,Capital Costs - Smart Ticketing,03/05/2017,5100108931,"7,058.70",EXPERIS LTD
TfGM,Corporate Services,IS Support Services,03/05/2017,5100108932,"10,000.00",EXPERIS LTD
TfGM,Transport,CCTV Support Services,03/05/2017,5100108933,"11,875.00",EXPERIS LTD
TfGM,Transport,Capital Costs - Smart Ticketing,03/05/2017,5100108934,"10,800.00",EXPERIS LTD
TfGM,Transport,Capital Costs - IS Support Services,03/05/2017,5100108936,"3,294.06",EXPERIS LTD
TfGM,Transport,Capital Costs - Smart Ticketing,03/05/2017,5100108937,"11,500.00",EXPERIS LTD
TfGM,Transport,Business Case Development,03/05/2017,5100108938,"9,900.00",EXPERIS LTD
TfGM,Transport,Capital Costs - Programme and Project Management Services,03/05/2017,5100108939,"16,250.00",EXPERIS LTD
TfGM,Corporate Services,Audit and Financial Services,03/05/2017,1900053736,"2,745.23",GRANT THORNTON
TfGM,Transport,Smart Ticketing,03/05/2017,5100109183,"1,437.50",HAYS SPECIALIST RECRUITMENT LTD
TfGM,Transport,Smart Ticketing,03/05/2017,5100109184,"1,437.50",HAYS SPECIALIST RECRUITMENT LTD
TfGM,Transport,Business Case Development,03/05/2017,5100108978,"1,280.00",JACOBS UK LTD
TfGM,Transport,Business Case Development,03/05/2017,5100109008,"24,500.00",JONES LANG LASALLE LTD
TfGM,Transport,Other Operational Costs,03/05/2017,5100109166,443.81,LTT VENDING LTD
TfGM,Transport,Capital Costs - Programme and Project Management Services,03/05/2017,5100109147,"2,062.50",MATCHTECH GROUP PLC
TfGM,Transport,Capital Costs - Capital Project Main Contract Works,03/05/2017,5100107988,"20,007.46",METROLINK RATP DEV LTD
TfGM,Transport,Equipment and Electrical Consumables,03/05/2017,5100107991,"3,150.00",METROLINK RATP DEV LTD
TfGM,Transport,Equipment and Electrical Consumables,03/05/2017,5100108178,"1,050.00",METROLINK RATP DEV LTD
TfGM,Transport,Business Case Development,03/05/2017,5100108233,"13,333.32",MICHAEL PAGE INTERNATIONAL RECRUITM
TfGM,Transport,Print & Media,03/05/2017,5100108909,648.15,MIRAGE DISPLAY LTD
TfGM,Transport,Capital Costs - Programme and Project Management Services,03/05/2017,5100108730,"1,591.00",MORSON INTERNATIONAL
TfGM,Corporate Services,IS Support Services,03/05/2017,5100108905,"2,284.40",MORSON INTERNATIONAL
TfGM,Transport,Capital Costs - Programme and Project Management Services,03/05/2017,5100108906,795.50,MORSON INTERNATIONAL
TfGM,Transport,Programme and Project Management Services,03/05/2017,5100108907,"2,210.00",MORSON INTERNATIONAL
TfGM,Transport,Capital Costs - Project Management Services,03/05/2017,5100108908,"7,498.20",MORSON INTERNATIONAL
TfGM,Transport,Metrolink Operating Costs,03/05/2017,5100107798,"4,461.65",MPACT THALES
TfGM,Transport,Business Case Development,03/05/2017,5100109087,"10,500.00",OMNIBUS
TfGM,Transport,Capital Costs - Legal Services,03/05/2017,5100109178,"4,464.36",PANNONE AND PARTNERS
TfGM,Transport,Cycling Equipment,03/05/2017,5100109155,900.00,POSITIVE STEPS
TfGM,Transport,Capital Costs - Programme and Project Management Services,03/05/2017,5100107589,"3,040.13",PRACTICUS LIMITED
TfGM,Transport,Capital Costs - Programme and Project Management Services,03/05/2017,5100107917,"1,842.50",PRACTICUS LIMITED
TfGM,Transport,Capital Costs - Programme and Project Management Services,03/05/2017,5100108898,"1,474.00",PRACTICUS LIMITED
TfGM,Transport,Capital Costs - Smart Ticketing,03/05/2017,5100108900,"2,000.00",PRACTICUS LIMITED
TfGM,Transport,Cycling Equipment,03/05/2017,5100108398,654.35,PRESTWICH CYCLE FACTORS LIMITED
TfGM,Transport,Cycle Training Scheme,03/05/2017,5100108485,"1,570.00",QUEENS HALL ACTION ON POVERTY
TfGM,Transport,Property & Equipment Maintenance,03/05/2017,5100109134,530.00,RCD
TfGM,Transport,Temporary Vacancy Cover,03/05/2017,1900053671,"3,265.97",REED SPECIALIST RECRUITMENT LTD
TfGM,Transport,Capital Costs - Smart Ticketing,03/05/2017,5100109182,"2,175.00",ROBERT WALTERS PLC
TfGM,Transport,Capital Costs - Smart Ticketing,03/05/2017,5100109185,"1,740.00",ROBERT WALTERS PLC
TfGM,Transport,Capital Costs - Smart Ticketing,03/05/2017,5100109186,"2,175.00",ROBERT WALTERS PLC
TfGM,Transport,Property & Equipment Maintenance,03/05/2017,5100108866,530.00,ROSGAL LTD
TfGM,Transport,Property & Equipment Maintenance,03/05/2017,5100108867,530.00,ROSGAL LTD
TfGM,Transport,Traffic Signal Works,03/05/2017,5100109079,"81,535.66",SIEMENS PLC
TfGM,Corporate Services,Procurement Services,03/05/2017,5100109144,"10,620.00",SIMPLY UMBRELLA SERVICES LIMITED
TfGM,Corporate Services,Procurement Services,03/05/2017,5100109145,"8,250.00",SIMPLY UMBRELLA SERVICES LIMITED
TfGM,Transport,Sustainable Travel Grant,03/05/2017,1900053679,"7,394.00",THE ALBION ACADEMY
TfGM,Transport,Traffic and Transportation Surveys,03/05/2017,5100108422,647.50,TRACSIS TRAFFIC DATA LTD
TfGM,Transport,Traffic and Transportation Surveys,03/05/2017,5100108423,809.38,TRACSIS TRAFFIC DATA LTD
TfGM,Transport,Traffic and Transportation Surveys,03/05/2017,5100108424,"1,214.06",TRACSIS TRAFFIC DATA LTD
TfGM,Transport,Traffic and Transportation Surveys,03/05/2017,5100108425,"1,295.00",TRACSIS TRAFFIC DATA LTD
TfGM,Transport,CCTV Support Services,03/05/2017,5100108929,"6,487.15",TYCO INTEGRATED FIRE AND SECURITY
TfGM,Transport,"Rent, Rates & Service Charges",03/05/2017,1900053470,"3,011.52",WIGAN COUNCIL
TfGM,Transport,Capital Costs - Ancillary Construction Costs,03/05/2017,5100108751,"4,583.02",WIGAN COUNCIL
TfGM,Transport,Capital Costs - Programme and Project Management Services,03/05/2017,5100108440,"69,196.24",WSP UK LTD
TfGM,Transport,Capital Costs - Programme and Project Management Services,03/05/2017,5100108442,"7,190.40",WSP UK LTD
TfGM,Transport,Engineering Support Services,03/05/2017,5100109112,"25,000.00",WSP UK LTD
TfGM,Transport,Cycling Support Services,03/05/2017,5100109163,"5,396.00",WSP UK LTD
TfGM,Transport,Vehicle Costs,04/05/2017,1900053758,"2,223.60",QUARTIX LIMITED
TfGM,Transport,Utilities & Energy,04/05/2017,1900053766,570.98,SWALEC
TfGM,Transport,Utilities & Energy,04/05/2017,1900053771,"1,634.72",SWALEC
TfGM,Transport,Utilities & Energy,04/05/2017,1900053772,555.20,SWALEC
TfGM,Transport,Utilities & Energy,04/05/2017,1900053775,627.48,SWALEC
TfGM,Transport,Utilities & Energy,04/05/2017,1900053777,"3,047.74",SWALEC
TfGM,Transport,Utilities & Energy,04/05/2017,1900053779,"13,973.44",SWALEC
TfGM,Transport,Utilities & Energy,04/05/2017,1900053780,"2,812.11",SWALEC
TfGM,Transport,Utilities & Energy,04/05/2017,1900053784,"3,569.78",SWALEC
TfGM,Transport,Utilities & Energy,04/05/2017,1900053787,"2,628.32",SWALEC
TfGM,Transport,Utilities & Energy,04/05/2017,1900053790,"2,040.14",SWALEC
TfGM,Transport,Utilities & Energy,04/05/2017,1900053792,"1,324.06",SWALEC
TfGM,Transport,Utilities & Energy,04/05/2017,1900053795,947.49,SWALEC
TfGM,Transport,Utilities & Energy,04/05/2017,1900053798,"3,467.35",SWALEC
TfGM,Transport,Utilities & Energy,04/05/2017,1900053799,"1,458.54",SWALEC
TfGM,Transport,Capital Costs - Utilities & Energy,04/05/2017,1900053801,613.80,SWALEC
TfGM,Transport,Utilities & Energy,04/05/2017,1900053802,"1,881.76",SWALEC
TfGM,Transport,Utilities & Energy,04/05/2017,1900053811,"1,796.21",SWALEC
TfGM,Transport,Utilities & Energy,04/05/2017,1900053813,907.24,SWALEC
TfGM,Transport,Utilities & Energy,04/05/2017,1900053814,957.99,SWALEC
TfGM,Transport,Driver Intervention Course Delivery Costs,05/05/2017,1900053834,765.80,2020 FLEET TRAINING LTD
TfGM,Transport,Driver Intervention Course Delivery Costs,05/05/2017,1900053847,875.20,A HOLT
TfGM,Transport,Planning Support Services,05/05/2017,5100108876,"8,400.00",AECOM LTD
TfGM,Transport,Design Support Services,05/05/2017,5100108949,"15,544.06",ARCADIS LLP
TfGM,Transport,Planning Support Services,05/05/2017,5100108371,"15,858.00",ATKINS CONSULTANTS LTD
TfGM,Transport,Driver Intervention Course Delivery Costs,05/05/2017,1900053846,"1,094.00",C HIRST
TfGM,Transport,Driver Intervention Course Delivery Costs,05/05/2017,1900053911,875.20,D ROBINSON
TfGM,Corporate Services,IS Software & Maintenance,05/05/2017,5100109063,"4,150.00",DREAMBANK SYSTEMS LTD
TfGM,Transport,Capital Costs - Legal Services,05/05/2017,1900053924,"46,000.00",EVERSHEDS LLP
TfGM,Transport,Driver Intervention Course Delivery Costs,05/05/2017,1900053833,984.60,H DICKINSON
TfGM,Transport,Driver Intervention Course Delivery Costs,05/05/2017,1900053867,984.60,J MURPHY
TfGM,Transport,Driver Intervention Course Delivery Costs,05/05/2017,1900053853,"1,422.20",K JONES
TfGM,Transport,Metrolink Operating Costs,05/05/2017,5100109221,"1,170.00",METROLINK RATP DEV LTD
TfGM,Transport,Equipment and Electrical Consumables,05/05/2017,5100109223,"1,950.00",METROLINK RATP DEV LTD
TfGM,Transport,Print & Media,05/05/2017,5100109241,675.00,MIDESIGN
TfGM,Transport,Print & Media,05/05/2017,5100109242,645.00,MIDESIGN
TfGM,Transport,Print & Media,05/05/2017,5100109244,870.00,MIDESIGN
TfGM,Transport,Driver Intervention Course Delivery Costs,05/05/2017,1900053918,"1,197.31",MILES AHEADDRIVER TRAINING LTD
TfGM,Transport,Driver Intervention Course Delivery Costs,05/05/2017,1900053861,"2,528.40",O MAYSON
TfGM,Transport,Driver Intervention Course Delivery Costs,05/05/2017,1900053820,796.18,P AINSWORTH
TfGM,Transport,Driver Intervention Course Delivery Costs,05/05/2017,1900053840,905.58,P GLEADALL
TfGM,Corporate Services,Temporary Vacancy Cover,05/05/2017,1900053672,"1,221.16",REED SPECIALIST RECRUITMENT LTD
TfGM,Corporate Services,Temporary Vacancy Cover,05/05/2017,5100108878,701.63,ROBERT WALTERS PLC
TfGM,Transport,Business Case Development,05/05/2017,5100108879,"2,650.00",ROBERT WALTERS PLC
TfGM,Transport,Capital Costs - Smart Ticketing,05/05/2017,5100108880,"2,250.00",ROBERT WALTERS PLC
TfGM,Transport,Capital Costs - Smart Ticketing,05/05/2017,5100108893,"2,175.00",ROBERT WALTERS PLC
TfGM,Transport,Driver Intervention Course Delivery Costs,05/05/2017,1900053829,875.20,S M CHARLSON
TfGM,Transport,Driver Intervention Course Delivery Costs,05/05/2017,1900053865,"1,525.51",S MUIRHEAD
TfGM,Transport,Supported Bus Services,05/05/2017,1900053923,"21,000.00",STOTTS TOURS
TfGM,Transport,"Rent, Rates & Service Charges",05/05/2017,1900053754,"2,070.30",TRAFFORD MBC
TfGM,Transport,Capital Costs - Programme and Project Management Services,05/05/2017,5100108763,"10,315.25",WSP UK LTD
TfGM,Transport,Research Services,09/05/2017,5100108760,"6,481.00",AECOM LTD
TfGM,Transport,Capital Costs - Design Support Services,09/05/2017,5100109361,"3,449.69",ARRIVA RAIL NORTH LTD
TfGM,Transport,Metrolink Maintenance & Improvements,09/05/2017,5100109009,780.00,ASTRA SIGNS
TfGM,Transport,Sustainable Travel Grant,09/05/2017,1900053675,"3,884.00",AUDENSHAW SCHOOL
TfGM,Transport,Concessionary Reimbursement,09/05/2017,1900053871,537.00,BLUELINE PRIVATE HIRE
TfGM,Transport,Concessionary Reimbursement,09/05/2017,1900053885,"9,683.00",BLUESTAR TAXIS
TfGM,Transport,Concessionary Reimbursement,09/05/2017,1900053894,"4,811.00",CALL A CAR
TfGM,Transport,Capital Costs - Legal Services,09/05/2017,5100109326,"1,527.50",DLA PIPER UK LLP
TfGM,Transport,Capital Costs - Legal Services,09/05/2017,5100109328,"2,558.00",DLA PIPER UK LLP
TfGM,Transport,Capital Costs - Legal Services,09/05/2017,5100109329,"1,151.50",DLA PIPER UK LLP
TfGM,Transport,Capital Costs - Legal Services,09/05/2017,5100109330,"1,218.00",DLA PIPER UK LLP
TfGM,Transport,Concessionary Reimbursement,09/05/2017,1900053895,799.00,EASY-GO COMMUNITY TRANSPORT
TfGM,Transport,Capital Costs - Programme and Project Management Services,09/05/2017,5100109320,"2,117.50",FIRCROFT ENGINEERING SERVICES LTD
TfGM,Transport,Security Services,09/05/2017,5100109093,"1,770.26",G4S FINANCE SHARED SERVICE CENTRE
TfGM,Transport,Concessionary Reimbursement,09/05/2017,1900053891,"1,190.00",H SHAKERI T/A EUROLYNX TAXIS
TfGM,Transport,Sustainable Transport Support Services,09/05/2017,5100109309,"2,700.00",JACOBS UK LTD
TfGM,Transport,Concessionary Reimbursement,09/05/2017,1900053880,607.00,KINGSWAY CARS HAZELBASE LTD
TfGM,Transport,Concessionary Reimbursement,09/05/2017,1900053901,"2,960.00",KINGSWAY CARS HAZELBASE LTD
TfGM,Transport,Property Support Services,09/05/2017,5100109058,"8,340.00",LESLIE ROBERTS AND CO LTD
TfGM,Transport,Metrolink Maintenance & Improvements,09/05/2017,5100109253,921.75,MANCHESTER SHOPMOBILITY
TfGM,Transport,Metrolink Maintenance & Improvements,09/05/2017,5100109254,921.75,MANCHESTER SHOPMOBILITY
TfGM,Transport,Concessionary Reimbursement,09/05/2017,1900053872,"2,393.00",METRO TAXIS LTD
TfGM,Transport,Capital Costs - Capital Project Main Contract Works,09/05/2017,5100107989,948.63,METROLINK RATP DEV LTD
TfGM,Transport,Capital Costs - Capital Project Main Contract Works,09/05/2017,5100108176,"1,261.99",METROLINK RATP DEV LTD
TfGM,Transport,Capital Costs - Capital Project Main Contract Works,09/05/2017,5100108496,"1,211.85",METROLINK RATP DEV LTD
TfGM,Transport,Replacement Bus Services,09/05/2017,5100109013,"30,558.00",METROLINK RATP DEV LTD
TfGM,Transport,Metrolink Operating Costs,09/05/2017,5100109224,"12,900.00",METROLINK RATP DEV LTD
TfGM,Transport,Metrolink Operating Costs,09/05/2017,5100109225,480.00,METROLINK RATP DEV LTD
TfGM,Transport,Property & Equipment Maintenance,09/05/2017,5100109399,"9,154.46",METROLINK RATP DEV LTD
TfGM,Transport,Print & Media,09/05/2017,5100109364,823.30,MIKE ABRAM
TfGM,Transport,Capital Costs - Legal Services,09/05/2017,5100109357,"1,582.10",MILLS & REEVE
TfGM,Transport,Concessionary Reimbursement,09/05/2017,1900053882,984.00,PEMBERTON TAXIS
TfGM,Transport,Property & Equipment Maintenance,09/05/2017,5100109337,662.50,PETER STEVEN ESTATES
TfGM,Transport,Traffic and Transportation Surveys,09/05/2017,5100109410,"4,550.65",PLUSWORK LTD
TfGM,Transport,Capital Costs - Programme and Project Management Services,09/05/2017,5100109076,"1,105.50",PRACTICUS LIMITED
TfGM,Transport,Capital Costs - Smart Ticketing,09/05/2017,5100109088,"1,600.00",PRACTICUS LIMITED
TfGM,Transport,Smart Ticketing,09/05/2017,5100109089,"2,000.00",PRACTICUS LIMITED
TfGM,Transport,Postage Costs,09/05/2017,5100109317,"1,400.72",ROYAL MAIL GROUP PLC
TfGM,Transport,Capital Costs - Mechanical & Engineering Support Services,09/05/2017,5100109053,500.00,SI SEALY AND ASSOCIATES LTD
TfGM,Transport,Property & Equipment Maintenance,09/05/2017,5100109401,572.00,SIGNUM 4 LTD T/A GR LABELS LTD
TfGM,Transport,Capital Costs - Engineering Support Services,09/05/2017,5100107813,"1,754.50",STEER DAVIES GLEEVE LTD
TfGM,Transport,Design Support Services,09/05/2017,5100108431,"20,470.30",STEER DAVIES GLEEVE LTD
TfGM,Transport,Concessionary Reimbursement,09/05/2017,1900050814,721.00,STREAMLINE PRIVATE HIRE
TfGM,Transport,Concessionary Reimbursement,09/05/2017,1900053903,"1,633.00",TRAFFORD CARS LTD
TfGM,Transport,Concessionary Reimbursement,09/05/2017,1900053892,559.00,TRINITY PRIVATE HIRE
TfGM,Transport,Vehicle Costs,10/05/2017,1200044163,943.44,ALLSTAR
TfGM,Transport,Postage Costs,11/05/2017,1900053942,"2,000.00",FRAMA UK LIMITED
TfGM,Transport,Legal Services,12/05/2017,5100109425,735.00,ADDLESHAW GODDARD LLP
TfGM,Corporate Services,Insurance,12/05/2017,1900053551,"5,000.00",ALLIANZ INSURANCE PLC
TfGM,Transport,"Rent, Rates & Service Charges",12/05/2017,1900053984,572.50,AMAS LTD CLIENTS ACCOUNT
TfGM,Transport,Heavy Rail Support Services,12/05/2017,5100109108,"10,000.00",ASSOC OF COMMUNITY RAIL PARTNERSHIP
TfGM,Transport,Capital Costs - Project Management Services,12/05/2017,5100109255,"11,540.00",ATKINS CONSULTANTS LTD
TfGM,Corporate Services,Insurance,12/05/2017,5100109506,"2,086.67",BERRYMANS LACE MAWER LLP
TfGM,Transport,Legal Services,12/05/2017,5100105823,"1,650.00",BIRCHAM DYSON BELL
TfGM,Transport,Capital Costs - Legal Services,12/05/2017,5100107105,"(15,849.60)",BIRCHAM DYSON BELL
TfGM,Transport,Capital Costs - Legal Services,12/05/2017,5100109502,"25,399.00",BIRCHAM DYSON BELL
TfGM,Transport,Print & Media,12/05/2017,5100109236,656.25,BLUETREE DESIGN AND PRINT LTD
TfGM,Transport,Print & Media,12/05/2017,5100109435,"1,528.00",BLUETREE DESIGN AND PRINT LTD
TfGM,Transport,Traffic Signal Works,12/05/2017,5100108666,"2,400.00",BT PLC
TfGM,Corporate Services,IS Software & Maintenance,12/05/2017,5100109319,972.67,BT PLC
TfGM,Corporate Services,Payroll Support Services,12/05/2017,5100109442,981.45,CGI IT UK LTD
TfGM,Transport,Business Case Development,12/05/2017,5100109447,"7,335.00",DAVE KAYE ASSOCIATES LTD
TfGM,Transport,Business Case Development,12/05/2017,1900053983,"8,850.00",DSW LIMITED
TfGM,Transport,Professional Services,12/05/2017,5100109439,"4,800.00",EDGERTON MANAGEMENT SERVICES LTD
TfGM,Transport,Business Case Development,12/05/2017,5100109191,"135,343.00",ERNST & YOUNG
TfGM,Transport,Business Case Development,12/05/2017,5100109192,"427,120.00",ERNST & YOUNG
TfGM,Corporate Services,Taxation Services,12/05/2017,5100109491,"4,616.00",ERNST & YOUNG
TfGM,Corporate Services,Taxation Services,12/05/2017,5100109492,"1,177.00",ERNST & YOUNG
TfGM,Corporate Services,Taxation Services,12/05/2017,5100109507,"2,100.00",ERNST & YOUNG
TfGM,Transport,Print & Media,12/05/2017,5100109444,"3,081.89",ESP SYSTEX LTD
TfGM,Transport,IS Support Services,12/05/2017,5100109131,"8,235.15",EXPERIS LTD
TfGM,Transport,Capital Costs - IS Support Services,12/05/2017,5100109132,"9,000.00",EXPERIS LTD
TfGM,Transport,Sustainable Travel Grant,12/05/2017,1900053937,"7,800.00",FIRST CHOICE HOMES OLDHAM
TfGM,Transport,Print & Media,12/05/2017,5100109200,839.50,FRETWELL PRINT AND DIRECT MAIL
TfGM,Transport,Driver Intervention Course Delivery Costs,12/05/2017,5100109465,"1,094.00",G VANN
TfGM,Transport,Sustainable Travel Grant,12/05/2017,1900053680,"6,950.00",GOLBORNE HIGH SCHOOL
TfGM,Transport,Capital Costs - Engineering Support Services,12/05/2017,5100109456,"10,139.70",GUTTERIDGE HASKINS AND DAVEY LTD
TfGM,Transport,Concessionary Reimbursement,12/05/2017,1900054025,557.00,H SHAKERI T/A EUROLYNX TAXIS
TfGM,Transport,Property & Equipment Maintenance,12/05/2017,5100108848,"2,286.66",IMSERV EUROPE LTD
TfGM,Transport,Property & Equipment Maintenance,12/05/2017,5100109177,"1,372.41",IMSERV EUROPE LTD
TfGM,Transport,Business Case Development,12/05/2017,5100109524,"13,225.00",INTEGRA CONSULTANCY SERVICES LTD
TfGM,Transport,Business Case Development,12/05/2017,5100109526,"11,212.50",INTEGRA CONSULTANCY SERVICES LTD
TfGM,Transport,Concessionary Reimbursement,12/05/2017,1900054017,618.00,Iqbal Chohan T/A STAR CARS
TfGM,Transport,Sustainable Travel Grant,12/05/2017,1900053674,"8,750.00",IRLAM PRIMARY SCHOOL
TfGM,Transport,Capital Costs - Capital Project Main Contract Works,12/05/2017,1900053982,"11,680.17",JAMIESON CONTRACTING (NORTH WEST) L
TfGM,Transport,Property & Equipment Maintenance,12/05/2017,5100108281,"10,246.02",JAMIESON CONTRACTING (NORTH WEST) L
TfGM,Transport,Traffic Signal Works,12/05/2017,5100109298,539.83,JONES LIGHTING
TfGM,Transport,Traffic Signal Works,12/05/2017,5100109300,539.83,JONES LIGHTING
TfGM,Transport,Traffic Signal Works,12/05/2017,5100109302,539.83,JONES LIGHTING
TfGM,Transport,Capital Costs - Utility & Service Connection Costs,12/05/2017,5100109303,"2,219.49",JONES LIGHTING
TfGM,Transport,Business Case Development,12/05/2017,5100109035,"7,000.00",KPMG
TfGM,Transport,Vehicle Costs,12/05/2017,5100109114,"9,163.17",Lloyd Morgan Group
TfGM,Transport,Capital Costs - Programme and Project Management Services,12/05/2017,5100109003,"9,765.00",MACE LTD
TfGM,Transport,"Rent, Rates & Service Charges",12/05/2017,1900053960,"13,183.47",MANCHESTER CITY COUNCIL
TfGM,Transport,"Rent, Rates & Service Charges",12/05/2017,1900053962,"3,262.00",MANCHESTER CITY COUNCIL
TfGM,Transport,"Rent, Rates & Service Charges",12/05/2017,1900053964,"1,001.90",MANCHESTER CITY COUNCIL
TfGM,Transport,"Rent, Rates & Service Charges",12/05/2017,1900053966,"13,289.55",MANCHESTER CITY COUNCIL
TfGM,Transport,"Rent, Rates & Service Charges",12/05/2017,1900053968,"1,166.32",MANCHESTER CITY COUNCIL
TfGM,Transport,"Rent, Rates & Service Charges",12/05/2017,1900053970,"1,166.32",MANCHESTER CITY COUNCIL
TfGM,Transport,"Rent, Rates & Service Charges",12/05/2017,1900053972,"64,303.69",MANCHESTER CITY COUNCIL
TfGM,Transport,"Rent, Rates & Service Charges",12/05/2017,1900053974,"1,283.57",MANCHESTER CITY COUNCIL
TfGM,Transport,"Rent, Rates & Service Charges",12/05/2017,1900053978,802.33,MANCHESTER CITY COUNCIL
TfGM,Transport,"Rent, Rates & Service Charges",12/05/2017,1900053980,937.99,MANCHESTER CITY COUNCIL
TfGM,Transport,"Rent, Rates & Service Charges",12/05/2017,1900054040,"2,179.45",MANCHESTER CITY COUNCIL
TfGM,Transport,Driver Intervention Course Delivery Costs,12/05/2017,5100109346,"1,251.00",MANCHESTER CITY COUNCIL
TfGM,Transport,Driver Intervention Course Delivery Costs,12/05/2017,5100109347,"2,344.00",MANCHESTER CITY COUNCIL
TfGM,Transport,Driver Intervention Course Delivery Costs,12/05/2017,5100109349,"1,949.15",MANCHESTER CITY COUNCIL
TfGM,Transport,Capital Costs - Legal Services,12/05/2017,5100109350,"1,284.61",MANCHESTER CITY COUNCIL
TfGM,Transport,Capital Costs - Legal Services,12/05/2017,5100109238,"5,178.00",MILLS & REEVE
TfGM,Corporate Services,IS Support Services,12/05/2017,5100109078,"1,827.52",MORSON INTERNATIONAL
TfGM,Transport,Capital Costs - Programme and Project Management Services,12/05/2017,5100109080,"3,483.00",MORSON INTERNATIONAL
TfGM,Transport,Research Services,12/05/2017,5100109201,"4,975.00",MOTT MACDONALD LTD
TfGM,Transport,Business Case Development,12/05/2017,5100109427,"1,440.00",MOTT MACDONALD LTD
TfGM,Transport,Concessionary Reimbursement,12/05/2017,1900054020,"1,000.00",NEXUS MOVE LTD
TfGM,Transport,Vehicle Repairs & Maintenance,12/05/2017,5100109338,"12,078.50",OPTARE LTD
TfGM,Transport,Vehicle Repairs & Maintenance,12/05/2017,5100109339,"13,883.33",OPTARE LTD
TfGM,Transport,Vehicle Repairs & Maintenance,12/05/2017,5100109340,957.00,OPTARE LTD
TfGM,Transport,Vehicle Repairs & Maintenance,12/05/2017,5100109341,"2,340.00",OPTARE LTD
TfGM,Transport,Vehicle Repairs & Maintenance,12/05/2017,5100109342,"5,092.22",OPTARE LTD
TfGM,Transport,Vehicle Repairs & Maintenance,12/05/2017,5100109343,"2,587.93",OPTARE LTD
TfGM,Transport,Vehicle Repairs & Maintenance,12/05/2017,5100109344,"3,552.50",OPTARE LTD
TfGM,Corporate Services,Procurement Services,12/05/2017,5100109458,"4,512.50",PLAN PROCURE MANAGE LTD
TfGM,Transport,Traffic and Transportation Surveys,12/05/2017,5100109322,"1,473.48",PLUSWORK LTD
TfGM,Transport,Traffic and Transportation Surveys,12/05/2017,5100109324,"3,040.57",PLUSWORK LTD
TfGM,Transport,Traffic and Transportation Surveys,12/05/2017,5100109417,487.12,PLUSWORK LTD
TfGM,Transport,Traffic and Transportation Surveys,12/05/2017,5100109419,590.25,PLUSWORK LTD
TfGM,Corporate Services,IS Support Services,12/05/2017,5100109461,"9,520.00",PMA GLOBAL MOBILITY RESOURCES LTD
TfGM,Corporate Services,Temporary Vacancy Cover,12/05/2017,1900053673,"4,672.32",REED SPECIALIST RECRUITMENT LTD
TfGM,Corporate Services,Temporary Vacancy Cover,12/05/2017,5100109096,561.30,ROBERT WALTERS PLC
TfGM,Transport,Capital Costs - Smart Ticketing,12/05/2017,5100109098,"2,201.10",ROBERT WALTERS PLC
TfGM,Transport,Capital Costs - Smart Ticketing,12/05/2017,5100109099,"2,201.10",ROBERT WALTERS PLC
TfGM,Transport,Capital Costs - Smart Ticketing,12/05/2017,5100109100,"1,872.00",ROBERT WALTERS PLC
TfGM,Transport,Capital Costs - Smart Ticketing,12/05/2017,5100109101,"1,800.00",ROBERT WALTERS PLC
TfGM,Transport,Capital Costs - Smart Ticketing,12/05/2017,5100109104,"2,750.00",ROBERT WALTERS PLC
TfGM,Transport,Bus Station & Shelter Consumables,12/05/2017,5100109334,477.94,SHORROCK TRICHEM
TfGM,Transport,Traffic Signal Works,12/05/2017,5100109384,"42,983.08",SIEMENS PLC
TfGM,Transport,Sustainable Travel Grant,12/05/2017,1900053676,851.17,ST ANTONY'S CATHOLIC COLLEGE
TfGM,Transport,Sustainable Travel Grant,12/05/2017,1900053681,"4,432.00",ST MARY'S CATHOLIC HIGH SCHOOL
TfGM,Transport,Sustainable Travel Grant,12/05/2017,1900053678,"8,600.00",ST TERESA'S RCP SCHOOL
TfGM,Transport,CCTV Support Services,12/05/2017,5100109510,"2,962.21",STOCKPORT MBC
TfGM,Transport,Supported Bus Services,12/05/2017,1900054004,"20,000.00",STOTTS TOURS
TfGM,Transport,Concessionary Reimbursement,12/05/2017,1900054011,720.00,STREAMLINE PRIVATE HIRE
TfGM,Transport,Print & Media,12/05/2017,5100109508,"2,500.00",THE GIFT VOUCHER SHOP LTD
TfGM,Transport,Sustainable Travel Grant,12/05/2017,1900053677,"5,427.00",THE SWINTON HIGH SCHOOL
TfGM,Transport,"Rent, Rates & Service Charges",12/05/2017,1900053985,889.42,TRAFFORD MBC
TfGM,Corporate Services,Computer and Communications Equipment,12/05/2017,5100109548,460.00,VODAFONE LTD
TfGM,Transport,Programme and Project Management Services,12/05/2017,5100109363,"56,674.98",WSP UK LTD
TfGM,Transport,Capital Costs - Project Management Services,12/05/2017,5100109366,"255,348.33",WSP UK LTD
TfGM,Transport,Capital Costs - Programme and Project Management Services,12/05/2017,5100109372,"6,075.00",WSP UK LTD
TfGM,Transport,Project Management Services,12/05/2017,5100109374,"9,533.52",WSP UK LTD
TfGM,Transport,Capital Costs - Project Management Services,12/05/2017,5100109375,"9,616.40",WSP UK LTD
TfGM,Transport,Accessible Transport,13/05/2017,1200044068,"373,083.00",GMATL
TfGM,Transport,Concessionary Reimbursement,15/05/2017,1900054044,"235,000.00",ARRIVA MANCHESTER
TfGM,Transport,Supported Bus Services,15/05/2017,1900054111,"26,297.38",ARRIVA MANCHESTER
TfGM,Transport,Supported Bus Services,15/05/2017,1900054112,"37,152.95",ARRIVA MANCHESTER
TfGM,Transport,Supported Bus Services,15/05/2017,1900054113,"1,704.49",ARRIVA MANCHESTER
TfGM,Transport,Concessionary Reimbursement,15/05/2017,1900054042,"65,000.00",ARRIVA RAIL NORTH LTD
TfGM,Transport,Supported Bus Services,15/05/2017,1900054089,"29,953.46",ATLANTIC TRAVEL GB
TfGM,Transport,Supported Bus Services,15/05/2017,1900054094,"101,912.09",BELLE VUE (MANCHESTER) LTD
TfGM,Transport,Supported Bus Services,15/05/2017,1900054095,580.00,BELLE VUE (MANCHESTER) LTD
TfGM,Transport,Concessionary Reimbursement,15/05/2017,1900054045,"2,300.00",BULLOCKS
TfGM,Transport,Supported Bus Services,15/05/2017,1900054109,"12,159.73",BULLOCKS
TfGM,Transport,Concessionary Reimbursement,15/05/2017,1900054046,"13,000.00",BURNLEY AND PENDLE
TfGM,Transport,Concessionary Reimbursement,15/05/2017,1900054048,"24,700.00",CENTREBUS LTD
TfGM,Transport,Supported Bus Services,15/05/2017,1900054125,"14,051.99",CENTREBUS LTD
TfGM,Transport,Supported Bus Services,15/05/2017,1900054122,"7,858.18",CHESTERS COACHES
TfGM,Transport,Concessionary Reimbursement,15/05/2017,1900054049,"25,000.00",CUMFY BUS LTD
TfGM,Transport,Supported Bus Services,15/05/2017,1900054086,"10,376.75",CUMFY BUS LTD
TfGM,Transport,Supported Bus Services,15/05/2017,1900054087,"86,851.49",CUMFY BUS LTD
TfGM,Transport,Supported Bus Services,15/05/2017,1900054088,"4,229.33",CUMFY BUS LTD
TfGM,Transport,Concessionary Reimbursement,15/05/2017,1900054053,"69,996.00",DIAMOND BUS (NORTH WEST) LTD
TfGM,Transport,Supported Bus Services,15/05/2017,1900054118,"14,495.64",DIAMOND BUS (NORTH WEST) LTD
TfGM,Transport,Supported Bus Services,15/05/2017,1900054119,"100,628.93",DIAMOND BUS (NORTH WEST) LTD
TfGM,Transport,Supported Bus Services,15/05/2017,1900054120,"1,094.67",DIAMOND BUS (NORTH WEST) LTD
TfGM,Transport,Concessionary Reimbursement,15/05/2017,1900054001,"1,002.40",ECO TRAVEL
TfGM,Transport,Supported Bus Services,15/05/2017,1900054085,"13,916.67",ECO TRAVEL
TfGM,Transport,Concessionary Reimbursement,15/05/2017,1900054051,"3,000.00",FE FINCH
TfGM,Transport,Concessionary Reimbursement,15/05/2017,1900054050,"8,500.00",FIRST CALDERLINE
TfGM,Transport,Supported Bus Services,15/05/2017,1700036011,"(1,043.92)",FIRST MANCHESTER
TfGM,Transport,Concessionary Reimbursement,15/05/2017,1900054052,"1,497,000.00",FIRST MANCHESTER
TfGM,Transport,Supported Bus Services,15/05/2017,1900054106,"298,226.61",FIRST MANCHESTER
TfGM,Transport,Supported Bus Services,15/05/2017,1900054107,"94,804.28",FIRST MANCHESTER
TfGM,Transport,Supported Bus Services,15/05/2017,1900054108,"1,507.31",FIRST MANCHESTER
TfGM,Transport,Supported Bus Services,15/05/2017,1900054126,"27,248.75",GB COACHES
TfGM,Transport,Supported Bus Services,15/05/2017,1900054127,738.09,GB COACHES
TfGM,Transport,Supported Bus Services,15/05/2017,1900054080,"39,901.88",GO GOODWINS COACHES LTD
TfGM,Transport,Supported Bus Services,15/05/2017,1900054081,"110,250.41",GO GOODWINS COACHES LTD
TfGM,Transport,Supported Bus Services,15/05/2017,1900054082,999.42,GO GOODWINS COACHES LTD
TfGM,Transport,Concessionary Reimbursement,15/05/2017,1900054054,"7,381.00",HATTONS TRANSPORT LTD
TfGM,Transport,Supported Bus Services,15/05/2017,1900054090,"18,333.33",HATTONS TRANSPORT LTD
TfGM,Transport,Concessionary Reimbursement,15/05/2017,1900054055,"3,600.00",HUDDERSFIELD BUS COMPANY
TfGM,Transport,Concessionary Reimbursement,15/05/2017,1900054056,"21,528.00",JIM STONES COACHES
TfGM,Transport,Supported Bus Services,15/05/2017,1900054115,"9,259.64",JIM STONES COACHES
TfGM,Transport,Supported Bus Services,15/05/2017,1900054116,"20,512.17",JIM STONES COACHES
TfGM,Transport,Concessionary Reimbursement,15/05/2017,1900054057,"21,000.00",LANCASHIRE UTD
TfGM,Transport,Concessionary Reimbursement,15/05/2017,1900054058,"5,000.00",M TRAVEL
TfGM,Transport,Supported Bus Services,15/05/2017,1900054096,"85,798.96",M TRAVEL
TfGM,Transport,Supported Bus Services,15/05/2017,1900054097,"6,181.82",M TRAVEL
TfGM,Transport,Supported Bus Services,15/05/2017,1900054098,956.73,M TRAVEL
TfGM,Transport,Concessionary Reimbursement,15/05/2017,1900054059,"51,000.00",MANCHESTER COMMUNITY TRANSPORT
TfGM,Transport,Supported Bus Services,15/05/2017,1900054075,"20,832.92",MANCHESTER COMMUNITY TRANSPORT
TfGM,Transport,Supported Bus Services,15/05/2017,1900054076,"175,633.92",MANCHESTER COMMUNITY TRANSPORT
TfGM,Transport,Supported Bus Services,15/05/2017,1900054077,"9,017.50",MANCHESTER COMMUNITY TRANSPORT
TfGM,Transport,Concessionary Reimbursement,15/05/2017,1900054002,"1,897.05",NEXUS MOVE LTD
TfGM,Transport,Supported Bus Services,15/05/2017,1900054078,"100,000.50",NEXUS MOVE LTD
TfGM,Transport,Supported Bus Services,15/05/2017,1900054079,"38,929.25",NEXUS MOVE LTD
TfGM,Transport,Supported Bus Services,15/05/2017,1900054083,"41,338.65",OLYMPIA TRAVEL
TfGM,Transport,Supported Bus Services,15/05/2017,1900054132,"77,106.61",R S TYRER LTD
TfGM,Transport,Supported Bus Services,15/05/2017,1900054133,687.37,R S TYRER LTD
TfGM,Transport,Supported Bus Services,15/05/2017,1900054105,"6,104.19",REGALWAY LTD
TfGM,Transport,Supported Bus Services,15/05/2017,1700035954,"(1,646.34)",ROSSENDALE TRANSPORT
TfGM,Transport,Supported Bus Services,15/05/2017,1900053999,"1,450.00",ROSSENDALE TRANSPORT
TfGM,Transport,Supported Bus Services,15/05/2017,1900054005,887.00,ROSSENDALE TRANSPORT
TfGM,Transport,Concessionary Reimbursement,15/05/2017,1900054061,"104,074.00",ROSSENDALE TRANSPORT
TfGM,Transport,Supported Bus Services,15/05/2017,1900054091,"148,842.76",ROSSENDALE TRANSPORT
TfGM,Transport,Supported Bus Services,15/05/2017,1900054092,"62,373.44",ROSSENDALE TRANSPORT
TfGM,Transport,Supported Bus Services,15/05/2017,1900054093,"11,534.83",ROSSENDALE TRANSPORT
TfGM,Transport,Supported Bus Services,15/05/2017,1900054128,"76,594.53",SELWYNS TRAVEL LTD
TfGM,Transport,Supported Bus Services,15/05/2017,1900054129,940.73,SELWYNS TRAVEL LTD
TfGM,Transport,Supported Bus Services,15/05/2017,1700036006,"(1,739.59)",STAGECOACH SERVICES LTD
TfGM,Transport,Concessionary Reimbursement,15/05/2017,1900054063,"1,575,000.00",STAGECOACH SERVICES LTD
TfGM,Transport,Concessionary Reimbursement,15/05/2017,1900054064,"18,500.00",STAGECOACH SERVICES LTD
TfGM,Transport,Supported Bus Services,15/05/2017,1900054102,"249,102.52",STAGECOACH SERVICES LTD
TfGM,Transport,Supported Bus Services,15/05/2017,1900054103,"335,410.87",STAGECOACH SERVICES LTD
TfGM,Transport,Supported Bus Services,15/05/2017,1900054104,"25,286.16",STAGECOACH SERVICES LTD
TfGM,Transport,Supported Bus Services,15/05/2017,1900054114,"27,012.50",TELECARS
TfGM,Transport,Concessionary Reimbursement,15/05/2017,1900054043,"8,750.00",TRANSPENNINE EXPRESS
TfGM,Transport,Concessionary Reimbursement,15/05/2017,1900054066,"2,304.00",TRAVEL ASSIST SERVICES LTD
TfGM,Transport,Concessionary Reimbursement,15/05/2017,1900054067,"10,000.00",UK COACHWAYS LTD
TfGM,Transport,Supported Bus Services,15/05/2017,1900054099,"43,223.81",UK COACHWAYS LTD
TfGM,Transport,Supported Bus Services,15/05/2017,1900054100,"8,914.02",UK COACHWAYS LTD
TfGM,Transport,Concessionary Reimbursement,15/05/2017,1900054068,"6,000.00",WARRINGTON BOROUGH TRANSPORT LTD
TfGM,Transport,Concessionary Reimbursement,15/05/2017,1900054003,809.40,WIGAN COMMUNITY TRANSPORT
TfGM,Transport,Supported Bus Services,15/05/2017,1900054074,"6,661.50",WIGAN COMMUNITY TRANSPORT
TfGM,Transport,Capital Costs - Programme and Project Management Services,16/05/2017,5100108897,"7,750.00",AECOM LTD
TfGM,Transport,Business Case Development,16/05/2017,5100109558,"7,200.00",AMEY (CONSULTING & RAIL)
TfGM,Corporate Services,IS Software & Maintenance,16/05/2017,5100109498,"74,034.37",APPLIED CARD TECHNOLOGIES
TfGM,Corporate Services,IS Support and Licences,16/05/2017,5100109499,"16,000.00",APPLIED CARD TECHNOLOGIES
TfGM,Transport,Print & Media,16/05/2017,5100109356,755.00,ASTRA SIGNS
TfGM,Transport,Capital Costs - Signage Costs,16/05/2017,5100109682,"3,060.00",ASTRA SIGNS
TfGM,Transport,Capital Costs - Signage Costs,16/05/2017,5100109683,"6,100.00",ASTRA SIGNS
TfGM,Transport,Capital Costs - Signage Costs,16/05/2017,5100109684,700.00,ASTRA SIGNS
TfGM,Transport,Capital Costs - Signage Costs,16/05/2017,5100109685,"1,080.00",ASTRA SIGNS
TfGM,Transport,Capital Costs - Signage Costs,16/05/2017,5100109686,"2,352.00",ASTRA SIGNS
TfGM,Transport,Capital Costs - Signage Costs,16/05/2017,5100109687,"1,088.00",ASTRA SIGNS
TfGM,Transport,Capital Costs - Signage Costs,16/05/2017,5100109688,"1,780.00",ASTRA SIGNS
TfGM,Transport,Capital Costs - Signage Costs,16/05/2017,5100109689,"1,980.00",ASTRA SIGNS
TfGM,Transport,Print & Media,16/05/2017,5100109704,495.00,ASTRA SIGNS
TfGM,Transport,Capital Costs - Project Support Services,16/05/2017,5100108320,750.00,ATKINS CONSULTANTS LTD
TfGM,Transport,Capital Costs - Programme and Project Management Services,16/05/2017,5100108634,"3,238.82",ATKINS CONSULTANTS LTD
TfGM,Transport,Capital Costs - Programme and Project Management Services,16/05/2017,5100108846,"9,168.24",ATKINS CONSULTANTS LTD
TfGM,Transport,Capital Costs - Computer and Communications Equipment,16/05/2017,5100108845,"8,140.42",BT PLC
TfGM,Transport,Capital Costs - Computer and Communications Equipment,16/05/2017,5100109169,"1,406.13",BT PLC
TfGM,Corporate Services,IS Software & Maintenance,16/05/2017,5100109568,"11,794.00",BT PLC
TfGM,Transport,Driver Intervention Course Delivery Costs,16/05/2017,5100109611,"1,203.40",BTD TRAINING & CONSULTANCY LTD
TfGM,Transport,Driver Intervention Course Delivery Costs,16/05/2017,1900053857,765.80,C MACCORMACK
TfGM,Transport,Print & Media,16/05/2017,5100109240,"7,004.00",CARAT MEDIA UK LIMITED
TfGM,Transport,Print & Media,16/05/2017,5100109205,561.00,CESTRIAN
TfGM,Transport,Print & Media,16/05/2017,5100109206,561.00,CESTRIAN
TfGM,Transport,IS Support Services,16/05/2017,5100109446,"(12,218.93)",CORVIA LIMITED (T/A TICKETER
TfGM,Transport,IS Support and Licences,16/05/2017,5100109453,"231,274.92",CORVIA LIMITED (T/A TICKETER
TfGM,Transport,Driver Intervention Course Delivery Costs,16/05/2017,1900053837,875.20,D ELLIS
TfGM,Transport,Driver Intervention Course Delivery Costs,16/05/2017,1900053842,"1,306.71",D HEATHCOTE
TfGM,Transport,Driver Intervention Course Delivery Costs,16/05/2017,1900053920,"1,326.44",D WALSH
TfGM,Transport,Property & Equipment Maintenance,16/05/2017,5100108526,"9,700.00",D.H.Welton & Co. Ltd
TfGM,Transport,Property & Equipment Maintenance,16/05/2017,5100108527,"34,600.00",D.H.Welton & Co. Ltd
TfGM,Corporate Services,Telecommunications,16/05/2017,5100109694,"6,760.84",DAISY COMMUNICATIONS
TfGM,Transport,Driver Intervention Course Delivery Costs,16/05/2017,1900053915,"1,641.00",DTS LTD
TfGM,Transport,Capital Costs - IS Support Services,16/05/2017,5100108606,550.00,ESP SYSTEX LTD
TfGM,Transport,Paper and Printing Consumables,16/05/2017,5100109662,"69,000.00",ESP SYSTEX LTD
TfGM,Transport,Print & Media,16/05/2017,5100109696,"1,750.34",ESP SYSTEX LTD
TfGM,Transport,Driver Intervention Course Delivery Costs,16/05/2017,1900053831,"1,853.71",G CLIFFE
TfGM,Transport,Driver Intervention Course Delivery Costs,16/05/2017,1900053921,547.00,G WHITWORTH
TfGM,Transport,Occupational Health,16/05/2017,5100109652,"4,495.00",HEALTHWORK
TfGM,Transport,Driver Intervention Course Delivery Costs,16/05/2017,1900053845,"1,641.00",HOGHTON DRIVING SCHOOL
TfGM,Transport,Driver Intervention Course Delivery Costs,16/05/2017,1900053835,984.60,I DUFF
TfGM,Transport,Capital Costs - Commercial Managment Services,16/05/2017,5100109154,"18,099.90",IAN ALLAN ASSOCIATES (UK) LTD
TfGM,Transport,Driver Intervention Course Delivery Costs,16/05/2017,1900053843,547.00,INSIGHT 2 DRIVE
TfGM,Transport,Traffic and Transportation Surveys,16/05/2017,5100109199,"2,140.00",INTELLIGENT DATA COLLECTION LTD
TfGM,Transport,IS Support Services,16/05/2017,5100108819,"10,725.00",ITSO LTD
TfGM,Transport,IS Support Services,16/05/2017,5100109054,"9,357.50",ITSO LTD
TfGM,Transport,Driver Intervention Course Delivery Costs,16/05/2017,1900053821,875.20,J AIREY
TfGM,Transport,Driver Intervention Course Delivery Costs,16/05/2017,1900053862,"1,203.40",J MCGREAL
TfGM,Transport,Business Case Development,16/05/2017,5100109345,"27,040.36",JACOBS UK LTD
TfGM,Corporate Services,Procurement Services,16/05/2017,5100109665,"9,450.00",JULIAN BENSON ASSOCIATES LTD
TfGM,Transport,Business Case Development,16/05/2017,5100109030,"4,040.00",KPMG
TfGM,Transport,Driver Intervention Course Delivery Costs,16/05/2017,1900053828,"1,014.98",L CHAPMAN
TfGM,Transport,Travel and Accommodation,16/05/2017,5100109701,"1,250.00",M G FREDERICKS & ASSOCIATES LTD
TfGM,Transport,Travel and Accommodation,16/05/2017,5100109703,"1,250.00",M G FREDERICKS & ASSOCIATES LTD
TfGM,Transport,Driver Intervention Course Delivery Costs,16/05/2017,1900053825,"1,203.40",MARK BRENNAN DRIVER TRAINING LIMITE
TfGM,Transport,Metrolink Operating Costs,16/05/2017,5100109226,"2,805.00",METROLINK RATP DEV LTD
TfGM,Transport,Replacement Bus Services,16/05/2017,5100109230,"3,880.00",METROLINK RATP DEV LTD
TfGM,Transport,Metrolink Operating Costs,16/05/2017,5100109233,"161,847.00",METROLINK RATP DEV LTD
TfGM,Transport,Metrolink Operating Costs,16/05/2017,5100109234,"296,233.00",METROLINK RATP DEV LTD
TfGM,Transport,Capital Costs - Capital Project Main Contract Works,16/05/2017,5100109632,"7,684.84",METROLINK RATP DEV LTD
TfGM,Transport,Metrolink Operating Costs,16/05/2017,5100109633,"349,032.00",METROLINK RATP DEV LTD
TfGM,Transport,Metrolink Operating Costs,16/05/2017,5100109634,"420,401.00",METROLINK RATP DEV LTD
TfGM,Transport,Driver Intervention Course Delivery Costs,16/05/2017,1900053824,"1,969.20",MICHAEL BOLTON DRIVER TRAINING
TfGM,Transport,Capital Costs - Programme and Project Management Services,16/05/2017,5100107785,"2,150.00",MORSON INTERNATIONAL
TfGM,Transport,Capital Costs - Programme and Project Management Services,16/05/2017,5100108729,"3,483.00",MORSON INTERNATIONAL
TfGM,Transport,Capital Costs - Programme and Project Management Services,16/05/2017,5100108732,"2,150.00",MORSON INTERNATIONAL
TfGM,Transport,Programme and Project Management Services,16/05/2017,5100109068,"2,210.00",MORSON INTERNATIONAL
TfGM,Transport,Capital Costs - Programme and Project Management Services,16/05/2017,5100109083,"1,935.00",MORSON INTERNATIONAL
TfGM,Transport,Sustainable Transport Support Services,16/05/2017,5100109646,"11,639.00",MOTT MACDONALD LTD
TfGM,Transport,Capital Costs - Engineering Support Services,16/05/2017,5100109697,"14,140.00",MOTT MACDONALD LTD
TfGM,Transport,Capital Costs - Utility & Service Diversion Costs,16/05/2017,5100109691,"1,014,961.50",NATIONAL GRID PLC
TfGM,Transport,Driver Intervention Course Delivery Costs,16/05/2017,1900053830,"2,745.51",P CLARKE
TfGM,Transport,Driver Intervention Course Delivery Costs,16/05/2017,1900053859,765.80,P MARTIN
TfGM,Transport,Driver Intervention Course Delivery Costs,16/05/2017,1900053914,"1,890.18",PAS DRIVING
TfGM,Transport,Capital Costs - Programme and Project Management Services,16/05/2017,5100108322,"2,058.55",PERTEMPS PROFESSIONAL STAFFING LTD
TfGM,Transport,Capital Costs - Programme and Project Management Services,16/05/2017,5100108896,"2,058.55",PERTEMPS PROFESSIONAL STAFFING LTD
TfGM,Transport,Capital Costs - Programme and Project Management Services,16/05/2017,5100109110,"1,646.84",PERTEMPS PROFESSIONAL STAFFING LTD
TfGM,Transport,Capital Costs - Programme and Project Management Services,16/05/2017,5100109306,823.42,PERTEMPS PROFESSIONAL STAFFING LTD
TfGM,Transport,Capital Costs - Smart Ticketing,16/05/2017,5100109307,"1,600.00",PRACTICUS LIMITED
TfGM,Transport,Smart Ticketing,16/05/2017,5100109308,"2,000.00",PRACTICUS LIMITED
TfGM,Transport,Capital Costs - Programme and Project Management Services,16/05/2017,5100109438,"1,474.00",PRACTICUS LIMITED
TfGM,Transport,Cycling Equipment,16/05/2017,5100109664,"4,122.15",PRESTWICH CYCLE FACTORS LIMITED
TfGM,Transport,Capital Costs - Temporary Vacancy Cover,16/05/2017,5100109673,"3,850.00",PWS TECHNICAL SERVICES (UK) LIMITED
TfGM,Transport,Driver Intervention Course Delivery Costs,16/05/2017,1900053841,"1,969.20",R GREENOUGH
TfGM,Transport,Driver Intervention Course Delivery Costs,16/05/2017,1900053844,"1,203.40",R HILL
TfGM,Transport,Driver Intervention Course Delivery Costs,16/05/2017,1900053856,"2,078.60",R LORD
TfGM,Transport,Driver Intervention Course Delivery Costs,16/05/2017,1900053863,656.40,R MOTT
TfGM,Transport,Temporary Vacancy Cover,16/05/2017,5100109642,"6,175.00",RACHEL J CONSULTANCY SERVICES LTD
TfGM,Transport,Temporary Vacancy Cover,16/05/2017,5100108877,768.86,ROBERT WALTERS PLC
TfGM,Transport,Temporary Vacancy Cover,16/05/2017,5100109095,613.01,ROBERT WALTERS PLC
TfGM,Transport,Driver Intervention Course Delivery Costs,16/05/2017,1900053913,875.20,S SHAH
TfGM,Transport,Driver Intervention Course Delivery Costs,16/05/2017,1900053908,547.00,SHELLIS SCHOOL OF MOTORING
TfGM,Transport,Capital Costs - Traffic Signal Works,16/05/2017,5100109469,493.10,SIEMENS PLC
TfGM,Transport,Traffic Signal Works,16/05/2017,5100109470,"3,180.71",SIEMENS PLC
TfGM,Transport,Traffic Signal Works,16/05/2017,5100109473,"8,870.89",SIEMENS PLC
TfGM,Transport,Driver Intervention Course Delivery Costs,16/05/2017,1900053838,"1,823.32",SMJ SCHOOL OF MOTORING
TfGM,Transport,Driver Intervention Course Delivery Costs,16/05/2017,1900053855,"1,531.60",STEVEN LLOYD APPROVED SCHOOL OF MOT
TfGM,Corporate Services,IS Consumables,16/05/2017,5100109249,610.00,TOTAL COMPUTERS LTD
TfGM,Transport,Driver Intervention Course Delivery Costs,16/05/2017,5100109675,"183,053.00",UKROED LTD
TfGM,Transport,Capital Costs - Engineering Support Services,16/05/2017,5100109316,"5,971.50",URBAN VISION PARTNERSHIP LTD
TfGM,Transport,Driver Intervention Course Delivery Costs,16/05/2017,1900053839,"1,641.00",VINCENT'S DRIVING SCHOOL
TfGM,Transport,Supported Bus Services,16/05/2017,5100109574,"9,666.67",WARRINGTON BOROUGH COUNCIL
TfGM,Transport,Cycling Support Services,16/05/2017,5100109017,"1,280.00",WEST HILL SCHOOL
TfGM,Transport,Driver Intervention Course Delivery Costs,16/05/2017,1900053852,765.80,WIRRAL DRIVING LTD
TfGM,Transport,Community Engagement Services,18/05/2017,5100108830,"1,594.25",AECOM LTD
TfGM,Transport,Community Engagement Services,18/05/2017,5100109073,584.40,AECOM LTD
TfGM,Transport,Print & Media,18/05/2017,5100109708,"3,875.00",ANGELA SCHORAH COMMUNICATIONS
TfGM,Transport,Programme and Project Management Services,18/05/2017,5100109251,"9,800.00",BLACC LTD
TfGM,Transport,Property & Equipment Maintenance,18/05/2017,5100108756,"9,522.00",BURY MBC
TfGM,Corporate Services,IS Software & Maintenance,18/05/2017,5100109168,"102,583.07",CGI IT UK LTD
TfGM,Transport,Business Case Development,18/05/2017,5100108365,"7,762.50",DAVID GREGORY TRANSPORT PLANNING LT
TfGM,Transport,Business Case Development,18/05/2017,5100109006,"3,431.25",DAVID GREGORY TRANSPORT PLANNING LT
TfGM,Transport,Architectural Services,18/05/2017,5100109727,"20,760.00",HAWKINS BROWN ARCHITECTS LLP
TfGM,Transport,Print & Media,18/05/2017,5100109111,"10,143.75",HEMISPHERE DESIGN & MRKTNG CONSULT
TfGM,Transport,Business Case Development,18/05/2017,5100109671,"8,040.00",JANUS ARCHITECTURE
TfGM,Transport,Planning Support Services,18/05/2017,5100109803,"5,600.00",MALAWI TRADE BROKERS LTD
TfGM,Transport,Cycling Equipment,18/05/2017,5100109769,840.00,MESSAGE ENTERPRISE CENTRE
TfGM,Transport,Metrolink Operating Costs,18/05/2017,5100109751,"22,666.00",METROLINK RATP DEV LTD
TfGM,Transport,Business Case Development,18/05/2017,5100109315,"1,818.18",MICHAEL PAGE INTERNATIONAL RECRUITM
TfGM,Transport,Business Case Development,18/05/2017,5100109457,"2,424.24",MICHAEL PAGE INTERNATIONAL RECRUITM
TfGM,Transport,Capital Costs - Capital Project Main Contract Works,18/05/2017,5100109808,"3,725,339.79",MPACT THALES
TfGM,Transport,Capital Costs - Capital Project Main Contract Works,18/05/2017,5100109809,"25,000.00",MPACT THALES
TfGM,Transport,Subscriptions,18/05/2017,5100109207,"7,806.40",ROAD SAFETY ANALYSIS LTD
TfGM,Transport,Postage Costs,18/05/2017,5100109813,"1,366.32",ROYAL MAIL GROUP PLC
TfGM,Transport,Postage Costs,18/05/2017,5100109814,"1,704.50",ROYAL MAIL GROUP PLC
TfGM,Transport,Design Support Services,18/05/2017,5100109586,"11,475.00",STEER DAVIES GLEEVE LTD
TfGM,Transport,Supported Bus Services,18/05/2017,1900054143,"23,700.00",STOTTS TOURS
TfGM,Transport,Capital Costs - Traffic and Transportation Surveys,18/05/2017,5100109805,"3,136.00",SUSTRANS LTD
TfGM,Transport,Cycling Support Services,18/05/2017,5100108390,"7,540.00",TAMESIDE SPORTS TRUST
TfGM,Transport,Print & Media,18/05/2017,5100109202,"20,000.00",THE BRIDGEWATER HALL COMMUNITY EDUC
TfGM,Transport,Print & Media,18/05/2017,5100109424,"3,045.31",W8DATA LTD
TfGM,Transport,Utilities & Energy,18/05/2017,1900053939,"3,573.84",WATERPLUS LTD
TfGM,Transport,Property & Equipment Maintenance,18/05/2017,5100108652,"4,106.00",WIGAN COUNCIL
TfGM,Transport,Planning Support Services,18/05/2017,5100109365,765.00,WSP UK LTD
TfGM,Transport,Concessionary Reimbursement,23/05/2017,1900054171,909.00,1ST CHOICE COUNTY CARS
TfGM,Transport,Capital Costs - Legal Services,23/05/2017,5100109621,750.00,ACOUSTIC & ENGINEERING CONSULTANTS
TfGM,Transport,Capital Costs - Programme and Project Management Services,23/05/2017,5100109610,"4,920.00",ACUITY PROGRAMME MANAGEMENT LTD
TfGM,Transport,Business Case Development,23/05/2017,5100109546,"2,510.00",ADDLESHAW GODDARD LLP
TfGM,Transport,Community Engagement Services,23/05/2017,5100108582,"2,581.52",AECOM LTD
TfGM,Transport,Project Management Services,23/05/2017,5100109325,"11,141.00",AECOM LTD
TfGM,Transport,Capital Costs - Mechanical & Engineering Support Services,23/05/2017,5100109392,"4,860.00",AECOM LTD
TfGM,Transport,Capital Costs - Engineering Support Services,23/05/2017,5100109437,"5,000.00",AECOM LTD
TfGM,Transport,Secondment,23/05/2017,5100109488,"10,553.00",AECOM LTD
TfGM,Transport,Capital Costs - IS Support Services,23/05/2017,5100109496,"29,000.00",APPLIED CARD TECHNOLOGIES
TfGM,Transport,Capital Costs - IS Support Services,23/05/2017,5100109497,"7,000.00",APPLIED CARD TECHNOLOGIES
TfGM,Transport,Capital Costs - IS Support Services,23/05/2017,5100109501,"14,000.00",APPLIED CARD TECHNOLOGIES
TfGM,Transport,Capital Costs - Environmental & Ecological Support Services,23/05/2017,5100109623,850.73,ARCADIS CONSULTING (UK) LTD
TfGM,Transport,Research Services,23/05/2017,5100109429,"16,849.60",ATKINS CONSULTANTS LTD
TfGM,Transport,Capital Costs - Legal Services,23/05/2017,5100109450,"4,000.00",ATKINS CONSULTANTS LTD
TfGM,Transport,Capital Costs - Programme and Project Management Services,23/05/2017,5100109481,"1,767.79",ATKINS CONSULTANTS LTD
TfGM,Transport,Capital Costs - Project Support Services,23/05/2017,5100109788,500.00,ATKINS CONSULTANTS LTD
TfGM,Transport,Legal Services,23/05/2017,5100109454,"4,535.50",BIRCHAM DYSON BELL
TfGM,Transport,Property & Equipment Maintenance,23/05/2017,5100108680,"18,049.50",BOLTON METROPOLITAN BOROUGH COUNCIL
TfGM,Corporate Services,Telecommunications,23/05/2017,5100109680,"6,185.04",BT PLC
TfGM,Transport,Concessionary Reimbursement,23/05/2017,1900054165,522.00,BULLITT CARS
TfGM,Transport,Print & Media,23/05/2017,5100109462,892.00,CHAPEL PRESS LTD
TfGM,Transport,Print & Media,23/05/2017,5100109929,"3,243.00",CHAPEL PRESS LTD
TfGM,Transport,Property & Equipment Maintenance,23/05/2017,5100109430,"21,243.50",CHARGE YOUR CAR LTD
TfGM,Transport,Property & Equipment Maintenance,23/05/2017,5100109538,487.50,CHARGE YOUR CAR LTD
TfGM,Transport,Property & Equipment Maintenance,23/05/2017,5100109898,(830.00),CHARGE YOUR CAR LTD
TfGM,Transport,Concessionary Reimbursement,23/05/2017,1900054154,588.00,CLUB/RADIO CARS MANCHESTER LTD
TfGM,Transport,Concessionary Reimbursement,23/05/2017,1900054166,"2,219.00",CLUB/RADIO CARS MANCHESTER LTD
TfGM,Transport,Driver Intervention Course Delivery Costs,23/05/2017,5100109614,"1,203.40",CPC TRAINING PROVIDER LTD
TfGM,Transport,Print & Media,23/05/2017,5100109618,"1,206.80",CREATIVE CONCERN
TfGM,Corporate Services,IS Support Services,23/05/2017,5100109448,"17,500.00",CRITICAL SOFTWARE
TfGM,Corporate Services,Cyclescheme,23/05/2017,5100109136,(520.83),CYCLESCHEME LTD
TfGM,Corporate Services,Telecommunications,23/05/2017,5100109848,"6,403.62",DAISY COMMUNICATIONS
TfGM,Transport,Legal Services,23/05/2017,5100109857,"4,774.00",DLA PIPER UK LLP
TfGM,Transport,IS Support and Licences,23/05/2017,5100109559,"1,093.00",DOTTED EYES LTD
TfGM,Corporate Services,IS Software & Maintenance,23/05/2017,5100109624,"48,996.00",DRAKEWELL LIMITED
TfGM,Transport,Print & Media,23/05/2017,5100109551,"1,989.00",DST OUTPUT (Nottingham) LTD
TfGM,Transport,Concessionary Support Services,23/05/2017,5100109640,"37,236.24",ESP SYSTEX LTD
TfGM,Transport,IS Support Services,23/05/2017,5100109657,"6,387.50",ESP SYSTEX LTD
TfGM,Transport,Driver Intervention Course Delivery Costs,23/05/2017,1900053912,656.40,G ROBINSON
TfGM,Transport,Security Services,23/05/2017,5100109968,"1,770.26",G4S FINANCE SHARED SERVICE CENTRE
TfGM,Transport,Driver Intervention Course Delivery Costs,23/05/2017,5100109670,"1,422.20",GARY CAMPBELL LTD
TfGM,Transport,Sustainable Travel Grant,23/05/2017,1900053936,"3,795.00",GREAT PLACES HOUSING GROUP
TfGM,Transport,"Rent, Rates & Service Charges",23/05/2017,1900053755,"1,050.00",GTR MAN FIRE AND RESCUE SERVICE
TfGM,Transport,Capital Costs - Engineering Support Services,23/05/2017,5100109669,"8,111.76",GUTTERIDGE HASKINS AND DAVEY LTD
TfGM,Corporate Services,Legal Services,23/05/2017,5100109962,"7,650.00",HANN BOOKS LIMITED
TfGM,Transport,Concessionary Reimbursement,23/05/2017,1900054152,515.00,HASTINGS PRIVATE HIRE
TfGM,Transport,Passenger Shelter Costs ,23/05/2017,5100109677,"37,726.58",JC DECAUX UK LTD
TfGM,Transport,Capital Costs - Capital Project Main Contract Works,23/05/2017,5100109823,"206,418.72",KIER CONSTRUCTION - NORTHERN
TfGM,Corporate Services,Financial and Commercial Support Services,23/05/2017,5100109644,"53,028.00",KPMG
TfGM,Corporate Services,Property Support Services,23/05/2017,5100109963,"2,000.00",LCR LTD
TfGM,Transport,Driver Intervention Course Delivery Costs,23/05/2017,5100109585,"1,969.20",LISA ATKINSON DTS
TfGM,Transport,Concessionary Reimbursement,23/05/2017,1900054151,"2,029.00",MAGNUM WHITELINE PRIVATE HIRE
TfGM,Transport,Concessionary Reimbursement,23/05/2017,1900054163,"1,328.00",MAGNUM WHITELINE PRIVATE HIRE
TfGM,Transport,"Rent, Rates & Service Charges",23/05/2017,1900053956,"1,245,400.00",MANCHESTER CITY COUNCIL
TfGM,Transport,"Rent, Rates & Service Charges",23/05/2017,1900053958,"211,957.50",MANCHESTER CITY COUNCIL
TfGM,Transport,"Rent, Rates & Service Charges",23/05/2017,1900053976,842.34,MANCHESTER CITY COUNCIL
TfGM,Transport,Highway Safety Support Services,23/05/2017,5100109560,"5,632.99",MANCHESTER CITY COUNCIL
TfGM,Transport,Capital Costs - Programme and Project Management Services,23/05/2017,5100109877,"1,650.00",MATCHTECH GROUP PLC
TfGM,Transport,Capital Costs - Programme and Project Management Services,23/05/2017,5100109310,"1,671.00",MORSON INTERNATIONAL
TfGM,Corporate Services,IS Support Services,23/05/2017,5100109311,"1,827.52",MORSON INTERNATIONAL
TfGM,Transport,Capital Costs - Programme and Project Management Services,23/05/2017,5100109312,"1,161.00",MORSON INTERNATIONAL
TfGM,Transport,Capital Costs - Programme and Project Management Services,23/05/2017,5100109313,"3,440.00",MORSON INTERNATIONAL
TfGM,Transport,Mechanical & Engeneering Feasibility Support,23/05/2017,5100109443,"14,000.00",MOTT MACDONALD LTD
TfGM,Transport,Property & Equipment Maintenance,23/05/2017,5100109478,"1,342.71",MOTT MACDONALD LTD
TfGM,Transport,Programme and Project Management Services,23/05/2017,5100109527,"6,856.50",MOTT MACDONALD LTD
TfGM,Transport,Engineering Support Services,23/05/2017,5100109921,"19,600.00",MOTT MACDONALD LTD
TfGM,Transport,Capital Costs - IS Support Services,23/05/2017,5100109950,"3,098.00",MOTT MACDONALD LTD
TfGM,Transport,Capital Costs - IS Support Services,23/05/2017,5100109951,"17,708.84",MOTT MACDONALD LTD
TfGM,Transport,Engineering Support Services,23/05/2017,5100109956,"8,050.00",MOTT MACDONALD LTD
TfGM,Transport,Mechanical & Engeneering Feasibility Support,23/05/2017,5100109957,"7,635.00",MOTT MACDONALD LTD
TfGM,Transport,Mechanical & Engeneering Feasibility Support,23/05/2017,5100109958,"2,185.21",MOTT MACDONALD LTD
TfGM,Transport,Mechanical & Engeneering Feasibility Support,23/05/2017,5100109959,"1,069.25",MOTT MACDONALD LTD
TfGM,Transport,Capital Costs - Project Support Services,23/05/2017,5100103834,"3,250.00",MOUCHEL LIMITED
TfGM,Transport,Capital Costs - Project Support Services,23/05/2017,5100105815,"1,000.00",MOUCHEL LIMITED
TfGM,Transport,Capital Costs - Project Support Services,23/05/2017,5100107077,"1,650.00",MOUCHEL LIMITED
TfGM,Transport,Capital Costs - Project Support Services,23/05/2017,5100108987,"1,000.00",MOUCHEL LIMITED
TfGM,Transport,Metrolink Operating Costs,23/05/2017,5100109369,"52,183.55",MPACT THALES
TfGM,Transport,Metrolink Operating Costs,23/05/2017,5100109396,"19,662.46",MPACT THALES
TfGM,Transport,Traffic and Transportation Surveys,23/05/2017,5100109336,"1,792.00",NATIONWIDE DATA COLLECTION LTD
TfGM,Transport,Concessionary Reimbursement,23/05/2017,1900054161,"1,133.00",NEW RADIO CARS
TfGM,Transport,Print & Media,23/05/2017,5100109794,"3,957.30",OMEGA PRINT AND DESIGN LTD
TfGM,Transport,Print & Media,23/05/2017,5100109707,"2,086.55",ONE SMART COOKIE COMMUNICATIONS LTD
TfGM,Transport,Vehicle Repairs & Maintenance,23/05/2017,5100109352,"60,970.97",OPTARE LTD
TfGM,Transport,Capital Costs - Programme and Project Management Services,23/05/2017,5100109588,"2,058.55",PERTEMPS PROFESSIONAL STAFFING LTD
TfGM,Transport,Traffic and Transportation Surveys,23/05/2017,5100109530,"4,671.84",PLUSWORK LTD
TfGM,Transport,Traffic and Transportation Surveys,23/05/2017,5100109563,620.93,PLUSWORK LTD
TfGM,Transport,Traffic and Transportation Surveys,23/05/2017,5100109982,(620.93),PLUSWORK LTD
TfGM,Transport,Computer and Communications Equipment,23/05/2017,5100109550,650.00,POINTER LTD
TfGM,Transport,Capital Costs - Smart Ticketing,23/05/2017,5100109616,"1,600.00",PRACTICUS LIMITED
TfGM,Transport,Cycle Training Scheme,23/05/2017,5100109766,"1,020.00",QUEENS HALL ACTION ON POVERTY
TfGM,Transport,Passenger Shelter Costs ,23/05/2017,5100107621,"1,633.15",QUEENSBURY SHELTERS LIMITED
TfGM,Transport,Capital Costs - Passenger Shelter Costs ,23/05/2017,5100107927,"(3,634.12)",QUEENSBURY SHELTERS LIMITED
TfGM,Transport,Passenger Shelter Costs ,23/05/2017,5100108700,731.85,QUEENSBURY SHELTERS LIMITED
TfGM,Transport,Passenger Shelter Costs ,23/05/2017,5100109431,"4,084.45",QUEENSBURY SHELTERS LIMITED
TfGM,Corporate Services,Temporary Vacancy Cover,23/05/2017,1900053998,"3,148.35",REED SPECIALIST RECRUITMENT LTD
TfGM,Transport,Temporary Vacancy Cover,23/05/2017,5100109367,613.01,ROBERT WALTERS PLC
TfGM,Corporate Services,Temporary Vacancy Cover,23/05/2017,5100109377,561.30,ROBERT WALTERS PLC
TfGM,Transport,Capital Costs - Smart Ticketing,23/05/2017,5100109379,"1,760.88",ROBERT WALTERS PLC
TfGM,Transport,Capital Costs - Smart Ticketing,23/05/2017,5100109380,"1,872.00",ROBERT WALTERS PLC
TfGM,Transport,Capital Costs - Smart Ticketing,23/05/2017,5100109381,"1,800.00",ROBERT WALTERS PLC
TfGM,Transport,Capital Costs - Smart Ticketing,23/05/2017,5100109386,"1,305.00",ROBERT WALTERS PLC
TfGM,Transport,Capital Costs - Smart Ticketing,23/05/2017,5100109387,"1,305.00",ROBERT WALTERS PLC
TfGM,Transport,Capital Costs - Smart Ticketing,23/05/2017,5100109391,"2,200.00",ROBERT WALTERS PLC
TfGM,Transport,Temporary Vacancy Cover,23/05/2017,5100109891,768.86,ROBERT WALTERS PLC
TfGM,Corporate Services,Temporary Vacancy Cover,23/05/2017,5100109893,701.63,ROBERT WALTERS PLC
TfGM,Transport,Capital Costs - Smart Ticketing,23/05/2017,5100109895,"2,340.00",ROBERT WALTERS PLC
TfGM,Transport,Capital Costs - Smart Ticketing,23/05/2017,5100109896,"2,250.00",ROBERT WALTERS PLC
TfGM,Transport,Capital Costs - Smart Ticketing,23/05/2017,5100109899,"2,750.00",ROBERT WALTERS PLC
TfGM,Transport,Capital Costs - Smart Ticketing,23/05/2017,5100109900,"2,750.00",ROBERT WALTERS PLC
TfGM,Transport,Capital Costs - Smart Ticketing,23/05/2017,5100109901,"2,750.00",ROBERT WALTERS PLC
TfGM,Transport,Capital Costs - Smart Ticketing,23/05/2017,5100109902,"2,750.00",ROBERT WALTERS PLC
TfGM,Transport,Business Case Development,23/05/2017,5100109903,"3,000.00",ROBERT WALTERS PLC
TfGM,Transport,Print & Media,23/05/2017,5100109493,434.91,SERVICEPOINT UK
TfGM,Transport,Traffic Signal Works,23/05/2017,5100109471,"4,425.43",SIEMENS PLC
TfGM,Transport,Traffic Signal Works,23/05/2017,5100109509,"20,841.91",SIEMENS PLC
TfGM,Transport,Traffic Signal Works,23/05/2017,5100109730,"36,620.56",SIEMENS PLC
TfGM,Transport,Business Case Development,23/05/2017,5100109870,"8,255.00",SJC BUSINESS CONSULTANCY LTD
TfGM,Transport,Other Operational Costs,23/05/2017,5100109792,"3,300.00",SOH (EUROPE) LTD
TfGM,Transport,Property & Equipment Maintenance,23/05/2017,5100109822,"8,965.96",SPAANS BABCOCK LTD
TfGM,Transport,Design Support Services,23/05/2017,5100109305,"23,595.00",STEER DAVIES GLEEVE LTD
TfGM,Transport,Concessionary Reimbursement,23/05/2017,1900054168,"2,634.00",SUPERCABS
TfGM,Transport,Business Case Development,23/05/2017,5100109569,"10,259.00",SYSTRA LTD
TfGM,Transport,Traffic and Transportation Surveys,23/05/2017,5100109408,"32,445.00",TRACSIS TRAFFIC DATA LTD
TfGM,Transport,"Rent, Rates & Service Charges",23/05/2017,1900053986,889.42,TRAFFORD MBC
TfGM,Transport,Capital Costs - Computer and Communications Equipment,23/05/2017,5100109459,624.00,TRANSACT TECHNOLOGY SOLUTIONS LTD
TfGM,Transport,Capital Costs - Quantity Surveying Services,23/05/2017,5100109582,"1,725.00",TURNER & TOWNSEND PROJECT MANAGEMEN
TfGM,Transport,Energy Management Services,23/05/2017,5100109535,"2,675.00",TXM RECRUIT LIMITED
TfGM,Transport,Energy Management Services,23/05/2017,5100109537,"1,605.00",TXM RECRUIT LIMITED
TfGM,Transport,Print & Media,23/05/2017,5100108754,"3,750.00",UCREATE - UTV MEDIA (GB)
TfGM,Transport,Research Services,23/05/2017,5100108293,"7,000.00",UNIVERSITY OF SUNDERLAND
TfGM,Transport,Telecommunications,23/05/2017,5100109829,"1,890.32",VODAFONE CONNECT LTD
TfGM,Transport,Telecommunications,23/05/2017,5100109830,"1,883.92",VODAFONE CONNECT LTD
TfGM,Transport,Telecommunications,23/05/2017,5100109851,900.53,VODAFONE LTD
TfGM,Transport,Capital Costs - Environmental & Ecological Support Services,23/05/2017,5100109483,"1,984.00",W T JENKINS LTD
TfGM,Transport,Room Hire,23/05/2017,5100109884,526.50,WARDLEY LTD T/A HOME CAFE BAR MANCH
TfGM,Transport,Property & Equipment Maintenance,23/05/2017,5100109878,"4,106.00",WIGAN COUNCIL
TfGM,Transport,Project Management Services,23/05/2017,5100109371,"13,291.96",WSP UK LTD
TfGM,Transport,Capital Costs - Design Support Services,23/05/2017,5100109597,"36,686.00",WSP UK LTD
TfGM,Transport,Sustainable Transport Support Services,23/05/2017,5100109844,"3,996.00",WSP UK LTD
TfGM,Corporate Services,Equipment - Fixtures and Fittings,23/05/2017,5100109969,504.00,XL OFFICE SOLUTIONS
TfGM,Transport,Capital Costs - Utility & Service Diversion Costs,24/05/2017,5100109976,"770,399.82",ELECTRICITY NORTH WEST EHV
TfGM,Transport,Capital Costs - Project Management Services,24/05/2017,1900054194,791.79,HOVIS LTD
TfGM,Transport,Capital Costs - Project Management Services,24/05/2017,1900054195,"4,511.31",HOVIS LTD
TfGM,Transport,Capital Costs - Project Management Services,24/05/2017,1900054197,"1,125.00",HOVIS LTD
TfGM,Transport,Capital Costs - Project Management Services,24/05/2017,1900054199,550.00,HOVIS LTD
TfGM,Transport,Capital Costs - Utility & Service Diversion Costs,24/05/2017,5100109977,"64,536.08",JSM CONSTRUCTION LTD
TfGM,Transport,Capital Costs - Legal Services,24/05/2017,1900054201,"9,410.00",PEEL LAND AND PROPERTY PORTS LTD
TfGM,Transport,Capital Costs - Legal Services,24/05/2017,1900054202,"17,118.10",PEEL SOUTH EAST LTD
TfGM,Transport,Capital Costs - Land Acquisition and Related Costs,25/05/2017,1900054235,"496,999.93",DLA PIPER UK LLP
TfGM,Transport,Training,25/05/2017,5100107922,"(2,500.00)",UNIVERSITY OF SALFORD
TfGM,Transport,Capital Costs - Project Management Services,26/05/2017,5100109593,"10,206.00",AECOM LTD
TfGM,Transport,Business Case Development,26/05/2017,5100110048,"14,522.00",AECOM LTD
TfGM,Corporate Services,IS Software & Maintenance,26/05/2017,5100109937,"19,444.45",APPLIED CARD TECHNOLOGIES
TfGM,Transport,Sustainable Travel Grant,26/05/2017,1900054219,"8,452.00",ARAWAK WALTON HOUSING ASSOC LTD
TfGM,Transport,Capital Costs - Programme and Project Management Services,26/05/2017,5100109653,"8,352.00",ARCADIS CONSULTING (UK) LTD
TfGM,Corporate Services,Financial and Commercial Support Services,26/05/2017,5100109971,"7,192.13",ARCADIS LLP
TfGM,Transport,Design Support Services,26/05/2017,5100109972,"5,568.08",ARCADIS LLP
TfGM,Transport,Heavy Rail Support Services,26/05/2017,5100109594,"39,607.00",ARRIVA RAIL NORTH LTD
TfGM,Transport,Heavy Rail Support Services,26/05/2017,5100109595,"52,809.33",ARRIVA RAIL NORTH LTD
TfGM,Transport,Heavy Rail Support Services,26/05/2017,5100109596,"69,752.88",ARRIVA RAIL NORTH LTD
TfGM,Corporate Services,Procurement Services,26/05/2017,5100109490,"9,350.00",ATKINS CONSULTANTS LTD
TfGM,Corporate Services,IS Support and Licences,26/05/2017,5100109654,"9,342.00",ATKINS CONSULTANTS LTD
TfGM,Transport,Capital Costs - Programme and Project Management Services,26/05/2017,5100110040,"7,735.00",ATKINS CONSULTANTS LTD
TfGM,Transport,Vehicle Costs,26/05/2017,5100110042,"2,244.47",AUTOMOTIVE LEASING
TfGM,Transport,Capital Costs - Legal Services,26/05/2017,5100110000,"15,849.60",BIRCHAM DYSON BELL
TfGM,Transport,Programme and Project Management Services,26/05/2017,1900054250,"13,500.00",BLACC LTD
TfGM,Transport,Programme and Project Management Services,26/05/2017,1900054251,"11,269.00",BLACC LTD
TfGM,Transport,Traffic Signal Works,26/05/2017,5100109781,"2,873.58",BLUE NETWORK SOLUTIONS LTD
TfGM,Transport,Print & Media,26/05/2017,5100109635,444.58,BLUETREE DESIGN AND PRINT LTD
TfGM,Transport,Driver Intervention Course Delivery Costs,26/05/2017,5100110121,"2,675.20",BOLTON WHITES HOTEL LTD
TfGM,Transport,Sustainable Travel Grant,26/05/2017,1900054217,"10,000.00",Bruntwood LG Ltd
TfGM,Transport,Capital Costs - Computer and Communications Equipment,26/05/2017,5100109717,"1,708.68",BT PLC
TfGM,Transport,Capital Costs - Computer and Communications Equipment,26/05/2017,5100109975,"31,362.95",BT PLC
TfGM,Transport,Capital Costs - Capital Project Main Contract Works,26/05/2017,5100110018,"5,183.69",CAIRN CROSS CIVIL ENGINEERING LTD
TfGM,Transport,Driver Intervention Course Delivery Costs,26/05/2017,5100109189,"8,620.00",CARRINGTON BUSINESS PARK (CBPK)
TfGM,Transport,Cycle Training Scheme,26/05/2017,5100109753,510.00,CERA LTD
TfGM,Transport,Cycle Training Scheme,26/05/2017,5100109768,850.00,CERA LTD
TfGM,Transport,Print & Media,26/05/2017,5100109615,561.00,CESTRIAN
TfGM,Transport,Property & Equipment Maintenance,26/05/2017,5100109561,830.00,CHARGE YOUR CAR LTD
TfGM,Transport,Postage Costs,26/05/2017,5100109617,431.13,CITY SPRINT UK
TfGM,Transport,Telecommunications,26/05/2017,5100109849,"6,298.64",DAISY COMMUNICATIONS
TfGM,Transport,Telecommunications,26/05/2017,5100110022,"6,289.53",DAISY COMMUNICATIONS
TfGM,Transport,Capital Costs - Programme and Project Management Services,26/05/2017,5100109733,"11,700.00",EXPERIS LTD
TfGM,Transport,Business Case Development,26/05/2017,5100109734,"6,075.00",EXPERIS LTD
TfGM,Transport,Capital Costs - Smart Ticketing,26/05/2017,5100109735,"8,750.00",EXPERIS LTD
TfGM,Corporate Services,IS Support Services,26/05/2017,5100109736,"8,235.15",EXPERIS LTD
TfGM,Transport,Capital Costs - Smart Ticketing,26/05/2017,5100109738,"8,100.00",EXPERIS LTD
TfGM,Corporate Services,Capital Costs - IS Support Services,26/05/2017,5100109739,"8,100.00",EXPERIS LTD
TfGM,Corporate Services,IS Support Services,26/05/2017,5100109740,"8,550.00",EXPERIS LTD
TfGM,Transport,Property & Equipment Maintenance,26/05/2017,5100109626,"5,985.88",FES FM LTD
TfGM,Transport,Property & Equipment Maintenance,26/05/2017,5100109627,"4,177.08",FES FM LTD
TfGM,Transport,Property & Equipment Maintenance,26/05/2017,5100109628,"2,998.74",FES FM LTD
TfGM,Transport,Driver Intervention Course Delivery Costs,26/05/2017,5100109655,"1,203.40",G WEBSTER
TfGM,Transport,Utilities & Energy,26/05/2017,5100110079,"3,826.03",GMATL
TfGM,Transport,Occupational Health,26/05/2017,5100110094,491.50,HEALTH MANAGEMENT LTD
TfGM,Transport,Business Case Development,26/05/2017,5100109643,"15,328.76",JACOBS UK LTD
TfGM,Transport,Traffic Signal Works,26/05/2017,5100109718,"2,833.26",JONES LIGHTING
TfGM,Transport,Training,26/05/2017,5100109607,"1,050.00",JS TRAINING CONSULTANTS LTD
TfGM,Transport,Property & Equipment Maintenance,26/05/2017,5100109824,"8,025.00",LESLIE ROBERTS AND CO LTD
TfGM,Transport,Property & Equipment Maintenance,26/05/2017,5100107945,"3,761.00",MANCHESTER CITY COUNCIL
TfGM,Transport,Property & Equipment Maintenance,26/05/2017,5100108992,"3,132.00",MANCHESTER CITY COUNCIL
TfGM,Transport,Property & Equipment Maintenance,26/05/2017,5100109566,696.00,MANCHESTER CITY COUNCIL
TfGM,Transport,Capital Costs - Engineering Support Services,26/05/2017,5100109992,"10,950.00",MASON CONSULTANTS LTD
TfGM,Transport,Capital Costs - Programme and Project Management Services,26/05/2017,5100109666,"1,237.50",MATCHTECH GROUP PLC
TfGM,Transport,Capital Costs - Programme and Project Management Services,26/05/2017,5100109667,"2,062.50",MATCHTECH GROUP PLC
TfGM,Transport,Concessionary Reimbursement,26/05/2017,5100109964,"1,260.00",MERLINCO LTD
TfGM,Transport,Metrolink Operating Costs,26/05/2017,5100110023,"1,618,921.00",METROLINK RATP DEV LTD
TfGM,Transport,Metrolink Operating Costs,26/05/2017,5100110024,"(31,187.00)",METROLINK RATP DEV LTD
TfGM,Transport,Capital Costs - Metrolink Operating Costs,26/05/2017,5100110046,"41,302.00",METROLINK RATP DEV LTD
TfGM,Transport,Capital Costs - Mechanical & Engineering Support Services,26/05/2017,5100110122,"2,230.00",METROLINK RATP DEV LTD
TfGM,Transport,Metrolink Operating Costs,26/05/2017,5100110124,"2,040.00",METROLINK RATP DEV LTD
TfGM,Transport,Research Services,26/05/2017,5100109581,"70,891.24",MORI LTD
TfGM,Transport,Capital Costs - Project Support Services,26/05/2017,5100109587,"12,962.34",MOTT MACDONALD LTD
TfGM,Transport,Mechanical & Engeneering Feasibility Support,26/05/2017,5100109647,"14,000.00",MOTT MACDONALD LTD
TfGM,Transport,Planning Support Services,26/05/2017,5100109648,"3,178.10",MOTT MACDONALD LTD
TfGM,Transport,Metrolink Operating Costs,26/05/2017,5100109916,"209,486.50",MPACT THALES
TfGM,Transport,Metrolink Operating Costs,26/05/2017,5100109917,"80,197.48",MPACT THALES
TfGM,Transport,Property & Equipment Maintenance,26/05/2017,5100110020,"7,568.47",MPACT THALES
TfGM,Transport,Traffic and Transportation Surveys,26/05/2017,5100109335,"3,550.00",NATIONWIDE DATA COLLECTION LTD
TfGM,Transport,Vehicle Repairs & Maintenance,26/05/2017,5100104279,"(1,099.04)",NORTHERN COMMERCIALS
TfGM,Transport,Vehicle Repairs & Maintenance,26/05/2017,5100105677,438.75,NORTHERN COMMERCIALS
TfGM,Transport,Vehicle Repairs & Maintenance,26/05/2017,5100105678,(438.75),NORTHERN COMMERCIALS
TfGM,Transport,Property & Equipment Maintenance,26/05/2017,5100109828,"136,831.70",NOVUS PROPERTY SOLUTIONS LTD
TfGM,Transport,Capital Costs - Legal Services,26/05/2017,5100110093,"3,044.00",PANNONE (SLATER & GORDON)
TfGM,Transport,Programme and Project Management Services,26/05/2017,5100109663,"11,900.00",PENNA PLC
TfGM,Transport,Capital Costs - Programme and Project Management Services,26/05/2017,5100109783,"1,646.84",PERTEMPS PROFESSIONAL STAFFING LTD
TfGM,Transport,Traffic and Transportation Surveys,26/05/2017,5100109529,590.25,PLUSWORK LTD
TfGM,Transport,Traffic and Transportation Surveys,26/05/2017,5100109534,485.75,PLUSWORK LTD
TfGM,Transport,Traffic and Transportation Surveys,26/05/2017,5100109543,"1,080.00",PLUSWORK LTD
TfGM,Transport,Traffic and Transportation Surveys,26/05/2017,5100109544,"4,762.84",PLUSWORK LTD
TfGM,Transport,Capital Costs - Smart Ticketing,26/05/2017,5100109786,"1,600.00",PRACTICUS LIMITED
TfGM,Transport,Smart Ticketing,26/05/2017,5100109787,"2,000.00",PRACTICUS LIMITED
TfGM,Transport,Capital Costs - Programme and Project Management Services,26/05/2017,5100109922,"2,948.00",PRACTICUS LIMITED
TfGM,Corporate Services,Temporary Vacancy Cover,26/05/2017,1900053997,"3,117.65",REED SPECIALIST RECRUITMENT LTD
TfGM,Corporate Services,Temporary Vacancy Cover,26/05/2017,5100109576,701.63,ROBERT WALTERS PLC
TfGM,Transport,Capital Costs - Smart Ticketing,26/05/2017,5100109580,"2,200.00",ROBERT WALTERS PLC
TfGM,Transport,Print & Stationery ,26/05/2017,5100110036,440.00,SERVICEPOINT UK
TfGM,Transport,Traffic Signal Works,26/05/2017,5100109472,"11,074.40",SIEMENS PLC
TfGM,Transport,Traffic Signal Works,26/05/2017,5100110072,"59,410.46",SIEMENS PLC
TfGM,Transport,Traffic Signal Works,26/05/2017,5100110073,920.51,SIEMENS PLC
TfGM,Transport,Supported Bus Services,26/05/2017,1700036032,"(112,121.60)",STOTTS TOURS
TfGM,Transport,Concessionary Reimbursement,26/05/2017,1900054065,"21,000.00",STOTTS TOURS
TfGM,Transport,Supported Bus Services,26/05/2017,1900054130,"28,060.18",STOTTS TOURS
TfGM,Transport,Supported Bus Services,26/05/2017,1900054131,"69,556.25",STOTTS TOURS
TfGM,Transport,Supported Bus Services,26/05/2017,1900054236,"23,700.00",STOTTS TOURS
TfGM,Transport,Business Case Development,26/05/2017,5100109630,"2,671.00",SYSTRA LTD
TfGM,Transport,Training,26/05/2017,5100109797,750.00,SYSTRA LTD
TfGM,Transport,Sustainable Travel Grant,26/05/2017,1900054220,"8,155.32",TAMESIDE COLLEGE
TfGM,Transport,Traffic Signal Works,26/05/2017,5100109451,877.50,TDC SYSTEMS LTD
TfGM,Transport,Capital Costs - Planning Support Services,26/05/2017,5100109800,"6,471.00",TRAFFORD MBC
TfGM,Transport,Human Resource Services,26/05/2017,5100109779,967.00,VACANCY FILLER LTD
TfGM,Transport,IS Support Services,26/05/2017,5100109771,"7,894.38",VIX TECHNOLOGY LTD
TfGM,Transport,IS Support Services,26/05/2017,5100109874,"26,253.42",VIX TECHNOLOGY LTD
TfGM,Transport,IS Support Services,26/05/2017,5100109875,"(1,312.67)",VIX TECHNOLOGY LTD
TfGM,Transport,Utilities & Energy,26/05/2017,1900054180,538.86,WATERPLUS LTD
TfGM,Transport,Utilities & Energy,26/05/2017,1900054181,"7,918.34",WATERPLUS LTD
TfGM,Transport,Utilities & Energy,26/05/2017,1900054182,"1,359.93",WATERPLUS LTD
TfGM,Transport,Utilities & Energy,26/05/2017,1900054183,"2,302.28",WATERPLUS LTD
TfGM,Transport,Capital Costs - Utility & Service Diversion Costs,30/05/2017,5100109135,"(5,803.48)",BT OPENREACH (SALFORD)
TfGM,Transport,Concessionary Reimbursement,31/05/2017,1900054240,689.00,1919 TAXIS
TfGM,Transport,Training,31/05/2017,5100110082,520.00,ACAS
TfGM,Transport,Vehicle Costs,31/05/2017,5100109052,425.00,ACTIA UK LTD
TfGM,Transport,Vehicle Costs,31/05/2017,5100109930,425.00,ACTIA UK LTD
TfGM,Transport,Vehicle Costs,31/05/2017,1200044274,757.06,ALLSTAR
TfGM,Transport,Business Case Development,31/05/2017,5100110211,"5,400.00",AMEY (CONSULTING & RAIL)
TfGM,Transport,Heavy Rail Support Services,31/05/2017,5100110202,"2,458.20",AMEY METERING LTD
TfGM,Transport,Smart Ticketing,31/05/2017,5100109938,"27,034.00",APPLIED CARD TECHNOLOGIES
TfGM,Transport,Capital Costs - Computer and Communications Equipment,31/05/2017,5100110205,"1,991.65",BT PLC
TfGM,Transport,Capital Costs - Project Management Services,31/05/2017,5100109706,"1,120.00",CDI ANDERSELITE LTD
TfGM,Transport,Capital Costs - Project Management Services,31/05/2017,5100109790,"2,234.40",CDI ANDERSELITE LTD
TfGM,Transport,Cycle Training Scheme,31/05/2017,5100109837,593.00,CERA LTD
TfGM,Transport,Cycle Training Scheme,31/05/2017,5100109838,850.00,CERA LTD
TfGM,Transport,Print & Media,31/05/2017,5100109859,561.00,CESTRIAN
TfGM,Transport,Property & Equipment Maintenance,31/05/2017,5100109545,830.00,CHARGE YOUR CAR LTD
TfGM,Transport,Property & Equipment Maintenance,31/05/2017,5100109556,830.00,CHARGE YOUR CAR LTD
TfGM,Transport,Capital Costs - Smart Ticketing,31/05/2017,5100110138,"6,117.54",EXPERIS LTD
TfGM,Transport,Capital Costs - Programme and Project Management Services,31/05/2017,5100110295,"6,794.04",EXPERIS LTD
TfGM,Transport,Postage Costs,31/05/2017,5100110201,"5,200.00",FRAMA UK LIMITED
TfGM,Transport,Print & Media,31/05/2017,5100109789,"3,433.50",FRETWELL PRINT AND DIRECT MAIL
TfGM,Transport,Cycling Support Services,31/05/2017,5100110190,"(1,080.00)",GET ON C.I.C
TfGM,Transport,Cycling Support Services,31/05/2017,5100110191,"1,100.00",GET ON C.I.C
TfGM,Transport,Capital Costs - Ancillary Construction Costs,31/05/2017,5100110204,"3,649.48",HIGHWAYS ENGLAND COMPANY
TfGM,Transport,Property & Equipment Maintenance,31/05/2017,5100109075,"3,480.00",INTERCONNECT NETWORK SYSTEMS LTD
TfGM,Transport,Concessionary Reimbursement,31/05/2017,1900054239,"2,468.00",METRO TAXIS LTD
TfGM,Transport,Equipment - Fixtures and Fittings,31/05/2017,5100110126,767.30,METROLINK RATP DEV LTD
TfGM,Transport,Street Furniture Consumables,31/05/2017,5100110185,"7,385.76",MLPS
TfGM,Transport,Capital Costs - Project Management Services,31/05/2017,5100109833,"7,498.20",MORSON INTERNATIONAL
TfGM,Transport,Capital Costs - Programme and Project Management Services,31/05/2017,5100109834,"1,671.00",MORSON INTERNATIONAL
TfGM,Transport,Capital Costs - Programme and Project Management Services,31/05/2017,5100109835,"1,548.00",MORSON INTERNATIONAL
TfGM,Corporate Services,IS Support Services,31/05/2017,5100109836,"1,827.52",MORSON INTERNATIONAL
TfGM,Transport,Capital Costs - Programme and Project Management Services,31/05/2017,5100109840,"1,720.00",MORSON INTERNATIONAL
TfGM,Transport,Programme and Project Management Services,31/05/2017,5100110200,"8,913.45",MOTT MACDONALD LTD
TfGM,Transport,Metrolink Operating Costs,31/05/2017,5100110140,"5,265.00",MPACT THALES
TfGM,Transport,Capital Costs - Metrolink Operating Costs,31/05/2017,5100110141,"4,179.22",MPACT THALES
TfGM,Transport,Capital Costs - Environmental & Ecological Support Services,31/05/2017,5100110208,"8,691.19",N T KILLINGLEY LTD
TfGM,Transport,Property & Equipment Maintenance,31/05/2017,5100110235,"48,623.00",NETWORK RAIL
TfGM,Transport,Property & Equipment Maintenance,31/05/2017,5100108413,"1,534.80",NOVUS PROPERTY SOLUTIONS LTD
TfGM,Transport,Property & Equipment Maintenance,31/05/2017,5100109868,"9,062.79",NOVUS PROPERTY SOLUTIONS LTD
TfGM,Transport,Capital Costs - Local Authority Planning Costs,31/05/2017,5100110077,"8,998.88",OLDHAM MBC
TfGM,Transport,Capital Costs - Project Management Services,31/05/2017,5100110186,"11,070.00",OUT OF THE BOX DEVELOPMENT LTD
TfGM,Transport,Capital Costs - Engineering Support Services,31/05/2017,5100110153,"7,740.00",PEWFALL COMMUNICATIONS LIMITED
TfGM,Transport,Traffic and Transportation Surveys,31/05/2017,5100109919,622.99,PLUSWORK LTD
TfGM,Transport,Traffic and Transportation Surveys,31/05/2017,5100109932,622.99,PLUSWORK LTD
TfGM,Transport,Traffic and Transportation Surveys,31/05/2017,5100109974,"4,853.96",PLUSWORK LTD
TfGM,Transport,Capital Costs - Computer and Communications Equipment,31/05/2017,5100107816,750.00,POINTER LTD
TfGM,Transport,Capital Costs - Programme and Project Management Services,31/05/2017,5100110158,"3,685.00",PRACTICUS LIMITED
TfGM,Corporate Services,Temporary Vacancy Cover,31/05/2017,1900054208,"2,561.94",REED SPECIALIST RECRUITMENT LTD
TfGM,Transport,Temporary Vacancy Cover,31/05/2017,5100109720,768.86,ROBERT WALTERS PLC
TfGM,Transport,Temporary Vacancy Cover,31/05/2017,5100109721,613.01,ROBERT WALTERS PLC
TfGM,Corporate Services,Temporary Vacancy Cover,31/05/2017,5100109722,561.30,ROBERT WALTERS PLC
TfGM,Transport,Capital Costs - Smart Ticketing,31/05/2017,5100109723,"1,404.00",ROBERT WALTERS PLC
TfGM,Transport,Capital Costs - Smart Ticketing,31/05/2017,5100109724,"2,340.00",ROBERT WALTERS PLC
TfGM,Transport,Capital Costs - Smart Ticketing,31/05/2017,5100109725,"2,250.00",ROBERT WALTERS PLC
TfGM,Transport,Capital Costs - Smart Ticketing,31/05/2017,5100109726,"2,175.00",ROBERT WALTERS PLC
TfGM,Transport,Engineering Support Services,31/05/2017,5100110099,"2,120.00",ROBERT WALTERS PLC
TfGM,Transport,Engineering Support Services,31/05/2017,5100110101,"1,325.00",ROBERT WALTERS PLC
TfGM,Transport,Engineering Support Services,31/05/2017,5100110103,"2,650.00",ROBERT WALTERS PLC
TfGM,Transport,Engineering Support Services,31/05/2017,5100110105,"2,650.00",ROBERT WALTERS PLC
TfGM,Transport,Cycling Support Services,31/05/2017,5100108607,916.67,ROLLAPALUZA LTD
TfGM,Corporate Services,Financial and Commercial Support Services,31/05/2017,5100110152,"5,400.00",SHERRINGTON PROGRAMME CONSULTANTS L
TfGM,Transport,Traffic Signal Works,31/05/2017,5100110074,948.02,SIEMENS PLC
TfGM,Transport,Traffic Signal Works,31/05/2017,5100110084,"4,851.71",SIEMENS PLC
TfGM,Transport,Traffic Signal Works,31/05/2017,5100110085,"4,759.32",SIEMENS PLC
TfGM,Transport,Traffic Signal Works,31/05/2017,5100110089,"13,765.36",SIEMENS PLC
TfGM,Corporate Services,Procurement Services,31/05/2017,5100110320,"12,390.00",SIMPLY UMBRELLA SERVICES LIMITED
TfGM,Corporate Services,Procurement Services,31/05/2017,5100110321,"8,800.00",SIMPLY UMBRELLA SERVICES LIMITED
TfGM,Transport,Capital Costs - Engineering Support Services,31/05/2017,5100109850,675.00,STEPHEN J FIRTH
TfGM,Transport,Utilities & Energy,31/05/2017,1900054261,"50,090.61",SWALEC
TfGM,Transport,Property & Equipment Maintenance,31/05/2017,5100109619,"1,012.15",SWIFT FIRE & SECURITY GROUP PLC
TfGM,Transport,Property & Equipment Maintenance,31/05/2017,5100109973,"1,012.15",SWIFT FIRE & SECURITY GROUP PLC
TfGM,Transport,Concessionary Reimbursement,31/05/2017,1900054238,935.00,SWINTON PRIVATE HIRE
TfGM,Transport,Property & Equipment Maintenance,31/05/2017,5100108833,"1,927.80",TAMESIDE MBC
TfGM,Transport,Property & Equipment Maintenance,31/05/2017,5100108834,"1,927.80",TAMESIDE MBC
TfGM,Transport,Property & Equipment Maintenance,31/05/2017,5100108835,"1,927.80",TAMESIDE MBC
TfGM,Transport,Traffic Signal Works,31/05/2017,5100109858,"1,135.00",TDC SYSTEMS LTD
TfGM,Transport,Capital Costs - Equipment and Electrical Consumables,31/05/2017,5100110081,"9,627.00",TRANSFORMERS & RECTIFIERS LTD
TfGM,Transport,Vehicle Costs,31/05/2017,1900054260,"2,744.02",WEST WAY MANCHESTER
TfGM,Transport,Property & Equipment Maintenance,31/05/2017,5100108749,"2,925.00",WIGAN COUNCIL
TfGM,Transport,Cycling Support Services,31/05/2017,5100110173,540.00,WILDE CONSULTANTS LTD
TfGM,Transport,Engineering Support Services,31/05/2017,5100110172,"21,000.00",WSP UK LTD
TfGM,Transport,Property & Equipment Maintenance,31/05/2017,5100108405,565.00,XL OFFICE SOLUTIONS
TfGM,Corporate Services,Equipment - Fixtures and Fittings,31/05/2017,5100110148,"1,881.00",XL OFFICE SOLUTIONS
TfGM,Transport,Property & Equipment Maintenance,31/05/2017,5100110149,"1,864.00",XL OFFICE SOLUTIONS
TfGM,Transport,Computer and Printing Hardware,31/05/2017,5100110076,555.87,XMA LIMITED
TfGM,Transport,Capital Costs - Capital Project Main Contract Works,01/06/2017,5100110349,"88,924.50",THALES TRANSPORT & SECURITY LTD
TfGM,Transport,Capital Costs - Capital Project Main Contract Works,01/06/2017,5100110352,"10,231.00",THALES TRANSPORT & SECURITY LTD
TfGM,Transport,Capital Costs - Capital Project Main Contract Works,01/06/2017,5100110353,"35,000.00",THALES TRANSPORT & SECURITY LTD
TfGM,Transport,Capital Costs - Capital Project Main Contract Works,01/06/2017,5100110354,"360,112.00",THALES TRANSPORT & SECURITY LTD
TfGM,Corporate Services,Telecommunications,01/06/2017,5100109407,"124,706.14",VIRGIN MEDIA BUSINESS
TfGM,Transport,Capital Costs - Engineering Support Services,02/06/2017,5100109323,"3,210.00",LATZ+PARTNER
TfGM,Transport,Supported Bus Services,02/06/2017,1900054286,"23,721.60",STOTTS TOURS
TfGM,Transport,Legal Services,05/06/2017,5100110398,"3,900.00",11KBW
TfGM,Corporate Services,IS Support and Licences,05/06/2017,5100110041,"12,000.00",ACONEX SERVICES LTD
TfGM,Transport,Sustainable Travel Grant,05/06/2017,1900054218,"1,540.00",ADACTUS HOUSING ASSOCIATION
TfGM,Transport,Capital Costs - Project Support Services,05/06/2017,5100110409,"2,219.00",AECOM INFRASTRUCTURE & ENVIRONMENT
TfGM,Transport,Capital Costs - Planning Support Services,05/06/2017,5100108323,"7,020.00",AECOM LTD
TfGM,Transport,Design Support Services,05/06/2017,5100109945,571.56,AECOM LTD
TfGM,Transport,Research Services,05/06/2017,5100109946,"6,481.00",AECOM LTD
TfGM,Transport,Print & Media,05/06/2017,5100109927,"4,650.00",ASTRA SIGNS
TfGM,Transport,Capital Costs - Project Management Services,05/06/2017,5100110030,"10,610.00",ATKINS CONSULTANTS LTD
TfGM,Transport,Capital Costs - Print & Media,05/06/2017,5100110057,"4,289.00",ATKINS CONSULTANTS LTD
TfGM,Transport,Capital Costs - Capital Project Main Contract Works,05/06/2017,5100110415,"6,405.07",BALFOUR BEATTY CE LTD
TfGM,Transport,Legal Services,05/06/2017,5100109989,"3,000.00",BIRCHAM DYSON BELL
TfGM,Transport,Traffic Signal Works,05/06/2017,5100109993,900.00,BLUE NETWORK SOLUTIONS LTD
TfGM,Corporate Services,Employee Reimbursed Costs,05/06/2017,5100110350,435.09,CHILDCARE VOUCHERS LTD
TfGM,Corporate Services,Employee Reimbursed Costs,05/06/2017,5100110351,"12,431.16",CHILDCARE VOUCHERS LTD
TfGM,Transport,Capital Costs - Quantity Surveying Services,05/06/2017,5100110402,"3,000.00",DAVIS LANGDON
TfGM,Transport,Professional Services,05/06/2017,5100110389,"4,800.00",EDGERTON MANAGEMENT SERVICES LTD
TfGM,Transport,Bus Station & Shelter Consumables,05/06/2017,5100109994,508.30,EUROMEC CONTRACTS LTD
TfGM,Transport,Capital Costs - Programme and Project Management Services,05/06/2017,5100109737,"3,088.20",EXPERIS LTD
TfGM,Transport,Business Case Development,05/06/2017,5100110113,"2,250.00",EXPERIS LTD
TfGM,Corporate Services,IS Support Services,05/06/2017,5100110115,"7,200.00",EXPERIS LTD
TfGM,Transport,Property & Equipment Maintenance,05/06/2017,5100108327,"5,141.06",FES FM LTD
TfGM,Transport,Property & Equipment Maintenance,05/06/2017,5100108329,"4,770.28",FES FM LTD
TfGM,Transport,Property & Equipment Maintenance,05/06/2017,5100107455,"4,985.75",FIELDWAY GROUP
TfGM,Transport,Property & Equipment Maintenance,05/06/2017,5100109880,"(4,985.75)",FIELDWAY GROUP
TfGM,Transport,Property & Equipment Maintenance,05/06/2017,5100110268,"6,039.56",FIELDWAY GROUP
TfGM,Transport,Property & Equipment Maintenance,05/06/2017,5100110269,"5,411.09",FIELDWAY GROUP
TfGM,Transport,Property & Equipment Maintenance,05/06/2017,5100110270,"3,481.70",FIELDWAY GROUP
TfGM,Transport,Property & Equipment Maintenance,05/06/2017,5100110271,"2,393.00",FIELDWAY GROUP
TfGM,Transport,Professional Services,05/06/2017,5100109947,"39,320.00",HALCROW GROUP LTD
TfGM,Transport,Business Case Development,05/06/2017,5100110078,"3,406.06",IHS GLOBAL LTD
TfGM,Transport,Property & Equipment Maintenance,05/06/2017,5100110374,"1,460.00",JL ENGINEERING (RIXTON) LTD
TfGM,Transport,Vehicle Costs,05/06/2017,5100110227,"2,728.44",LEX AUTOLEASE LTD
TfGM,Corporate Services,Insurance,05/06/2017,5100110357,"155,200.10",LOCKTON COMPANIES LLP
TfGM,Corporate Services,Insurance,05/06/2017,5100110358,"94,510.66",LOCKTON COMPANIES LLP
TfGM,Transport,Capital Costs - Vehicle Costs,05/06/2017,5100110066,637.56,MANCHESTER CITY COUNCIL
TfGM,Transport,Property & Equipment Maintenance,05/06/2017,5100110361,"1,809.36",MARPOL SECURITY LIMITED
TfGM,Transport,Property & Equipment Maintenance,05/06/2017,5100110362,456.25,MARPOL SECURITY LIMITED
TfGM,Transport,Print & Media,05/06/2017,5100110344,777.33,MIKE ABRAM
TfGM,Transport,Capital Costs - IS Support Services,05/06/2017,5100109986,"9,050.00",MOBILE SOLUTIONS LTD
TfGM,Transport,Programme and Project Management Services,05/06/2017,5100109081,"1,768.00",MORSON INTERNATIONAL
TfGM,Transport,Capital Costs - Capital Project Main Contract Works,05/06/2017,5100110348,"1,993,340.45",MPACT THALES
TfGM,Transport,Vehicle Repairs & Maintenance,05/06/2017,5100110392,"60,970.97",OPTARE LTD
TfGM,Transport,Vehicle Repairs & Maintenance,05/06/2017,5100110394,"12,078.50",OPTARE LTD
TfGM,Transport,Vehicle Repairs & Maintenance,05/06/2017,5100110395,"2,340.00",OPTARE LTD
TfGM,Transport,Vehicle Repairs & Maintenance,05/06/2017,5100110396,"3,552.50",OPTARE LTD
TfGM,Transport,Vehicle Repairs & Maintenance,05/06/2017,5100110397,"13,883.33",OPTARE LTD
TfGM,Transport,Vehicle Repairs & Maintenance,05/06/2017,5100110414,(957.00),OPTARE LTD
TfGM,Transport,Vehicle Repairs & Maintenance,05/06/2017,5100110417,957.00,OPTARE LTD
TfGM,Corporate Services,Legal Services,05/06/2017,5100108276,"(2,070.00)",PANNONE CORPORATE LLP (EMP)
TfGM,Transport,Capital Costs - Legal Services,05/06/2017,5100108481,"1,638.00",PANNONE CORPORATE LLP (EMP)
TfGM,Transport,Capital Costs - Legal Services,05/06/2017,5100110411,"1,440.00",PANNONE CORPORATE LLP (EMP)
TfGM,Transport,Capital Costs - Legal Services,05/06/2017,5100110412,"1,282.50",PANNONE CORPORATE LLP (EMP)
TfGM,Transport,Capital Costs - Programme and Project Management Services,05/06/2017,5100110051,"1,842.50",PRACTICUS LIMITED
TfGM,Transport,Capital Costs - Smart Ticketing,05/06/2017,5100110052,"1,800.00",PRACTICUS LIMITED
TfGM,Transport,Smart Ticketing,05/06/2017,5100110053,"2,500.00",PRACTICUS LIMITED
TfGM,Corporate Services,IS Support Services,05/06/2017,5100109820,"2,500.00",ROBERT WALTERS PLC
TfGM,Corporate Services,IS Support Services,05/06/2017,5100110404,"1,500.00",ROBERT WALTERS PLC
TfGM,Corporate Services,IS Support Services,05/06/2017,5100110406,"2,500.00",ROBERT WALTERS PLC
TfGM,Corporate Services,IS Support Services,05/06/2017,5100110408,"2,500.00",ROBERT WALTERS PLC
TfGM,Transport,Traffic Signal Works,05/06/2017,5100110086,"7,601.95",SIEMENS PLC
TfGM,Transport,Traffic Signal Works,05/06/2017,5100110087,"81,670.41",SIEMENS PLC
TfGM,Transport,Design Support Services,05/06/2017,5100110033,"5,669.50",STEER DAVIES GLEEVE LTD
TfGM,Transport,Utilities & Energy,05/06/2017,1700036348,(947.49),SWALEC
TfGM,Transport,Utilities & Energy,05/06/2017,1900054297,"2,745.28",SWALEC
TfGM,Transport,Utilities & Energy,05/06/2017,1900054299,"12,826.00",SWALEC
TfGM,Transport,Utilities & Energy,05/06/2017,1900054300,"2,300.93",SWALEC
TfGM,Transport,Utilities & Energy,05/06/2017,1900054301,550.82,SWALEC
TfGM,Transport,Utilities & Energy,05/06/2017,1900054306,"1,294.65",SWALEC
TfGM,Transport,Utilities & Energy,05/06/2017,1900054307,526.92,SWALEC
TfGM,Transport,Utilities & Energy,05/06/2017,1900054310,585.93,SWALEC
TfGM,Transport,Utilities & Energy,05/06/2017,1900054314,"2,604.99",SWALEC
TfGM,Transport,Utilities & Energy,05/06/2017,1900054316,"2,166.62",SWALEC
TfGM,Transport,Utilities & Energy,05/06/2017,1900054319,"2,076.33",SWALEC
TfGM,Transport,Utilities & Energy,05/06/2017,1900054320,"1,211.23",SWALEC
TfGM,Transport,Utilities & Energy,05/06/2017,1900054323,812.69,SWALEC
TfGM,Transport,Utilities & Energy,05/06/2017,1900054324,699.46,SWALEC
TfGM,Transport,Utilities & Energy,05/06/2017,1900054326,856.84,SWALEC
TfGM,Transport,Capital Costs - Utilities & Energy,05/06/2017,1900054328,598.57,SWALEC
TfGM,Transport,Utilities & Energy,05/06/2017,1900054329,"1,844.75",SWALEC
TfGM,Transport,Utilities & Energy,05/06/2017,1900054334,725.02,SWALEC
TfGM,Transport,Utilities & Energy,05/06/2017,1900054335,573.22,SWALEC
TfGM,Transport,Utilities & Energy,05/06/2017,1900054337,"1,411.16",SWALEC
TfGM,Transport,Utilities & Energy,05/06/2017,1900054339,727.45,SWALEC
TfGM,Transport,Utilities & Energy,05/06/2017,1900054340,736.42,SWALEC
TfGM,Transport,IS Software & Maintenance,05/06/2017,5100109942,"177,500.50",SYMOLOGY LIMITED
TfGM,Corporate Services,Printer Consumables,05/06/2017,5100109981,"4,233.90",TOTAL COMPUTERS LTD
TfGM,Corporate Services,Computer and Communications Equipment,05/06/2017,5100109924,852.11,TRANSACT TECHNOLOGY SOLUTIONS LTD
TfGM,Corporate Services,Computer and Communications Equipment,05/06/2017,5100109925,"1,684.22",TRANSACT TECHNOLOGY SOLUTIONS LTD
TfGM,Corporate Services,Computer and Communications Equipment,05/06/2017,5100109926,842.11,TRANSACT TECHNOLOGY SOLUTIONS LTD
TfGM,Transport,Exhibitions and Conferences,05/06/2017,5100110419,"2,000.00",Trust Reservations Ltd
TfGM,Transport,Capital Costs - IS Support Services,05/06/2017,5100110400,750.00,VALTECH LTD
TfGM,Transport,Capital Costs - IS Support Services,05/06/2017,5100110401,"7,500.00",VALTECH LTD
TfGM,Transport,Capital Costs - IS Support Services,05/06/2017,5100110064,"6,129.50",VIX TECHNOLOGY LTD
TfGM,Transport,Vehicle Costs,07/06/2017,1200044599,681.60,ALLSTAR
TfGM,Corporate Services,Telecommunications,07/06/2017,1200044599,"12,232.41",British Telecommunications Plc
TfGM,Transport,Postage Costs,08/06/2017,1900054439,"2,000.00",FRAMA UK LIMITED
TfGM,Transport,Capital Costs - Capital Project Main Contract Works,08/06/2017,1900054346,"132,275.68",KIER CONSTRUCTION - NORTHERN
TfGM,Transport,Utilities & Energy,08/06/2017,1900054444,527.99,SWALEC
TfGM,Transport,Driver Intervention Course Delivery Costs,09/06/2017,1900054361,"1,203.40",2020 FLEET TRAINING LTD
TfGM,Transport,Driver Intervention Course Delivery Costs,09/06/2017,1900054375,"1,422.20",A HOLT
TfGM,Transport,Capital Costs - Smart Ticketing,09/06/2017,5100110157,"8,478.14",AECOM LTD
TfGM,Transport,Community Engagement Services,09/06/2017,5100110169,"2,748.72",AECOM LTD
TfGM,Transport,"Rent, Rates & Service Charges",09/06/2017,1700036394,(630.34),AMAS LTD CLIENTS ACCOUNT
TfGM,Transport,"Rent, Rates & Service Charges",09/06/2017,1700036395,"(2,243.77)",AMAS LTD CLIENTS ACCOUNT
TfGM,Transport,"Rent, Rates & Service Charges",09/06/2017,1900054421,"2,760.00",AMAS LTD CLIENTS ACCOUNT
TfGM,Transport,"Rent, Rates & Service Charges",09/06/2017,1900054422,"13,297.50",AMAS LTD CLIENTS ACCOUNT
TfGM,Transport,"Rent, Rates & Service Charges",09/06/2017,1900054423,"1,087.38",AMAS LTD CLIENTS ACCOUNT
TfGM,Transport,Design Support Services,09/06/2017,5100110080,"43,617.93",ARCADIS LLP
TfGM,Transport,Staff Rail Passes,09/06/2017,5100110482,"5,883.35",ARRIVA RAIL NORTH LTD
